Workbook

Sheet Sverigeranking
B1: Svenska Hästskokastarförbundets Sverigeranking | X1: Antal kastare som deltagit i samtliga tävlingar senaste 12 månaderna: | Y1: =COUNTIF(F5:F199,9) -> 2 | AG1: Antal starter senaste 12 månaderna föruton DM: | AH1: =SUM(I2:AB2)+(AJ1)-(N2+O2+Q2+X2+W2) -> 496 | AJ1: =Miniorranking!$AE$1 -> 7
B2: SLUTSTÄLLNING | I2: =COUNT(I5:I220) -> 0 | J2: =COUNT(J5:J220) -> 0 | K2: 76 | L2: 73 | M2: 43 | N2: 28 | O2: 38 | P2: 81 | Q2: 22 | R2: 57 | S2: 27 | T2: 51 | U2: 81 | V2: 0 | W2: =COUNT(W5:W220) -> 0 | X2: 0 | Y2: 0 | Z2: 0 | AA2: 0 | AB2: 0
B3: Säsong 2020 / 2021 | I3: =IF(SUM(I5:I400)>100,1,"") ->  | K3: 1 | L3: 1 | M3: 1 | N3: =IF(SUM(N5:N400)>-1,1,"") -> 1 | O3: 1 | P3: 1 | Q3: 1 | R3: 1 | S3: 1 | T3: 1 | U3: 1 | W3: =IF(SUM(W5:W400)>100,1,"") ->  | AG3: Snitt / tävling förutom DM : | AH3: =SUM(AH1/8) -> 62
A4: Plac. | B4: Kastare | C4: Klubb | D4: Rankingpoäng | F4: Antal tävlingar | G4: Snitt per serie | I4: Jämjö Open | J4: Björkenäs Open | K4: Utomhus-SM Dag 1 | L4: Utomhus-SM Dag 2 | M4: Vaxholm Open | N4: Utomhus Smålandsmästaren | O4: Blekinge-DM Ute | P4: Dynapac Open | Q4: Stockholms-DM ute | R4: Åseda Open | S4: Färsna Cup | T4: Höstskon Nybro | U4: Carlskrona Cup | V4: Sibbamåla Open | W4: Stockholms-DM | X4: Blekinge DM inne | Y4: Inomhus-SM | Z4: Värendspokalen | AA4: Tingsryds Open | AC4: Antal arrangerade tävlingar | AD4: Ej medräknat resultat | AE4: Ej medräknat resultat | AF4: Ej medräknat resultat | BJ4: 1 | BK4: 2 | BL4: 3 | BM4: 4 | BN4: 5 | BO4: 6 | BP4: 7 | BQ4: 8 | BR4: 9 | BS4: 10 | BT4: 11 | BU4: 12 | BV4: 13 | BW4: 14 | BX4: 15 | BY4: 16 | BZ4: ej medräknad | CC4: missade tävlingar
A5: =IF(BG5>1,AH5&" ("&AG5&")",AH5&" ("&AI5&")") -> 1 (1) | B5: Kent Sundahl | C5: Carlskrona | D5: =SUM(BJ5:BU5) -> 3269 | F5: =COUNT(I5:AB5) -> 9 | G5: =SUM((CE5)/(F5*2)) -> 181.6111111 | K5: 438 | L5: 426 | M5: 366 | O5: 339 | P5: 372 | R5: 452 | S5: 250 | T5: 263 | U5: 363 | AC5: =SUM($I$3:$AB$3) -> 11 | AD5: =BZ5 -> - | AE5: =CA5 -> - | AF5: =CB5 -> - | AG5: 1 | AH5: =IF(D5<D4,AJ5,AH4) -> 1 | AI5: =IF(F5>1,ROW(1:1),"-") -> 1 | AJ5: 1 | AM5: =COUNT($I$3,I5,H5) -> 0 | AN5: =COUNT($J$3,J5,I5) -> 0 | AO5: =COUNT($K$3,K5,J5) -> 2 | AP5: =COUNT($L$3,L5,K5) -> 3 | AQ5: =COUNT($M$3,M5,L5) -> 3 | AR5: =COUNT($N$3,N5,M5) -> 2 | AS5: =COUNT($O$3,O5,N5) -> 2 | AT5: =COUNT($P$3,P5,O5) -> 3 | AU5: =COUNT($R$3,R5,P5) -> 3 | AV5: =COUNT($S$3,S5,R5) -> 3 | AW5: =COUNT($T$3,T5,S5) -> 3 | AX5: =COUNT($U$3,U5,T5) -> 3 | AY5: =COUNT($V$3,V5,U5) -> 1 | AZ5: =COUNT($W$3,W5,V5) -> 0 | BA5: =COUNT($X$3,X5,W5) -> 0 | BB5: =COUNT($Y$3,Y5,X5) -> 0 | BC5: =COUNT($AA$3,AA5,Y5) -> 0 | BD5: =COUNT($AB$3,AB5,AA5) -> 0 | BG5: =IF(H5="x",1,2) -> 2 | BJ5: =IF($F5>0,LARGE($I5:$AB5,1),"") -> 452 | BK5: =IF($F5>1,LARGE($I5:$AB5,2),"") -> 438 | BL5: =IF($F5>2,LARGE($I5:$AB5,3),"") -> 426 | BM5: =IF($F5>3,LARGE($I5:$AB5,4),"") -> 372 | BN5: =IF($F5>4,LARGE($I5:$AB5,5),"") -> 366 | BO5: =IF($F5>5,LARGE($I5:$AB5,6),"") -> 363 | BP5: =IF($F5>6,LARGE($I5:$AB5,7),"") -> 339 | BQ5: =IF($F5>7,LARGE($I5:$AB5,8),"") -> 263 | BR5: =IF($F5>8,LARGE($I5:$AB5,9),"") -> 250 | BS5: =IF($F5>9,LARGE($I5:$AB5,10),"") ->  | BT5: =IF($F5>10,LARGE($I5:$AB5,11),"") ->  | BU5: =IF($F5>11,LARGE($I5:$AB5,12),"") ->  | BV5: =IF($F5>12,LARGE($I5:$AB5,13),"") ->  | BW5: =IF($F5>13,LARGE($I5:$AB5,14),"") ->  | BX5: =IF($F5>14,LARGE($I5:$AB5,15),"") ->  | BY5: =IF($F5>15,LARGE($I5:$AB5,16),"") ->  | BZ5: =IF($F5>12,LARGE($I5:$AB5,13),"-") -> - | CA5: =IF($F5>13,LARGE($I5:$AB5,14),"-") -> - | CB5: =IF($F5>14,LARGE($I5:$AB5,15),"-") -> - | CC5: =SUM(AC5-F5)-2 -> 0 | CE5: =SUM(BJ5:BY5) -> 3269 | EP5: 1 | ER5: =IF(BG5>=1,AH5,"") -> 1 | ES5: =IF(BG5>1,"("&AG5&")","("&AI5&")") -> (1)
A6: 2 (2) | B6: Sandor Bodi | C6: Växjö Hsk | D6: 2602 | F6: 7 | G6: 185.8571429 | K6: 422 | L6: 418 | M6: 325 | N6: 478 | R6: 374 | T6: 279 | U6: 306 | AC6: 11 | AD6: - | AE6: - | AF6: - | AG6: 2 | AH6: 2 | AI6: 2 | AJ6: 2 | AM6: 0 | AN6: 0 | AO6: 2 | AP6: 3 | AQ6: 3 | AR6: 3 | AS6: 2 | AT6: 1 | AU6: 2 | AV6: 2 | AW6: 2 | AX6: 3 | AY6: 1 | AZ6: 0 | BA6: 0 | BB6: 0 | BC6: 0 | BD6: 0 | BG6: 2 | BJ6: 478 | BK6: 422 | BL6: 418 | BM6: 374 | BN6: 325 | BO6: 306 | BP6: 279 | BZ6: - | CA6: - | CB6: - | CC6: 2 | CE6: 2602 | EP6: 2 | ER6: 2 | ES6: (2)
A7: 3 (5) | B7: Sandra Widlund | C7: Växjö Hsk | D7: 2478 | F7: 7 | G7: 177 | K7: 375 | L7: 476 | N7: 356 | P7: 316 | R7: 273 | T7: 337 | U7: 345 | AC7: 11 | AD7: - | AE7: - | AF7: - | AG7: 5 | AH7: 3 | AI7: 3 | AJ7: 3 | AM7: 0 | AN7: 0 | AO7: 2 | AP7: 3 | AQ7: 2 | AR7: 2 | AS7: 2 | AT7: 2 | AU7: 3 | AV7: 2 | AW7: 2 | AX7: 3 | AY7: 1 | AZ7: 0 | BA7: 0 | BB7: 0 | BC7: 0 | BD7: 0 | BG7: 2 | BJ7: 476 | BK7: 375 | BL7: 356 | BM7: 345 | BN7: 337 | BO7: 316 | BP7: 273 | BZ7: - | CA7: - | CB7: - | CC7: 2 | CE7: 2478 | EP7: 3 | ER7: 3 | ES7: (5)
A8: 4 (6) | B8: Matz Karlsson | C8: Korpen Åseda | D8: 2410 | F8: 7 | G8: 172.1428571 | K8: 221 | L8: 384 | N8: 414 | P8: 346 | R8: 354 | T8: 348 | U8: 343 | AC8: 11 | AD8: - | AE8: - | AF8: - | AG8: 6 | AH8: 4 | AI8: 4 | AJ8: 4 | AM8: 0 | AN8: 0 | AO8: 2 | AP8: 3 | AQ8: 2 | AR8: 2 | AS8: 2 | AT8: 2 | AU8: 3 | AV8: 2 | AW8: 2 | AX8: 3 | AY8: 1 | AZ8: 0 | BA8: 0 | BB8: 0 | BC8: 0 | BD8: 0 | BG8: 2 | BJ8: 414 | BK8: 384 | BL8: 354 | BM8: 348 | BN8: 346 | BO8: 343 | BP8: 221 | BZ8: - | CA8: - | CB8: - | CC8: 2 | CE8: 2410 | EP8: 4 | ER8: 4 | ES8: (6)
A9: 5 (9) | B9: Gert Karlsson | C9: Korpen Åseda | D9: 2295 | F9: 7 | G9: 163.9285714 | K9: 374 | N9: 431 | P9: 343 | R9: 332 | S9: 209 | T9: 308 | U9: 298 | AC9: 11 | AD9: - | AE9: - | AF9: - | AG9: 9 | AH9: 5 | AI9: 5 | AJ9: 5 | AM9: 0 | AN9: 0 | AO9: 2 | AP9: 2 | AQ9: 1 | AR9: 2 | AS9: 2 | AT9: 2 | AU9: 3 | AV9: 3 | AW9: 3 | AX9: 3 | AY9: 1 | AZ9: 0 | BA9: 0 | BB9: 0 | BC9: 0 | BD9: 0 | BG9: 2 | BJ9: 431 | BK9: 374 | BL9: 343 | BM9: 332 | BN9: 308 | BO9: 298 | BP9: 209 | BZ9: - | CA9: - | CB9: - | CC9: 2 | CE9: 2295 | EP9: 5 | ER9: 5 | ES9: (9)
A10: 6 (3) | B10: Ingvar Eriksson | C10: Carlskrona | D10: 2215 | F10: 7 | G10: 158.2142857 | K10: 301 | L10: 343 | O10: 335 | P10: 344 | R10: 223 | T10: 275 | U10: 394 | AC10: 11 | AD10: - | AE10: - | AF10: - | AG10: 3 | AH10: 6 | AI10: 6 | AJ10: 6 | AM10: 0 | AN10: 0 | AO10: 2 | AP10: 3 | AQ10: 2 | AR10: 1 | AS10: 2 | AT10: 3 | AU10: 3 | AV10: 2 | AW10: 2 | AX10: 3 | AY10: 1 | AZ10: 0 | BA10: 0 | BB10: 0 | BC10: 0 | BD10: 0 | BG10: 2 | BJ10: 394 | BK10: 344 | BL10: 343 | BM10: 335 | BN10: 301 | BO10: 275 | BP10: 223 | BZ10: - | CA10: - | CB10: - | CC10: 2 | CE10: 2215 | EP10: 6 | ER10: 6 | ES10: (3)
A11: 7 (4) | B11: Leo Andersson | C11: Carlskrona | D11: 2144 | F11: 7 | G11: 153.1428571 | K11: 256 | L11: 273 | O11: 297 | P11: 331 | R11: 398 | T11: 334 | U11: 255 | AC11: 11 | AD11: - | AE11: - | AF11: - | AG11: 4 | AH11: 7 | AI11: 7 | AJ11: 7 | AM11: 0 | AN11: 0 | AO11: 2 | AP11: 3 | AQ11: 2 | AR11: 1 | AS11: 2 | AT11: 3 | AU11: 3 | AV11: 2 | AW11: 2 | AX11: 3 | AY11: 1 | AZ11: 0 | BA11: 0 | BB11: 0 | BC11: 0 | BD11: 0 | BG11: 2 | BJ11: 398 | BK11: 334 | BL11: 331 | BM11: 297 | BN11: 273 | BO11: 256 | BP11: 255 | BZ11: - | CA11: - | CB11: - | CC11: 2 | CE11: 2144 | EP11: 7 | ER11: 7 | ES11: (4)
A12: 8 (10) | B12: Hathaichonlanee Phaengphui | C12: Växjö Hsk | D12: 2128 | F12: 7 | G12: 152 | K12: 271 | L12: 329 | N12: 271 | P12: 254 | R12: 280 | T12: 297 | U12: 426 | AC12: 11 | AD12: - | AE12: - | AF12: - | AG12: 10 | AH12: 8 | AI12: 8 | AJ12: 8 | AM12: 0 | AN12: 0 | AO12: 2 | AP12: 3 | AQ12: 2 | AR12: 2 | AS12: 2 | AT12: 2 | AU12: 3 | AV12: 2 | AW12: 2 | AX12: 3 | AY12: 1 | AZ12: 0 | BA12: 0 | BB12: 0 | BC12: 0 | BD12: 0 | BG12: 2 | BJ12: 426 | BK12: 329 | BL12: 297 | BM12: 280 | BN12: 271 | BO12: 271 | BP12: 254 | BZ12: - | CA12: - | CB12: - | CC12: 2 | CE12: 2128 | EP12: 8 | ER12: 8 | ES12: (10)
A13: 9 (8) | B13: Peter Olsson | C13: Dynapac | D13: 1974 | F13: 7 | G13: 141 | K13: 290 | L13: 309 | M13: 148 | O13: 224 | P13: 287 | R13: 366 | U13: 350 | AC13: 11 | AD13: - | AE13: - | AF13: - | AG13: 8 | AH13: 9 | AI13: 9 | AJ13: 9 | AM13: 0 | AN13: 0 | AO13: 2 | AP13: 3 | AQ13: 3 | AR13: 2 | AS13: 2 | AT13: 3 | AU13: 3 | AV13: 2 | AW13: 1 | AX13: 2 | AY13: 1 | AZ13: 0 | BA13: 0 | BB13: 0 | BC13: 0 | BD13: 0 | BG13: 2 | BJ13: 366 | BK13: 350 | BL13: 309 | BM13: 290 | BN13: 287 | BO13: 224 | BP13: 148 | BZ13: - | CA13: - | CB13: - | CC13: 2 | CE13: 1974 | EP13: 9 | ER13: 9 | ES13: (8)
A14: 10 (7) | B14: Tobias Gneupel | C14: Sibbamåla | D14: 1958 | F14: 5 | G14: 195.8 | K14: 278 | L14: 384 | P14: 401 | T14: 455 | U14: 440 | AC14: 11 | AD14: - | AE14: - | AF14: - | AG14: 7 | AH14: 10 | AI14: 10 | AJ14: 10 | AM14: 0 | AN14: 0 | AO14: 2 | AP14: 3 | AQ14: 2 | AR14: 1 | AS14: 1 | AT14: 2 | AU14: 2 | AV14: 1 | AW14: 2 | AX14: 3 | AY14: 1 | AZ14: 0 | BA14: 0 | BB14: 0 | BC14: 0 | BD14: 0 | BG14: 2 | BJ14: 455 | BK14: 440 | BL14: 401 | BM14: 384 | BN14: 278 | BZ14: - | CA14: - | CB14: - | CC14: 4 | CE14: 1958 | EP14: 10 | ER14: 10 | ES14: (7)
A15: 11 (16) | B15: Yamolada Damnoegam | C15: Växjö Hsk | D15: 1795 | F15: 7 | G15: 128.2142857 | K15: 252 | L15: 259 | N15: 305 | P15: 186 | R15: 263 | T15: 360 | U15: 170 | AC15: 11 | AD15: - | AE15: - | AF15: - | AG15: 16 | AH15: 11 | AI15: 11 | AJ15: 11 | AM15: 0 | AN15: 0 | AO15: 2 | AP15: 3 | AQ15: 2 | AR15: 2 | AS15: 2 | AT15: 2 | AU15: 3 | AV15: 2 | AW15: 2 | AX15: 3 | AY15: 1 | AZ15: 0 | BA15: 0 | BB15: 0 | BC15: 0 | BD15: 0 | BG15: 2 | BJ15: 360 | BK15: 305 | BL15: 263 | BM15: 259 | BN15: 252 | BO15: 186 | BP15: 170 | BZ15: - | CA15: - | CB15: - | CC15: 2 | CE15: 1795 | EP15: 11 | ER15: 11 | ES15: (16)
A16: 12 (17) | B16: Lennart Karlsson | C16: Tingsryd | D16: 1718 | F16: 6 | G16: 143.1666667 | K16: 200 | L16: 357 | N16: 320 | P16: 263 | R16: 345 | U16: 233 | AC16: 11 | AD16: - | AE16: - | AF16: - | AG16: 17 | AH16: 12 | AI16: 12 | AJ16: 12 | AM16: 0 | AN16: 0 | AO16: 2 | AP16: 3 | AQ16: 2 | AR16: 2 | AS16: 2 | AT16: 2 | AU16: 3 | AV16: 2 | AW16: 1 | AX16: 2 | AY16: 1 | AZ16: 0 | BA16: 0 | BB16: 0 | BC16: 0 | BD16: 0 | BG16: 2 | BJ16: 357 | BK16: 345 | BL16: 320 | BM16: 263 | BN16: 233 | BO16: 200 | BZ16: - | CA16: - | CB16: - | CC16: 3 | CE16: 1718 | EP16: 12 | ER16: 12 | ES16: (17)
A17: 13 (18) | B17: Lasse Brincner | C17: Värends Hsk | D17: 1705 | F17: 9 | G17: 94.72222222 | K17: 245 | L17: 156 | M17: 160 | N17: 213 | P17: 180 | R17: 119 | S17: 193 | T17: 194 | U17: 245 | AC17: 11 | AD17: - | AE17: - | AF17: - | AG17: 18 | AH17: 13 | AI17: 13 | AJ17: 13 | AM17: 0 | AN17: 0 | AO17: 2 | AP17: 3 | AQ17: 3 | AR17: 3 | AS17: 2 | AT17: 2 | AU17: 3 | AV17: 3 | AW17: 3 | AX17: 3 | AY17: 1 | AZ17: 0 | BA17: 0 | BB17: 0 | BC17: 0 | BD17: 0 | BG17: 2 | BJ17: 245 | BK17: 245 | BL17: 213 | BM17: 194 | BN17: 193 | BO17: 180 | BP17: 160 | BQ17: 156 | BR17: 119 | BZ17: - | CA17: - | CB17: - | CC17: 0 | CE17: 1705 | EP17: 13 | ER17: 13 | ES17: (18)
A18: 14 (19) | B18: Tomas Lindahl | C18: Korpen Åseda | D18: 1665 | F18: 7 | G18: 118.9285714 | K18: 230 | L18: 235 | N18: 272 | P18: 189 | R18: 257 | T18: 279 | U18: 203 | AC18: 11 | AD18: - | AE18: - | AF18: - | AG18: 19 | AH18: 14 | AI18: 14 | AJ18: 14 | AM18: 0 | AN18: 0 | AO18: 2 | AP18: 3 | AQ18: 2 | AR18: 2 | AS18: 2 | AT18: 2 | AU18: 3 | AV18: 2 | AW18: 2 | AX18: 3 | AY18: 1 | AZ18: 0 | BA18: 0 | BB18: 0 | BC18: 0 | BD18: 0 | BG18: 2 | BJ18: 279 | BK18: 272 | BL18: 257 | BM18: 235 | BN18: 230 | BO18: 203 | BP18: 189 | BZ18: - | CA18: - | CB18: - | CC18: 2 | CE18: 1665 | EP18: 14 | ER18: 14 | ES18: (19)
A19: 15 (12) | B19: Anita Fabbeke | C19: Dynapac | D19: 1650 | F19: 6 | G19: 137.5 | K19: 209 | L19: 292 | O19: 212 | P19: 335 | R19: 343 | U19: 259 | AC19: 11 | AD19: - | AE19: - | AF19: - | AG19: 12 | AH19: 15 | AI19: 15 | AJ19: 15 | AM19: 0 | AN19: 0 | AO19: 2 | AP19: 3 | AQ19: 2 | AR19: 1 | AS19: 2 | AT19: 3 | AU19: 3 | AV19: 2 | AW19: 1 | AX19: 2 | AY19: 1 | AZ19: 0 | BA19: 0 | BB19: 0 | BC19: 0 | BD19: 0 | BG19: 2 | BJ19: 343 | BK19: 335 | BL19: 292 | BM19: 259 | BN19: 212 | BO19: 209 | BZ19: - | CA19: - | CB19: - | CC19: 3 | CE19: 1650 | EP19: 15 | ER19: 15 | ES19: (12)
A20: 16 (14) | B20: Nathalie Sundahl | C20: Carlskrona | D20: 1604 | F20: 8 | G20: 100.25 | K20: 250 | L20: 192 | O20: 194 | P20: 199 | R20: 125 | S20: 170 | T20: 248 | U20: 226 | AC20: 11 | AD20: - | AE20: - | AF20: - | AG20: 14 | AH20: 16 | AI20: 16 | AJ20: 16 | AM20: 0 | AN20: 0 | AO20: 2 | AP20: 3 | AQ20: 2 | AR20: 1 | AS20: 2 | AT20: 3 | AU20: 3 | AV20: 3 | AW20: 3 | AX20: 3 | AY20: 1 | AZ20: 0 | BA20: 0 | BB20: 0 | BC20: 0 | BD20: 0 | BG20: 2 | BJ20: 250 | BK20: 248 | BL20: 226 | BM20: 199 | BN20: 194 | BO20: 192 | BP20: 170 | BQ20: 125 | BZ20: - | CA20: - | CB20: - | CC20: 1 | CE20: 1604 | EP20: 16 | ER20: 16 | ES20: (14)
A21: 17 (11) | B21: Joel Sundahl | C21: Carlskrona | D21: 1594 | F21: 5 | G21: 159.4 | K21: 334 | L21: 299 | O21: 386 | P21: 281 | U21: 294 | AC21: 11 | AD21: - | AE21: - | AF21: - | AG21: 11 | AH21: 17 | AI21: 17 | AJ21: 17 | AM21: 0 | AN21: 0 | AO21: 2 | AP21: 3 | AQ21: 2 | AR21: 1 | AS21: 2 | AT21: 3 | AU21: 2 | AV21: 1 | AW21: 1 | AX21: 2 | AY21: 1 | AZ21: 0 | BA21: 0 | BB21: 0 | BC21: 0 | BD21: 0 | BG21: 2 | BJ21: 386 | BK21: 334 | BL21: 299 | BM21: 294 | BN21: 281 | BZ21: - | CA21: - | CB21: - | CC21: 4 | CE21: 1594 | EP21: 17 | ER21: 17 | ES21: (11)
A22: 18 (13) | B22: Mattias Gneupel | C22: Sibbamåla | D22: 1582 | F22: 7 | G22: 113 | K22: 220 | L22: 223 | M22: 252 | P22: 218 | S22: 147 | T22: 219 | U22: 303 | AC22: 11 | AD22: - | AE22: - | AF22: - | AG22: 13 | AH22: 18 | AI22: 18 | AJ22: 18 | AM22: 0 | AN22: 0 | AO22: 2 | AP22: 3 | AQ22: 3 | AR22: 2 | AS22: 1 | AT22: 2 | AU22: 2 | AV22: 2 | AW22: 3 | AX22: 3 | AY22: 1 | AZ22: 0 | BA22: 0 | BB22: 0 | BC22: 0 | BD22: 0 | BG22: 2 | BJ22: 303 | BK22: 252 | BL22: 223 | BM22: 220 | BN22: 219 | BO22: 218 | BP22: 147 | BZ22: - | CA22: - | CB22: - | CC22: 2 | CE22: 1582 | EP22: 18 | ER22: 18 | ES22: (13)
A23: 19 (24) | B23: Dan Hallstan | C23: Växjö | D23: 1567 | F23: 8 | G23: 97.9375 | K23: 218 | L23: 239 | M23: 116 | N23: 203 | P23: 190 | R23: 206 | T23: 224 | U23: 171 | AC23: 11 | AD23: - | AE23: - | AF23: - | AG23: 24 | AH23: 19 | AI23: 19 | AJ23: 19 | AM23: 0 | AN23: 0 | AO23: 2 | AP23: 3 | AQ23: 3 | AR23: 3 | AS23: 2 | AT23: 2 | AU23: 3 | AV23: 2 | AW23: 2 | AX23: 3 | AY23: 1 | AZ23: 0 | BA23: 0 | BB23: 0 | BC23: 0 | BD23: 0 | BG23: 2 | BJ23: 239 | BK23: 224 | BL23: 218 | BM23: 206 | BN23: 203 | BO23: 190 | BP23: 171 | BQ23: 116 | BZ23: - | CA23: - | CB23: - | CC23: 1 | CE23: 1567 | EP23: 19 | ER23: 19 | ES23: (24)
A24: 20 (27) | B24: Stefan Olofsson | C24: Korpen Nybro | D24: 1520 | F24: 7 | G24: 108.5714286 | K24: 254 | L24: 217 | N24: 306 | P24: 139 | R24: 188 | T24: 182 | U24: 234 | AC24: 11 | AD24: - | AE24: - | AF24: - | AG24: 27 | AH24: 20 | AI24: 20 | AJ24: 20 | AM24: 0 | AN24: 0 | AO24: 2 | AP24: 3 | AQ24: 2 | AR24: 2 | AS24: 2 | AT24: 2 | AU24: 3 | AV24: 2 | AW24: 2 | AX24: 3 | AY24: 1 | AZ24: 0 | BA24: 0 | BB24: 0 | BC24: 0 | BD24: 0 | BG24: 2 | BJ24: 306 | BK24: 254 | BL24: 234 | BM24: 217 | BN24: 188 | BO24: 182 | BP24: 139 | BZ24: - | CA24: - | CB24: - | CC24: 2 | CE24: 1520 | EP24: 20 | ER24: 20 | ES24: (27)
A25: 21 (21) | B25: Björn Landberg | C25: Vaxholm Hsk | D25: 1474 | F25: 6 | G25: 122.8333333 | K25: 198 | L25: 245 | M25: 223 | Q25: 323 | S25: 244 | U25: 241 | AC25: 11 | AD25: - | AE25: - | AF25: - | AG25: 21 | AH25: 21 | AI25: 21 | AJ25: 21 | AM25: 0 | AN25: 0 | AO25: 2 | AP25: 3 | AQ25: 3 | AR25: 2 | AS25: 1 | AT25: 1 | AU25: 1 | AV25: 2 | AW25: 2 | AX25: 2 | AY25: 1 | AZ25: 0 | BA25: 0 | BB25: 0 | BC25: 0 | BD25: 0 | BG25: 2 | BJ25: 323 | BK25: 245 | BL25: 244 | BM25: 241 | BN25: 223 | BO25: 198 | BZ25: - | CA25: - | CB25: - | CC25: 3 | CE25: 1474 | EP25: 21 | ER25: 21 | ES25: (21)
A26: 22 (15) | B26: Olle Ottosson | C26: Dynapac | D26: 1443 | F26: 5 | G26: 144.3 | K26: 305 | L26: 278 | O26: 360 | P26: 225 | U26: 275 | AC26: 11 | AD26: - | AE26: - | AF26: - | AG26: 15 | AH26: 22 | AI26: 22 | AJ26: 22 | AM26: 0 | AN26: 0 | AO26: 2 | AP26: 3 | AQ26: 2 | AR26: 1 | AS26: 2 | AT26: 3 | AU26: 2 | AV26: 1 | AW26: 1 | AX26: 2 | AY26: 1 | AZ26: 0 | BA26: 0 | BB26: 0 | BC26: 0 | BD26: 0 | BG26: 2 | BJ26: 360 | BK26: 305 | BL26: 278 | BM26: 275 | BN26: 225 | BZ26: - | CA26: - | CB26: - | CC26: 4 | CE26: 1443 | EP26: 22 | ER26: 22 | ES26: (15)
A27: 23 (29) | B27: Kerstin Svensson | C27: Växjö Hsk | D27: 1419 | F27: 8 | G27: 88.6875 | K27: 146 | L27: 179 | M27: 136 | N27: 224 | P27: 217 | R27: 184 | T27: 186 | U27: 147 | AC27: 11 | AD27: - | AE27: - | AF27: - | AG27: 29 | AH27: 23 | AI27: 23 | AJ27: 23 | AM27: 0 | AN27: 0 | AO27: 2 | AP27: 3 | AQ27: 3 | AR27: 3 | AS27: 2 | AT27: 2 | AU27: 3 | AV27: 2 | AW27: 2 | AX27: 3 | AY27: 1 | AZ27: 0 | BA27: 0 | BB27: 0 | BC27: 0 | BD27: 0 | BG27: 2 | BJ27: 224 | BK27: 217 | BL27: 186 | BM27: 184 | BN27: 179 | BO27: 147 | BP27: 146 | BQ27: 136 | BZ27: - | CA27: - | CB27: - | CC27: 1 | CE27: 1419 | EP27: 23 | ER27: 23 | ES27: (29)
A28: 24 (31) | B28: Ronny Lundberg | C28: Lanternan | D28: 1402 | F28: 7 | G28: 100.1428571 | K28: 236 | L28: 249 | O28: 217 | P28: 122 | R28: 203 | T28: 192 | U28: 183 | AC28: 11 | AD28: - | AE28: - | AF28: - | AG28: 31 | AH28: 24 | AI28: 24 | AJ28: 24 | AM28: 0 | AN28: 0 | AO28: 2 | AP28: 3 | AQ28: 2 | AR28: 1 | AS28: 2 | AT28: 3 | AU28: 3 | AV28: 2 | AW28: 2 | AX28: 3 | AY28: 1 | AZ28: 0 | BA28: 0 | BB28: 0 | BC28: 0 | BD28: 0 | BG28: 2 | BJ28: 249 | BK28: 236 | BL28: 217 | BM28: 203 | BN28: 192 | BO28: 183 | BP28: 122 | BZ28: - | CA28: - | CB28: - | CC28: 2 | CE28: 1402 | EP28: 24 | ER28: 24 | ES28: (31)
A29: 25 (32) | B29: Dan Madayang | C29: Korpen Åseda | D29: 1395 | F29: 5 | G29: 139.5 | N29: 285 | P29: 230 | R29: 288 | T29: 276 | U29: 316 | AC29: 11 | AD29: - | AE29: - | AF29: - | AG29: 32 | AH29: 25 | AI29: 25 | AJ29: 25 | AM29: 0 | AN29: 0 | AO29: 1 | AP29: 1 | AQ29: 1 | AR29: 2 | AS29: 2 | AT29: 2 | AU29: 3 | AV29: 2 | AW29: 2 | AX29: 3 | AY29: 1 | AZ29: 0 | BA29: 0 | BB29: 0 | BC29: 0 | BD29: 0 | BG29: 2 | BJ29: 316 | BK29: 288 | BL29: 285 | BM29: 276 | BN29: 230 | BZ29: - | CA29: - | CB29: - | CC29: 4 | CE29: 1395 | EP29: 25 | ER29: 25 | ES29: (32)
A30: 26 (33) | B30: Johan Johansson | C30: Tingsryd | D30: 1386 | F30: 5 | G30: 138.6 | K30: 228 | L30: 371 | N30: 291 | P30: 277 | R30: 219 | AC30: 11 | AD30: - | AE30: - | AF30: - | AG30: 33 | AH30: 26 | AI30: 26 | AJ30: 26 | AM30: 0 | AN30: 0 | AO30: 2 | AP30: 3 | AQ30: 2 | AR30: 2 | AS30: 2 | AT30: 2 | AU30: 3 | AV30: 2 | AW30: 1 | AX30: 1 | AY30: 0 | AZ30: 0 | BA30: 0 | BB30: 0 | BC30: 0 | BD30: 0 | BG30: 2 | BJ30: 371 | BK30: 291 | BL30: 277 | BM30: 228 | BN30: 219 | BZ30: - | CA30: - | CB30: - | CC30: 4 | CE30: 1386 | EP30: 26 | ER30: 26 | ES30: (33)
A31: 27 (34) | B31: Bengt Andersson | C31: Växjö Hsk | D31: 1376 | F31: 6 | G31: 114.6666667 | K31: 184 | L31: 203 | P31: 251 | R31: 317 | T31: 200 | U31: 221 | AC31: 11 | AD31: - | AE31: - | AF31: - | AG31: 34 | AH31: 27 | AI31: 27 | AJ31: 27 | AM31: 0 | AN31: 0 | AO31: 2 | AP31: 3 | AQ31: 2 | AR31: 1 | AS31: 1 | AT31: 2 | AU31: 3 | AV31: 2 | AW31: 2 | AX31: 3 | AY31: 1 | AZ31: 0 | BA31: 0 | BB31: 0 | BC31: 0 | BD31: 0 | BG31: 2 | BJ31: 317 | BK31: 251 | BL31: 221 | BM31: 203 | BN31: 200 | BO31: 184 | BZ31: - | CA31: - | CB31: - | CC31: 3 | CE31: 1376 | EP31: 27 | ER31: 27 | ES31: (34)
A32: 28 (22) | B32: Berndt Pettersson | C32: Lanternan | D32: 1371 | F32: 7 | G32: 97.92857143 | K32: 250 | L32: 195 | O32: 156 | P32: 176 | R32: 219 | T32: 186 | U32: 189 | AC32: 11 | AD32: - | AE32: - | AF32: - | AG32: 22 | AH32: 28 | AI32: 28 | AJ32: 28 | AM32: 0 | AN32: 0 | AO32: 2 | AP32: 3 | AQ32: 2 | AR32: 1 | AS32: 2 | AT32: 3 | AU32: 3 | AV32: 2 | AW32: 2 | AX32: 3 | AY32: 1 | AZ32: 0 | BA32: 0 | BB32: 0 | BC32: 0 | BD32: 0 | BG32: 2 | BJ32: 250 | BK32: 219 | BL32: 195 | BM32: 189 | BN32: 186 | BO32: 176 | BP32: 156 | BZ32: - | CA32: - | CB32: - | CC32: 2 | CE32: 1371 | EP32: 28 | ER32: 28 | ES32: (22)
A33: 29 (35) | B33: Göran Olofsson | C33: Korpen Nybro | D33: 1360 | F33: 7 | G33: 97.14285714 | K33: 217 | L33: 230 | N33: 145 | P33: 192 | R33: 157 | T33: 278 | U33: 141 | AC33: 11 | AD33: - | AE33: - | AF33: - | AG33: 35 | AH33: 29 | AI33: 29 | AJ33: 29 | AM33: 0 | AN33: 0 | AO33: 2 | AP33: 3 | AQ33: 2 | AR33: 2 | AS33: 2 | AT33: 2 | AU33: 3 | AV33: 2 | AW33: 2 | AX33: 3 | AY33: 1 | AZ33: 0 | BA33: 0 | BB33: 0 | BC33: 0 | BD33: 0 | BG33: 2 | BJ33: 278 | BK33: 230 | BL33: 217 | BM33: 192 | BN33: 157 | BO33: 145 | BP33: 141 | BZ33: - | CA33: - | CB33: - | CC33: 2 | CE33: 1360 | EP33: 29 | ER33: 29 | ES33: (35)
A34: 30 (25) | B34: Kristian Jältsäter | C34: Vaxholm Hsk | D34: 1345 | F34: 6 | G34: 112.0833333 | K34: 169 | L34: 252 | M34: 242 | Q34: 254 | S34: 229 | U34: 199 | AC34: 11 | AD34: - | AE34: - | AF34: - | AG34: 25 | AH34: 30 | AI34: 30 | AJ34: 30 | AM34: 0 | AN34: 0 | AO34: 2 | AP34: 3 | AQ34: 3 | AR34: 2 | AS34: 1 | AT34: 1 | AU34: 1 | AV34: 2 | AW34: 2 | AX34: 2 | AY34: 1 | AZ34: 0 | BA34: 0 | BB34: 0 | BC34: 0 | BD34: 0 | BG34: 2 | BJ34: 254 | BK34: 252 | BL34: 242 | BM34: 229 | BN34: 199 | BO34: 169 | BZ34: - | CA34: - | CB34: - | CC34: 3 | CE34: 1345 | EP34: 30 | ER34: 30 | ES34: (25)
A35: 31 (20) | B35: Mathias Karlberg | C35: Jämjö Hsk | D35: 1310 | F35: 5 | G35: 131 | K35: 232 | L35: 178 | O35: 424 | P35: 205 | U35: 271 | AC35: 11 | AD35: - | AE35: - | AF35: - | AG35: 20 | AH35: 31 | AI35: 31 | AJ35: 31 | AM35: 0 | AN35: 0 | AO35: 2 | AP35: 3 | AQ35: 2 | AR35: 1 | AS35: 2 | AT35: 3 | AU35: 2 | AV35: 1 | AW35: 1 | AX35: 2 | AY35: 1 | AZ35: 0 | BA35: 0 | BB35: 0 | BC35: 0 | BD35: 0 | BG35: 2 | BJ35: 424 | BK35: 271 | BL35: 232 | BM35: 205 | BN35: 178 | BZ35: - | CA35: - | CB35: - | CC35: 4 | CE35: 1310 | EP35: 31 | ER35: 31 | ES35: (20)
A36: 32 (23) | B36: Lars-Erik Ottosson | C36: Lanternan | D36: 1288 | F36: 5 | G36: 128.8 | K36: 270 | L36: 209 | O36: 324 | P36: 271 | U36: 214 | AC36: 11 | AD36: - | AE36: - | AF36: - | AG36: 23 | AH36: 32 | AI36: 32 | AJ36: 32 | AM36: 0 | AN36: 0 | AO36: 2 | AP36: 3 | AQ36: 2 | AR36: 1 | AS36: 2 | AT36: 3 | AU36: 2 | AV36: 1 | AW36: 1 | AX36: 2 | AY36: 1 | AZ36: 0 | BA36: 0 | BB36: 0 | BC36: 0 | BD36: 0 | BG36: 2 | BJ36: 324 | BK36: 271 | BL36: 270 | BM36: 214 | BN36: 209 | BZ36: - | CA36: - | CB36: - | CC36: 4 | CE36: 1288 | EP36: 32 | ER36: 32 | ES36: (23)
A37: 33 (26) | B37: Göran Mårtensson | C37: Jämjö Hsk | D37: 1273 | F37: 6 | G37: 106.0833333 | K37: 231 | L37: 233 | O37: 241 | P37: 142 | T37: 235 | U37: 191 | AC37: 11 | AD37: - | AE37: - | AF37: - | AG37: 26 | AH37: 33 | AI37: 33 | AJ37: 33 | AM37: =COUNT($I$3,I37,H37) -> 0 | AN37: =COUNT($J$3,J37,I37) -> 0 | AO37: =COUNT($K$3,K37,J37) -> 2 | AP37: =COUNT($L$3,L37,K37) -> 3 | AQ37: =COUNT($M$3,M37,L37) -> 2 | AR37: =COUNT($N$3,N37,M37) -> 1 | AS37: =COUNT($O$3,O37,N37) -> 2 | AT37: =COUNT($P$3,P37,O37) -> 3 | AU37: =COUNT($R$3,R37,P37) -> 2 | AV37: =COUNT($S$3,S37,R37) -> 1 | AW37: =COUNT($T$3,T37,S37) -> 2 | AX37: =COUNT($U$3,U37,T37) -> 3 | AY37: =COUNT($V$3,V37,U37) -> 1 | AZ37: =COUNT($W$3,W37,V37) -> 0 | BA37: =COUNT($X$3,X37,W37) -> 0 | BB37: =COUNT($Y$3,Y37,X37) -> 0 | BC37: =COUNT($AA$3,AA37,Y37) -> 0 | BD37: =COUNT($AB$3,AB37,AA37) -> 0 | BG37: =IF(H37="x",1,2) -> 2 | BJ37: =IF($F37>0,LARGE($I37:$AB37,1),"") -> 241 | BK37: =IF($F37>1,LARGE($I37:$AB37,2),"") -> 235 | BL37: =IF($F37>2,LARGE($I37:$AB37,3),"") -> 233 | BM37: =IF($F37>3,LARGE($I37:$AB37,4),"") -> 231 | BN37: =IF($F37>4,LARGE($I37:$AB37,5),"") -> 191 | BO37: =IF($F37>5,LARGE($I37:$AB37,6),"") -> 142 | BP37: =IF($F37>6,LARGE($I37:$AB37,7),"") ->  | BQ37: =IF($F37>7,LARGE($I37:$AB37,8),"") ->  | BR37: =IF($F37>8,LARGE($I37:$AB37,9),"") ->  | BS37: =IF($F37>9,LARGE($I37:$AB37,10),"") ->  | BT37: =IF($F37>10,LARGE($I37:$AB37,11),"") ->  | BU37: =IF($F37>11,LARGE($I37:$AB37,12),"") ->  | BV37: =IF($F37>12,LARGE($I37:$AB37,13),"") ->  | BW37: =IF($F37>13,LARGE($I37:$AB37,14),"") ->  | BX37: =IF($F37>14,LARGE($I37:$AB37,15),"") ->  | BY37: =IF($F37>15,LARGE($I37:$AB37,16),"") ->  | BZ37: =IF($F37>12,LARGE($I37:$AB37,13),"-") -> - | CA37: =IF($F37>13,LARGE($I37:$AB37,14),"-") -> - | CB37: =IF($F37>14,LARGE($I37:$AB37,15),"-") -> - | CC37: =SUM(AC37-F37)-2 -> 3 | CE37: 1273 | EP37: 33 | ER37: =IF(BG37>=1,AH37,"") -> 33 | ES37: (26)
A38: 34 (39) | B38: Björn Gabrielsson | C38: Vaxholm Hsk | D38: 1259 | F38: 6 | G38: 104.9166667 | K38: 205 | L38: 183 | M38: 195 | Q38: 219 | S38: 222 | U38: 235 | AC38: 11 | AD38: - | AE38: - | AF38: - | AG38: 39 | AH38: 34 | AI38: 34 | AJ38: 34 | AM38: 0 | AN38: 0 | AO38: 2 | AP38: 3 | AQ38: 3 | AR38: 2 | AS38: 1 | AT38: 1 | AU38: 1 | AV38: 2 | AW38: 2 | AX38: 2 | AY38: 1 | AZ38: 0 | BA38: 0 | BB38: 0 | BC38: 0 | BD38: 0 | BG38: 2 | BJ38: 235 | BK38: 222 | BL38: 219 | BM38: 205 | BN38: 195 | BO38: 183 | BZ38: - | CA38: - | CB38: - | CC38: 3 | CE38: 1259 | EP38: 34 | ER38: 34 | ES38: (39)
A39: 35 (28) | B39: Ingegerd Pettersson | C39: Lanternan | D39: 1247 | F39: 7 | G39: 89.07142857 | K39: 134 | L39: 76 | O39: 258 | P39: 154 | R39: 193 | T39: 228 | U39: 204 | AC39: 11 | AD39: - | AE39: - | AF39: - | AG39: 28 | AH39: 35 | AI39: 35 | AJ39: 35 | AM39: 0 | AN39: 0 | AO39: 2 | AP39: 3 | AQ39: 2 | AR39: 1 | AS39: 2 | AT39: 3 | AU39: 3 | AV39: 2 | AW39: 2 | AX39: 3 | AY39: 1 | AZ39: 0 | BA39: 0 | BB39: 0 | BC39: 0 | BD39: 0 | BG39: 2 | BJ39: 258 | BK39: 228 | BL39: 204 | BM39: 193 | BN39: 154 | BO39: 134 | BP39: 76 | BZ39: - | CA39: - | CB39: - | CC39: 2 | CE39: 1247 | EP39: 35 | ER39: 35 | ES39: (28)
A40: 36 (40) | B40: Sebastian Israelsson | C40: Sibbamåla | D40: 1244 | F40: 5 | G40: 124.4 | K40: 213 | L40: 159 | P40: 352 | T40: 236 | U40: 284 | AC40: 11 | AD40: - | AE40: - | AF40: - | AG40: 40 | AH40: 36 | AI40: 36 | AJ40: 36 | AM40: 0 | AN40: 0 | AO40: 2 | AP40: 3 | AQ40: 2 | AR40: 1 | AS40: 1 | AT40: 2 | AU40: 2 | AV40: 1 | AW40: 2 | AX40: 3 | AY40: 1 | AZ40: 0 | BA40: 0 | BB40: 0 | BC40: 0 | BD40: 0 | BG40: 2 | BJ40: 352 | BK40: 284 | BL40: 236 | BM40: 213 | BN40: 159 | BZ40: - | CA40: - | CB40: - | CC40: 4 | CE40: 1244 | EP40: 36 | ER40: 36 | ES40: (40)
A41: 37 (44) | B41: Lisbeth Nygaard-Karlsson | C41: Tingsryd | D41: 1192 | F41: 6 | G41: 99.33333333 | K41: 257 | L41: 169 | N41: 200 | P41: 216 | R41: 232 | U41: 118 | AC41: 11 | AD41: - | AE41: - | AF41: - | AG41: 44 | AH41: 37 | AI41: 37 | AJ41: 37 | AM41: 0 | AN41: 0 | AO41: 2 | AP41: 3 | AQ41: 2 | AR41: 2 | AS41: 2 | AT41: 2 | AU41: 3 | AV41: 2 | AW41: 1 | AX41: 2 | AY41: 1 | AZ41: 0 | BA41: 0 | BB41: 0 | BC41: 0 | BD41: 0 | BG41: 2 | BJ41: 257 | BK41: 232 | BL41: 216 | BM41: 200 | BN41: 169 | BO41: 118 | BZ41: - | CA41: - | CB41: - | CC41: 3 | CE41: 1192 | EP41: 37 | ER41: 37 | ES41: (44)
A42: 38 (36) | B42: Bengt Fabbeke | C42: Dynapac | D42: 1170 | F42: 6 | G42: 97.5 | K42: 191 | L42: 231 | O42: 150 | P42: 187 | R42: 247 | U42: 164 | AC42: 11 | AD42: - | AE42: - | AF42: - | AG42: 36 | AH42: 38 | AI42: 38 | AJ42: 38 | AM42: 0 | AN42: 0 | AO42: 2 | AP42: 3 | AQ42: 2 | AR42: 1 | AS42: 2 | AT42: 3 | AU42: 3 | AV42: 2 | AW42: 1 | AX42: 2 | AY42: 1 | AZ42: 0 | BA42: 0 | BB42: 0 | BC42: 0 | BD42: 0 | BG42: 2 | BJ42: 247 | BK42: 231 | BL42: 191 | BM42: 187 | BN42: 164 | BO42: 150 | BZ42: - | CA42: - | CB42: - | CC42: 3 | CE42: 1170 | EP42: 38 | ER42: 38 | ES42: (36)
A43: 39 (46) | B43: Maria Andersson | C43: Team Småland | D43: 1167 | F43: 8 | G43: 72.9375 | K43: 163 | L43: 132 | M43: 140 | N43: 132 | P43: 165 | R43: 99 | T43: 160 | U43: 176 | AC43: 11 | AD43: - | AE43: - | AF43: - | AG43: 46 | AH43: 39 | AI43: 39 | AJ43: 39 | AM43: 0 | AN43: 0 | AO43: 2 | AP43: 3 | AQ43: 3 | AR43: 3 | AS43: 2 | AT43: 2 | AU43: 3 | AV43: 2 | AW43: 2 | AX43: 3 | AY43: 1 | AZ43: 0 | BA43: 0 | BB43: 0 | BC43: 0 | BD43: 0 | BG43: 2 | BJ43: 176 | BK43: 165 | BL43: 163 | BM43: 160 | BN43: 140 | BO43: 132 | BP43: 132 | BQ43: 99 | BZ43: - | CA43: - | CB43: - | CC43: 1 | CE43: 1167 | EP43: 39 | ER43: 39 | ES43: (46)
A44: 40 (47) | B44: Bela Bodi | C44: Växjö | D44: 1129 | F44: 6 | G44: 94.08333333 | K44: 153 | L44: 181 | M44: 154 | R44: 161 | T44: 210 | U44: 270 | AC44: 11 | AD44: - | AE44: - | AF44: - | AG44: 47 | AH44: 40 | AI44: 40 | AJ44: 40 | AM44: 0 | AN44: 0 | AO44: 2 | AP44: 3 | AQ44: 3 | AR44: 2 | AS44: 1 | AT44: 1 | AU44: 2 | AV44: 2 | AW44: 2 | AX44: 3 | AY44: 1 | AZ44: 0 | BA44: 0 | BB44: 0 | BC44: 0 | BD44: 0 | BG44: 2 | BJ44: 270 | BK44: 210 | BL44: 181 | BM44: 161 | BN44: 154 | BO44: 153 | BZ44: - | CA44: - | CB44: - | CC44: 3 | CE44: 1129 | EP44: 40 | ER44: 40 | ES44: (47)
A45: 41 (48) | B45: Janne Johansson | C45: Tingsryd | D45: 1105 | F45: 5 | G45: 110.5 | K45: 211 | L45: 261 | P45: 228 | T45: 211 | U45: 194 | AC45: 11 | AD45: - | AE45: - | AF45: - | AG45: 48 | AH45: 41 | AI45: 41 | AJ45: 41 | AM45: 0 | AN45: 0 | AO45: 2 | AP45: 3 | AQ45: 2 | AR45: 1 | AS45: 1 | AT45: 2 | AU45: 2 | AV45: 1 | AW45: 2 | AX45: 3 | AY45: 1 | AZ45: 0 | BA45: 0 | BB45: 0 | BC45: 0 | BD45: 0 | BG45: 2 | BJ45: 261 | BK45: 228 | BL45: 211 | BM45: 211 | BN45: 194 | BZ45: - | CA45: - | CB45: - | CC45: 4 | CE45: 1105 | EP45: 41 | ER45: 41 | ES45: (48)
A46: 42 (30) | B46: Carina Gneupel | C46: Sibbamåla | D46: 1100 | F46: 5 | G46: 110 | K46: 222 | L46: 239 | P46: 201 | S46: 189 | U46: 249 | AC46: 11 | AD46: - | AE46: - | AF46: - | AG46: 30 | AH46: 42 | AI46: 42 | AJ46: 42 | AM46: 0 | AN46: 0 | AO46: 2 | AP46: 3 | AQ46: 2 | AR46: 1 | AS46: 1 | AT46: 2 | AU46: 2 | AV46: 2 | AW46: 2 | AX46: 2 | AY46: 1 | AZ46: 0 | BA46: 0 | BB46: 0 | BC46: 0 | BD46: 0 | BG46: 2 | BJ46: 249 | BK46: 239 | BL46: 222 | BM46: 201 | BN46: 189 | BZ46: - | CA46: - | CB46: - | CC46: 4 | CE46: 1100 | EP46: 42 | ER46: 42 | ES46: (30)
A47: 43 (51) | B47: Maire Johansson | C47: Växjö | D47: 1096 | F47: 5 | G47: 109.6 | N47: 182 | P47: 223 | R47: 231 | T47: 241 | U47: 219 | AC47: 11 | AD47: - | AE47: - | AF47: - | AG47: 51 | AH47: 43 | AI47: 43 | AJ47: 43 | AM47: 0 | AN47: 0 | AO47: 1 | AP47: 1 | AQ47: 1 | AR47: 2 | AS47: 2 | AT47: 2 | AU47: 3 | AV47: 2 | AW47: 2 | AX47: 3 | AY47: 1 | AZ47: 0 | BA47: 0 | BB47: 0 | BC47: 0 | BD47: 0 | BG47: 2 | BJ47: 241 | BK47: 231 | BL47: 223 | BM47: 219 | BN47: 182 | BZ47: - | CA47: - | CB47: - | CC47: 4 | CE47: 1096 | EP47: 43 | ER47: 43 | ES47: (51)
A48: 44 (38) | B48: Pascal Letter | C48: Balders HSK | D48: 1078 | F48: 5 | G48: 107.8 | K48: 251 | L48: 161 | M48: 168 | Q48: 268 | S48: 230 | AC48: 11 | AD48: - | AE48: - | AF48: - | AG48: 38 | AH48: 44 | AI48: 44 | AJ48: 44 | AM48: 0 | AN48: 0 | AO48: 2 | AP48: 3 | AQ48: 3 | AR48: 2 | AS48: 1 | AT48: 1 | AU48: 1 | AV48: 2 | AW48: 2 | AX48: 1 | AY48: 0 | AZ48: 0 | BA48: 0 | BB48: 0 | BC48: 0 | BD48: 0 | BG48: 2 | BJ48: 268 | BK48: 251 | BL48: 230 | BM48: 168 | BN48: 161 | BZ48: - | CA48: - | CB48: - | CC48: 4 | CE48: 1078 | EP48: 44 | ER48: 44 | ES48: (38)
A49: 45 (37) | B49: Mattias Olsson | C49: Dynapac | D49: 1054 | F49: 4 | G49: 131.75 | K49: 303 | L49: 220 | P49: 194 | U49: 337 | AC49: 11 | AD49: - | AE49: - | AF49: - | AG49: 37 | AH49: 45 | AI49: 45 | AJ49: 45 | AM49: 0 | AN49: 0 | AO49: 2 | AP49: 3 | AQ49: 2 | AR49: 1 | AS49: 1 | AT49: 2 | AU49: 2 | AV49: 1 | AW49: 1 | AX49: 2 | AY49: 1 | AZ49: 0 | BA49: 0 | BB49: 0 | BC49: 0 | BD49: 0 | BG49: 2 | BJ49: 337 | BK49: 303 | BL49: 220 | BM49: 194 | BZ49: - | CA49: - | CB49: - | CC49: 5 | CE49: 1054 | EP49: 45 | ER49: 45 | ES49: (37)
A50: 46 (42) | B50: Elin Olsson | C50: Dynapac | D50: 1050 | F50: 5 | G50: 105 | K50: 162 | L50: 160 | P50: 199 | R50: 283 | U50: 246 | AC50: 11 | AD50: - | AE50: - | AF50: - | AG50: 42 | AH50: 46 | AI50: 46 | AJ50: 46 | AM50: 0 | AN50: 0 | AO50: 2 | AP50: 3 | AQ50: 2 | AR50: 1 | AS50: 1 | AT50: 2 | AU50: 3 | AV50: 2 | AW50: 1 | AX50: 2 | AY50: 1 | AZ50: 0 | BA50: 0 | BB50: 0 | BC50: 0 | BD50: 0 | BG50: 2 | BJ50: 283 | BK50: 246 | BL50: 199 | BM50: 162 | BN50: 160 | BZ50: - | CA50: - | CB50: - | CC50: 4 | CE50: 1050 | EP50: 46 | ER50: 46 | ES50: (42)
A51: 47 (45) | B51: Hernan Hernandez | C51: Jämjö Hsk | D51: 1036 | F51: 6 | G51: 86.33333333 | K51: 165 | L51: 159 | O51: 203 | P51: 134 | T51: 228 | U51: 147 | AC51: 11 | AD51: - | AE51: - | AF51: - | AG51: 45 | AH51: 47 | AI51: 47 | AJ51: 47 | AM51: 0 | AN51: 0 | AO51: 2 | AP51: 3 | AQ51: 2 | AR51: 1 | AS51: 2 | AT51: 3 | AU51: 2 | AV51: 1 | AW51: 2 | AX51: 3 | AY51: 1 | AZ51: 0 | BA51: 0 | BB51: 0 | BC51: 0 | BD51: 0 | BG51: 2 | BJ51: 228 | BK51: 203 | BL51: 165 | BM51: 159 | BN51: 147 | BO51: 134 | BZ51: - | CA51: - | CB51: - | CC51: 3 | CE51: 1036 | EP51: 47 | ER51: 47 | ES51: (45)
A52: 48 (41) | B52: Louise Tollstam | C52: Dynapac | D52: 1025 | F52: 5 | G52: 102.5 | K52: 179 | L52: 218 | O52: 199 | P52: 149 | U52: 280 | AC52: 11 | AD52: - | AE52: - | AF52: - | AG52: 41 | AH52: 48 | AI52: 48 | AJ52: 48 | AM52: 0 | AN52: 0 | AO52: 2 | AP52: 3 | AQ52: 2 | AR52: 1 | AS52: 2 | AT52: 3 | AU52: 2 | AV52: 1 | AW52: 1 | AX52: 2 | AY52: 1 | AZ52: 0 | BA52: 0 | BB52: 0 | BC52: 0 | BD52: 0 | BG52: 2 | BJ52: 280 | BK52: 218 | BL52: 199 | BM52: 179 | BN52: 149 | BZ52: - | CA52: - | CB52: - | CC52: 4 | CE52: 1025 | EP52: 48 | ER52: 48 | ES52: (41)
A53: 49 (57) | B53: Bo Petersson | C53: Korpen Nybro | D53: 1017 | F53: 5 | G53: 101.7 | L53: 187 | P53: 214 | R53: 148 | T53: 231 | U53: 237 | AC53: 11 | AD53: - | AE53: - | AF53: - | AG53: 57 | AH53: 49 | AI53: 49 | AJ53: 49 | AM53: 0 | AN53: 0 | AO53: 1 | AP53: 2 | AQ53: 2 | AR53: 1 | AS53: 1 | AT53: 2 | AU53: 3 | AV53: 2 | AW53: 2 | AX53: 3 | AY53: 1 | AZ53: 0 | BA53: 0 | BB53: 0 | BC53: 0 | BD53: 0 | BG53: 2 | BJ53: 237 | BK53: 231 | BL53: 214 | BM53: 187 | BN53: 148 | BZ53: - | CA53: - | CB53: - | CC53: 4 | CE53: 1017 | EP53: 49 | ER53: 49 | ES53: (57)
A54: 50 (58) | B54: Fredrik Sandelius | C54: Balders HSK | D54: 1006 | F54: 5 | G54: 100.6 | K54: 181 | L54: 230 | M54: 173 | Q54: 258 | S54: 164 | AC54: 11 | AD54: - | AE54: - | AF54: - | AG54: 58 | AH54: 50 | AI54: 50 | AJ54: 50 | AM54: 0 | AN54: 0 | AO54: 2 | AP54: 3 | AQ54: 3 | AR54: 2 | AS54: 1 | AT54: 1 | AU54: 1 | AV54: 2 | AW54: 2 | AX54: 1 | AY54: 0 | AZ54: 0 | BA54: 0 | BB54: 0 | BC54: 0 | BD54: 0 | BG54: 2 | BJ54: 258 | BK54: 230 | BL54: 181 | BM54: 173 | BN54: 164 | BZ54: - | CA54: - | CB54: - | CC54: 4 | CE54: 1006 | EP54: 50 | ER54: 50 | ES54: (58)
A55: 51 (59) | B55: Gilbert Pettersson | C55: Lanternan | D55: 968 | F55: 5 | G55: 96.8 | L55: 226 | O55: 170 | P55: 155 | R55: 240 | U55: 177 | AC55: 11 | AD55: - | AE55: - | AF55: - | AG55: 59 | AH55: 51 | AI55: 51 | AJ55: 51 | AM55: 0 | AN55: 0 | AO55: 1 | AP55: 2 | AQ55: 2 | AR55: 1 | AS55: 2 | AT55: 3 | AU55: 3 | AV55: 2 | AW55: 1 | AX55: 2 | AY55: 1 | AZ55: 0 | BA55: 0 | BB55: 0 | BC55: 0 | BD55: 0 | BG55: 2 | BJ55: 240 | BK55: 226 | BL55: 177 | BM55: 170 | BN55: 155 | BZ55: - | CA55: - | CB55: - | CC55: 4 | CE55: 968 | EP55: 51 | ER55: 51 | ES55: (59)
A56: 52 (60) | B56: Thomas Dahl | C56: Växjö | D56: 965 | F56: 7 | G56: 68.92857143 | K56: 201 | L56: 106 | N56: 173 | P56: 61 | R56: 140 | T56: 175 | U56: 109 | AC56: 11 | AD56: - | AE56: - | AF56: - | AG56: 60 | AH56: 52 | AI56: 52 | AJ56: 52 | AM56: 0 | AN56: 0 | AO56: 2 | AP56: 3 | AQ56: 2 | AR56: 2 | AS56: 2 | AT56: 2 | AU56: 3 | AV56: 2 | AW56: 2 | AX56: 3 | AY56: 1 | AZ56: 0 | BA56: 0 | BB56: 0 | BC56: 0 | BD56: 0 | BG56: 2 | BJ56: 201 | BK56: 175 | BL56: 173 | BM56: 140 | BN56: 109 | BO56: 106 | BP56: 61 | BZ56: - | CA56: - | CB56: - | CC56: 2 | CE56: 965 | EP56: 52 | ER56: 52 | ES56: (60)
A57: 53 (50) | B57: Roy Dahlén | C57: Dynapac | D57: 945 | F57: 5 | G57: 94.5 | K57: 130 | L57: 225 | M57: 179 | O57: 225 | P57: 186 | AC57: 11 | AD57: - | AE57: - | AF57: - | AG57: 50 | AH57: 53 | AI57: 53 | AJ57: 53 | AM57: 0 | AN57: 0 | AO57: 2 | AP57: 3 | AQ57: 3 | AR57: 2 | AS57: 2 | AT57: 3 | AU57: 2 | AV57: 1 | AW57: 1 | AX57: 1 | AY57: 0 | AZ57: 0 | BA57: 0 | BB57: 0 | BC57: 0 | BD57: 0 | BG57: 2 | BJ57: 225 | BK57: 225 | BL57: 186 | BM57: 179 | BN57: 130 | BZ57: - | CA57: - | CB57: - | CC57: 4 | CE57: 945 | EP57: 53 | ER57: 53 | ES57: (50)
A58: 54 (61) | B58: Jonas Klarström | C58: Team Småland | D58: 928 | F58: 8 | G58: 58 | K58: 88 | L58: 111 | M58: 78 | N58: 113 | P58: 203 | R58: 92 | T58: 133 | U58: 110 | AC58: 11 | AD58: - | AE58: - | AF58: - | AG58: 61 | AH58: 54 | AI58: 54 | AJ58: 54 | AM58: 0 | AN58: 0 | AO58: 2 | AP58: 3 | AQ58: 3 | AR58: 3 | AS58: 2 | AT58: 2 | AU58: 3 | AV58: 2 | AW58: 2 | AX58: 3 | AY58: 1 | AZ58: 0 | BA58: 0 | BB58: 0 | BC58: 0 | BD58: 0 | BG58: 2 | BJ58: 203 | BK58: 133 | BL58: 113 | BM58: 111 | BN58: 110 | BO58: 92 | BP58: 88 | BQ58: 78 | BZ58: - | CA58: - | CB58: - | CC58: 1 | CE58: 928 | EP58: 54 | ER58: 54 | ES58: (61)
A59: 55 (62) | B59: Astrid Martinez | C59: Jämjö Hsk | D59: 900 | F59: 6 | G59: 75 | K59: 156 | L59: 166 | O59: 196 | P59: 123 | T59: 130 | U59: 129 | AC59: 11 | AD59: - | AE59: - | AF59: - | AG59: 62 | AH59: 55 | AI59: 55 | AJ59: 55 | AM59: 0 | AN59: 0 | AO59: 2 | AP59: 3 | AQ59: 2 | AR59: 1 | AS59: 2 | AT59: 3 | AU59: 2 | AV59: 1 | AW59: 2 | AX59: 3 | AY59: 1 | AZ59: 0 | BA59: 0 | BB59: 0 | BC59: 0 | BD59: 0 | BG59: 2 | BJ59: 196 | BK59: 166 | BL59: 156 | BM59: 130 | BN59: 129 | BO59: 123 | BZ59: - | CA59: - | CB59: - | CC59: 3 | CE59: 900 | EP59: 55 | ER59: 55 | ES59: (62)
A60: 56 (43) | B60: Daniel Mårtensson | C60: Jämjö Hsk | D60: 894 | F60: 5 | G60: 89.4 | K60: 163 | L60: 119 | O60: 207 | P60: 197 | T60: 208 | AC60: 11 | AD60: - | AE60: - | AF60: - | AG60: 43 | AH60: 56 | AI60: 56 | AJ60: 56 | AM60: 0 | AN60: 0 | AO60: 2 | AP60: 3 | AQ60: 2 | AR60: 1 | AS60: 2 | AT60: 3 | AU60: 2 | AV60: 1 | AW60: 2 | AX60: 2 | AY60: 0 | AZ60: 0 | BA60: 0 | BB60: 0 | BC60: 0 | BD60: 0 | BG60: 2 | BJ60: 208 | BK60: 207 | BL60: 197 | BM60: 163 | BN60: 119 | BZ60: - | CA60: - | CB60: - | CC60: 4 | CE60: 894 | EP60: 56 | ER60: 56 | ES60: (43)
A61: 56 (63) | B61: Günther Iraschko | C61: Växjö Hsk | D61: 894 | F61: 5 | G61: 89.4 | K61: 205 | L61: 104 | N61: 195 | P61: 152 | R61: 238 | AC61: 11 | AD61: - | AE61: - | AF61: - | AG61: 63 | AH61: 56 | AI61: 57 | AJ61: 57 | AM61: 0 | AN61: 0 | AO61: 2 | AP61: 3 | AQ61: 2 | AR61: 2 | AS61: 2 | AT61: 2 | AU61: 3 | AV61: 2 | AW61: 1 | AX61: 1 | AY61: 0 | AZ61: 0 | BA61: 0 | BB61: 0 | BC61: 0 | BD61: 0 | BG61: 2 | BJ61: 238 | BK61: 205 | BL61: 195 | BM61: 152 | BN61: 104 | BZ61: - | CA61: - | CB61: - | CC61: 4 | CE61: 894 | EP61: 57 | ER61: 56 | ES61: (63)
A62: 58 (54) | B62: Ewa Malmqvist | C62: Jämjö Hsk | D62: 888 | F62: 4 | G62: 111 | K62: 183 | O62: 194 | P62: 335 | R62: 176 | AC62: 11 | AD62: - | AE62: - | AF62: - | AG62: 54 | AH62: 58 | AI62: 58 | AJ62: 58 | AM62: 0 | AN62: 0 | AO62: 2 | AP62: 2 | AQ62: 1 | AR62: 1 | AS62: 2 | AT62: 3 | AU62: 3 | AV62: 2 | AW62: 1 | AX62: 1 | AY62: 0 | AZ62: 0 | BA62: 0 | BB62: 0 | BC62: 0 | BD62: 0 | BG62: 2 | BJ62: 335 | BK62: 194 | BL62: 183 | BM62: 176 | BZ62: - | CA62: - | CB62: - | CC62: 5 | CE62: 888 | EP62: 58 | ER62: 58 | ES62: (54)
A63: 59 (64) | B63: Solveig Axelsson | C63: Växjö Hsk | D63: 844 | F63: 6 | G63: 70.33333333 | K63: 132 | L63: 82 | N63: 153 | P63: 113 | R63: 164 | T63: 200 | AC63: 11 | AD63: - | AE63: - | AF63: - | AG63: 64 | AH63: 59 | AI63: 59 | AJ63: 59 | AM63: 0 | AN63: 0 | AO63: 2 | AP63: 3 | AQ63: 2 | AR63: 2 | AS63: 2 | AT63: 2 | AU63: 3 | AV63: 2 | AW63: 2 | AX63: 2 | AY63: 0 | AZ63: 0 | BA63: 0 | BB63: 0 | BC63: 0 | BD63: 0 | BG63: 2 | BJ63: 200 | BK63: 164 | BL63: 153 | BM63: 132 | BN63: 113 | BO63: 82 | BZ63: - | CA63: - | CB63: - | CC63: 3 | CE63: 844 | EP63: 59 | ER63: 59 | ES63: (64)
A64: 60 (52) | B64: Erik Smiding | C64: Vaxholm Hsk | D64: 837 | F64: 5 | G64: 83.7 | K64: 230 | L64: 134 | M64: 131 | Q64: 192 | S64: 150 | AC64: 11 | AD64: - | AE64: - | AF64: - | AG64: 52 | AH64: 60 | AI64: 60 | AJ64: 60 | AM64: 0 | AN64: 0 | AO64: 2 | AP64: 3 | AQ64: 3 | AR64: 2 | AS64: 1 | AT64: 1 | AU64: 1 | AV64: 2 | AW64: 2 | AX64: 1 | AY64: 0 | AZ64: 0 | BA64: 0 | BB64: 0 | BC64: 0 | BD64: 0 | BG64: 2 | BJ64: 230 | BK64: 192 | BL64: 150 | BM64: 134 | BN64: 131 | BZ64: - | CA64: - | CB64: - | CC64: 4 | CE64: 837 | EP64: 60 | ER64: 60 | ES64: (52)
A65: 61 (55) | B65: Lars Johanesson | C65: Jämjö Hsk | D65: 826 | F65: 5 | G65: 82.6 | K65: 109 | L65: 194 | O65: 193 | P65: 140 | T65: 190 | AC65: 11 | AD65: - | AE65: - | AF65: - | AG65: 55 | AH65: 61 | AI65: 61 | AJ65: 61 | AM65: 0 | AN65: 0 | AO65: 2 | AP65: 3 | AQ65: 2 | AR65: 1 | AS65: 2 | AT65: 3 | AU65: 2 | AV65: 1 | AW65: 2 | AX65: 2 | AY65: 0 | AZ65: 0 | BA65: 0 | BB65: 0 | BC65: 0 | BD65: 0 | BG65: 2 | BJ65: 194 | BK65: 193 | BL65: 190 | BM65: 140 | BN65: 109 | BZ65: - | CA65: - | CB65: - | CC65: 4 | CE65: 826 | EP65: 61 | ER65: 61 | ES65: (55)
A66: 62 (49) | B66: Bernt Olsson | C66: Jämjö Hsk | D66: 821 | F66: 4 | G66: 102.625 | K66: 212 | O66: 174 | P66: 193 | R66: 242 | AC66: 11 | AD66: - | AE66: - | AF66: - | AG66: 49 | AH66: 62 | AI66: 62 | AJ66: 62 | AM66: 0 | AN66: 0 | AO66: 2 | AP66: 2 | AQ66: 1 | AR66: 1 | AS66: 2 | AT66: 3 | AU66: 3 | AV66: 2 | AW66: 1 | AX66: 1 | AY66: 0 | AZ66: 0 | BA66: 0 | BB66: 0 | BC66: 0 | BD66: 0 | BG66: 2 | BJ66: 242 | BK66: 212 | BL66: 193 | BM66: 174 | BZ66: - | CA66: - | CB66: - | CC66: 5 | CE66: 821 | EP66: 62 | ER66: 62 | ES66: (49)
A67: 63 (56) | B67: Inge Skoglöv | C67: Jämjö Hsk | D67: 817 | F67: 4 | G67: 102.125 | K67: 239 | L67: 194 | T67: 183 | U67: 201 | AC67: 11 | AD67: - | AE67: - | AF67: - | AG67: 56 | AH67: 63 | AI67: 63 | AJ67: 63 | AM67: 0 | AN67: 0 | AO67: 2 | AP67: 3 | AQ67: 2 | AR67: 1 | AS67: 1 | AT67: 1 | AU67: 1 | AV67: 1 | AW67: 2 | AX67: 3 | AY67: 1 | AZ67: 0 | BA67: 0 | BB67: 0 | BC67: 0 | BD67: 0 | BG67: 2 | BJ67: 239 | BK67: 201 | BL67: 194 | BM67: 183 | BZ67: - | CA67: - | CB67: - | CC67: 5 | CE67: 817 | EP67: 63 | ER67: 63 | ES67: (56)
A68: 64 (53) | B68: Jan Petersson | C68: Lanternan | D68: 811 | F68: 5 | G68: 81.1 | K68: 150 | L68: 151 | O68: 168 | P68: 169 | R68: 173 | AC68: 11 | AD68: - | AE68: - | AF68: - | AG68: 53 | AH68: 64 | AI68: 64 | AJ68: 64 | AM68: 0 | AN68: 0 | AO68: 2 | AP68: 3 | AQ68: 2 | AR68: 1 | AS68: 2 | AT68: 3 | AU68: 3 | AV68: 2 | AW68: 1 | AX68: 1 | AY68: 0 | AZ68: 0 | BA68: 0 | BB68: 0 | BC68: 0 | BD68: 0 | BG68: 2 | BJ68: 173 | BK68: 169 | BL68: 168 | BM68: 151 | BN68: 150 | BZ68: - | CA68: - | CB68: - | CC68: 4 | CE68: 811 | EP68: 64 | ER68: 64 | ES68: (53)
A69: =IF(BG69>1,AH69&" ("&AG69&")",AH69&" ("&AI69&")") -> 65 (65) | B69: Åke Bergqvist | C69: Tingsryd | D69: =SUM(BJ69:BU69) -> 771 | F69: =COUNT(I69:AB69) -> 4 | G69: =SUM((CE69)/(F69*2)) -> 96.375 | P69: 207 | R69: 169 | T69: 131 | U69: 264 | AC69: =SUM($I$3:$AB$3) -> 11 | AD69: =BZ69 -> - | AE69: =CA69 -> - | AF69: =CB69 -> - | AG69: 65 | AH69: =IF(D69<D68,AJ69,AH68) -> 65 | AI69: =IF(F69>1,ROW(65:65),"-") -> 65 | AJ69: 65 | AM69: =COUNT($I$3,I69,H69) -> 0 | AN69: =COUNT($J$3,J69,I69) -> 0 | AO69: =COUNT($K$3,K69,J69) -> 1 | AP69: =COUNT($L$3,L69,K69) -> 1 | AQ69: =COUNT($M$3,M69,L69) -> 1 | AR69: =COUNT($N$3,N69,M69) -> 1 | AS69: =COUNT($O$3,O69,N69) -> 1 | AT69: =COUNT($P$3,P69,O69) -> 2 | AU69: =COUNT($R$3,R69,P69) -> 3 | AV69: =COUNT($S$3,S69,R69) -> 2 | AW69: =COUNT($T$3,T69,S69) -> 2 | AX69: =COUNT($U$3,U69,T69) -> 3 | AY69: =COUNT($V$3,V69,U69) -> 1 | AZ69: =COUNT($W$3,W69,V69) -> 0 | BA69: =COUNT($X$3,X69,W69) -> 0 | BB69: =COUNT($Y$3,Y69,X69) -> 0 | BC69: =COUNT($AA$3,AA69,Y69) -> 0 | BD69: =COUNT($AB$3,AB69,AA69) -> 0 | BG69: =IF(H69="x",1,2) -> 2 | BJ69: =IF($F69>0,LARGE($I69:$AB69,1),"") -> 264 | BK69: =IF($F69>1,LARGE($I69:$AB69,2),"") -> 207 | BL69: =IF($F69>2,LARGE($I69:$AB69,3),"") -> 169 | BM69: =IF($F69>3,LARGE($I69:$AB69,4),"") -> 131 | BN69: =IF($F69>4,LARGE($I69:$AB69,5),"") ->  | BO69: =IF($F69>5,LARGE($I69:$AB69,6),"") ->  | BP69: =IF($F69>6,LARGE($I69:$AB69,7),"") ->  | BQ69: =IF($F69>7,LARGE($I69:$AB69,8),"") ->  | BR69: =IF($F69>8,LARGE($I69:$AB69,9),"") ->  | BS69: =IF($F69>9,LARGE($I69:$AB69,10),"") ->  | BT69: =IF($F69>10,LARGE($I69:$AB69,11),"") ->  | BU69: =IF($F69>11,LARGE($I69:$AB69,12),"") ->  | BV69: =IF($F69>12,LARGE($I69:$AB69,13),"") ->  | BW69: =IF($F69>13,LARGE($I69:$AB69,14),"") ->  | BX69: =IF($F69>14,LARGE($I69:$AB69,15),"") ->  | BY69: =IF($F69>15,LARGE($I69:$AB69,16),"") ->  | BZ69: =IF($F69>12,LARGE($I69:$AB69,13),"-") -> - | CA69: =IF($F69>13,LARGE($I69:$AB69,14),"-") -> - | CB69: =IF($F69>14,LARGE($I69:$AB69,15),"-") -> - | CC69: =SUM(AC69-F69)-2 -> 5 | CE69: =SUM(BJ69:BY69) -> 771 | EP69: 65 | ER69: =IF(BG69>=1,AH69,"") -> 65 | ES69: =IF(BG69>1,"("&AG69&")","("&AI69&")") -> (65)
A70: 66 (68) | B70: Gebriela Kostantinos | C70: Korpen Åseda | D70: 675 | F70: 2 | G70: 168.75 | N70: 291 | R70: 384 | AC70: 11 | AD70: - | AE70: - | AF70: - | AG70: 68 | AH70: 66 | AI70: 66 | AJ70: 66 | AM70: 0 | AN70: 0 | AO70: 1 | AP70: 1 | AQ70: 1 | AR70: 2 | AS70: 2 | AT70: 1 | AU70: 2 | AV70: 2 | AW70: 1 | AX70: 1 | AY70: 0 | AZ70: 0 | BA70: 0 | BB70: 0 | BC70: 0 | BD70: 0 | BG70: 2 | BJ70: 384 | BK70: 291 | BZ70: - | CA70: - | CB70: - | CC70: 7 | CE70: 675 | EP70: 66 | ER70: 66 | ES70: (68)
A71: 67 (71) | B71: Malira Eriksson | C71: Balders HSK | D71: 652 | F71: 3 | G71: 108.6666667 | Q71: 268 | S71: 190 | U71: 194 | AC71: 11 | AD71: - | AE71: - | AF71: - | AG71: 71 | AH71: 67 | AI71: 67 | AJ71: 67 | AM71: 0 | AN71: 0 | AO71: 1 | AP71: 1 | AQ71: 1 | AR71: 1 | AS71: 1 | AT71: 1 | AU71: 1 | AV71: 2 | AW71: 2 | AX71: 2 | AY71: 1 | AZ71: 0 | BA71: 0 | BB71: 0 | BC71: 0 | BD71: 0 | BG71: 2 | BJ71: 268 | BK71: 194 | BL71: 190 | BZ71: - | CA71: - | CB71: - | CC71: 6 | CE71: 652 | EP71: 67 | ER71: 67 | ES71: (71)
A72: 68 (75) | B72: Alf Svensson | C72: Korpen Åseda | D72: 621 | F72: 3 | G72: 103.5 | K72: 120 | N72: 215 | R72: 286 | AC72: 11 | AD72: - | AE72: - | AF72: - | AG72: 75 | AH72: 68 | AI72: 68 | AJ72: 68 | AM72: 0 | AN72: 0 | AO72: 2 | AP72: 2 | AQ72: 1 | AR72: 2 | AS72: 2 | AT72: 1 | AU72: 2 | AV72: 2 | AW72: 1 | AX72: 1 | AY72: 0 | AZ72: 0 | BA72: 0 | BB72: 0 | BC72: 0 | BD72: 0 | BG72: 2 | BJ72: 286 | BK72: 215 | BL72: 120 | BZ72: - | CA72: - | CB72: - | CC72: 6 | CE72: 621 | EP72: 68 | ER72: 68 | ES72: (75)
A73: 69 (78) | B73: Anders Karlsson | C73: Värends Hsk | D73: 598 | F73: 4 | G73: 74.75 | L73: 111 | P73: 79 | R73: 202 | U73: 206 | AC73: 11 | AD73: - | AE73: - | AF73: - | AG73: 78 | AH73: 69 | AI73: 69 | AJ73: 69 | AM73: 0 | AN73: 0 | AO73: 1 | AP73: 2 | AQ73: 2 | AR73: 1 | AS73: 1 | AT73: 2 | AU73: 3 | AV73: 2 | AW73: 1 | AX73: 2 | AY73: 1 | AZ73: 0 | BA73: 0 | BB73: 0 | BC73: 0 | BD73: 0 | BG73: 2 | BJ73: 206 | BK73: 202 | BL73: 111 | BM73: 79 | BZ73: - | CA73: - | CB73: - | CC73: 5 | CE73: 598 | EP73: 69 | ER73: 69 | ES73: (78)
A74: 70 (80) | B74: Gunnar Lundbeck | C74: Tingsryd | D74: 568 | F74: 4 | G74: 71 | N74: 155 | P74: 113 | R74: 140 | T74: 160 | AC74: 11 | AD74: - | AE74: - | AF74: - | AG74: 80 | AH74: 70 | AI74: 70 | AJ74: 70 | AM74: 0 | AN74: 0 | AO74: 1 | AP74: 1 | AQ74: 1 | AR74: 2 | AS74: 2 | AT74: 2 | AU74: 3 | AV74: 2 | AW74: 2 | AX74: 2 | AY74: 0 | AZ74: 0 | BA74: 0 | BB74: 0 | BC74: 0 | BD74: 0 | BG74: 2 | BJ74: 160 | BK74: 155 | BL74: 140 | BM74: 113 | BZ74: - | CA74: - | CB74: - | CC74: 5 | CE74: 568 | EP74: 70 | ER74: 70 | ES74: (80)
A75: 71 (81) | B75: Mats Mårtensson | C75: Jämjö Hsk | D75: 567 | F75: 3 | G75: 94.5 | K75: 214 | L75: 204 | U75: 149 | AC75: 11 | AD75: - | AE75: - | AF75: - | AG75: 81 | AH75: 71 | AI75: 71 | AJ75: 71 | AM75: 0 | AN75: 0 | AO75: 2 | AP75: 3 | AQ75: 2 | AR75: 1 | AS75: 1 | AT75: 1 | AU75: 1 | AV75: 1 | AW75: 1 | AX75: 2 | AY75: 1 | AZ75: 0 | BA75: 0 | BB75: 0 | BC75: 0 | BD75: 0 | BG75: 2 | BJ75: 214 | BK75: 204 | BL75: 149 | BZ75: - | CA75: - | CB75: - | CC75: 6 | CE75: 567 | EP75: 71 | ER75: 71 | ES75: (81)
A76: 72 (67) | B76: Leif Sundahl | C76: Carlskrona | D76: 559 | F76: 3 | G76: 93.16666667 | P76: 224 | R76: 154 | U76: 181 | AC76: 11 | AD76: - | AE76: - | AF76: - | AG76: 67 | AH76: 72 | AI76: 72 | AJ76: 72 | AM76: 0 | AN76: 0 | AO76: 1 | AP76: 1 | AQ76: 1 | AR76: 1 | AS76: 1 | AT76: 2 | AU76: 3 | AV76: 2 | AW76: 1 | AX76: 2 | AY76: 1 | AZ76: 0 | BA76: 0 | BB76: 0 | BC76: 0 | BD76: 0 | BG76: 2 | BJ76: 224 | BK76: 181 | BL76: 154 | BZ76: - | CA76: - | CB76: - | CC76: 6 | CE76: 559 | EP76: 72 | ER76: 72 | ES76: (67)
A77: 73 (82) | B77: Klara Larsson | C77: Värends Hsk | D77: 544 | F77: 3 | G77: 90.66666667 | R77: 217 | T77: 209 | U77: 118 | AC77: 11 | AD77: - | AE77: - | AF77: - | AG77: 82 | AH77: 73 | AI77: 73 | AJ77: 73 | AM77: 0 | AN77: 0 | AO77: 1 | AP77: 1 | AQ77: 1 | AR77: 1 | AS77: 1 | AT77: 1 | AU77: 2 | AV77: 2 | AW77: 2 | AX77: 3 | AY77: 1 | AZ77: 0 | BA77: 0 | BB77: 0 | BC77: 0 | BD77: 0 | BG77: 2 | BJ77: 217 | BK77: 209 | BL77: 118 | BZ77: - | CA77: - | CB77: - | CC77: 6 | CE77: 544 | EP77: 73 | ER77: 73 | ES77: (82)
A78: 74 (83) | B78: Laila Johansson | C78: Tingsryd | D78: 538 | F78: 3 | G78: 89.66666667 | K78: 118 | L78: 181 | U78: 239 | AC78: 11 | AD78: - | AE78: - | AF78: - | AG78: 83 | AH78: 74 | AI78: 74 | AJ78: 74 | AM78: 0 | AN78: 0 | AO78: 2 | AP78: 3 | AQ78: 2 | AR78: 1 | AS78: 1 | AT78: 1 | AU78: 1 | AV78: 1 | AW78: 1 | AX78: 2 | AY78: 1 | AZ78: 0 | BA78: 0 | BB78: 0 | BC78: 0 | BD78: 0 | BG78: 2 | BJ78: 239 | BK78: 181 | BL78: 118 | BZ78: - | CA78: - | CB78: - | CC78: 6 | CE78: 538 | EP78: 74 | ER78: 74 | ES78: (83)
A79: 75 (85) | B79: Anton Alexandersson | C79: Sibbamåla | D79: 527 | F79: 2 | G79: 131.75 | P79: 228 | U79: 299 | AC79: 11 | AD79: - | AE79: - | AF79: - | AG79: 85 | AH79: 75 | AI79: 75 | AJ79: 75 | AM79: 0 | AN79: 0 | AO79: 1 | AP79: 1 | AQ79: 1 | AR79: 1 | AS79: 1 | AT79: 2 | AU79: 2 | AV79: 1 | AW79: 1 | AX79: 2 | AY79: 1 | AZ79: 0 | BA79: 0 | BB79: 0 | BC79: 0 | BD79: 0 | BG79: 2 | BJ79: 299 | BK79: 228 | BZ79: - | CA79: - | CB79: - | CC79: 7 | CE79: 527 | EP79: 75 | ER79: 75 | ES79: (85)
A80: 76 (86) | B80: Julius Gneupel | C80: Sibbamåla | D80: 525 | F80: 3 | G80: 87.5 | K80: 182 | L80: 136 | P80: 207 | AC80: 11 | AD80: - | AE80: - | AF80: - | AG80: 86 | AH80: 76 | AI80: 76 | AJ80: 76 | AM80: 0 | AN80: 0 | AO80: 2 | AP80: 3 | AQ80: 2 | AR80: 1 | AS80: 1 | AT80: 2 | AU80: 2 | AV80: 1 | AW80: 1 | AX80: 1 | AY80: 0 | AZ80: 0 | BA80: 0 | BB80: 0 | BC80: 0 | BD80: 0 | BG80: 2 | BJ80: 207 | BK80: 182 | BL80: 136 | BZ80: - | CA80: - | CB80: - | CC80: 6 | CE80: 525 | EP80: 76 | ER80: 76 | ES80: (86)
A81: 77 (87) | B81: Jonas Bergqvist | C81: Balders HSK | D81: 524 | F81: 5 | G81: 52.4 | K81: 57 | L81: 131 | M81: 107 | S81: 136 | U81: 93 | AC81: 11 | AD81: - | AE81: - | AF81: - | AG81: 87 | AH81: 77 | AI81: 77 | AJ81: 77 | AM81: 0 | AN81: 0 | AO81: 2 | AP81: 3 | AQ81: 3 | AR81: 2 | AS81: 1 | AT81: 1 | AU81: 1 | AV81: 2 | AW81: 2 | AX81: 2 | AY81: 1 | AZ81: 0 | BA81: 0 | BB81: 0 | BC81: 0 | BD81: 0 | BG81: 2 | BJ81: 136 | BK81: 131 | BL81: 107 | BM81: 93 | BN81: 57 | BZ81: - | CA81: - | CB81: - | CC81: 4 | CE81: 524 | EP81: 77 | ER81: 77 | ES81: (87)
A82: 78 (88) | B82: Hans Johansson | C82: Tingsryd | D82: 521 | F82: 2 | G82: 130.25 | N82: 274 | U82: 247 | AC82: 11 | AD82: - | AE82: - | AF82: - | AG82: 88 | AH82: 78 | AI82: 78 | AJ82: 78 | AM82: 0 | AN82: 0 | AO82: 1 | AP82: 1 | AQ82: 1 | AR82: 2 | AS82: 2 | AT82: 1 | AU82: 1 | AV82: 1 | AW82: 1 | AX82: 2 | AY82: 1 | AZ82: 0 | BA82: 0 | BB82: 0 | BC82: 0 | BD82: 0 | BG82: 2 | BJ82: 274 | BK82: 247 | BZ82: - | CA82: - | CB82: - | CC82: 7 | CE82: 521 | EP82: 78 | ER82: 78 | ES82: (88)
A83: 79 (89) | B83: Billy Klarström | C83: Team Småland | D83: 511 | F83: 3 | G83: 85.16666667 | N83: 180 | R83: 167 | T83: 164 | AC83: 11 | AD83: - | AE83: - | AF83: - | AG83: 89 | AH83: 79 | AI83: 79 | AJ83: 79 | AM83: 0 | AN83: 0 | AO83: 1 | AP83: 1 | AQ83: 1 | AR83: 2 | AS83: 2 | AT83: 1 | AU83: 2 | AV83: 2 | AW83: 2 | AX83: 2 | AY83: 0 | AZ83: 0 | BA83: 0 | BB83: 0 | BC83: 0 | BD83: 0 | BG83: 2 | BJ83: 180 | BK83: 167 | BL83: 164 | BZ83: - | CA83: - | CB83: - | CC83: 6 | CE83: 511 | EP83: 79 | ER83: 79 | ES83: (89)
A84: 80 (90) | B84: Karin Gullbrand | C84: Värends Hsk | D84: 508 | F84: 5 | G84: 50.8 | K84: 86 | L84: 71 | M84: 140 | R84: 100 | T84: 111 | AC84: 11 | AD84: - | AE84: - | AF84: - | AG84: 90 | AH84: 80 | AI84: 80 | AJ84: 80 | AM84: 0 | AN84: 0 | AO84: 2 | AP84: 3 | AQ84: 3 | AR84: 2 | AS84: 1 | AT84: 1 | AU84: 2 | AV84: 2 | AW84: 2 | AX84: 2 | AY84: 0 | AZ84: 0 | BA84: 0 | BB84: 0 | BC84: 0 | BD84: 0 | BG84: 2 | BJ84: 140 | BK84: 111 | BL84: 100 | BM84: 86 | BN84: 71 | BZ84: - | CA84: - | CB84: - | CC84: 4 | CE84: 508 | EP84: 80 | ER84: 80 | ES84: (90)
A85: 81 (72) | B85: Lisbeth Blihd | C85: Lanternan | D85: 497 | F85: 3 | G85: 82.83333333 | O85: 148 | P85: 126 | U85: 223 | AC85: 11 | AD85: - | AE85: - | AF85: - | AG85: 72 | AH85: 81 | AI85: 81 | AJ85: 81 | AM85: 0 | AN85: 0 | AO85: 1 | AP85: 1 | AQ85: 1 | AR85: 1 | AS85: 2 | AT85: 3 | AU85: 2 | AV85: 1 | AW85: 1 | AX85: 2 | AY85: 1 | AZ85: 0 | BA85: 0 | BB85: 0 | BC85: 0 | BD85: 0 | BG85: 2 | BJ85: 223 | BK85: 148 | BL85: 126 | BZ85: - | CA85: - | CB85: - | CC85: 6 | CE85: 497 | EP85: 81 | ER85: 81 | ES85: (72)
A86: 82 (92) | B86: Thomas Marklund | C86: Värends Hsk | D86: 496 | F86: 4 | G86: 62 | L86: 122 | R86: 91 | T86: 151 | U86: 132 | AC86: 11 | AD86: - | AE86: - | AF86: - | AG86: 92 | AH86: 82 | AI86: 82 | AJ86: 82 | AM86: 0 | AN86: 0 | AO86: 1 | AP86: 2 | AQ86: 2 | AR86: 1 | AS86: 1 | AT86: 1 | AU86: 2 | AV86: 2 | AW86: 2 | AX86: 3 | AY86: 1 | AZ86: 0 | BA86: 0 | BB86: 0 | BC86: 0 | BD86: 0 | BG86: 2 | BJ86: 151 | BK86: 132 | BL86: 122 | BM86: 91 | BZ86: - | CA86: - | CB86: - | CC86: 5 | CE86: 496 | EP86: 82 | ER86: 82 | ES86: (92)
A87: 83 (94) | B87: Emil Rehn | C87: Korpen Åseda | D87: 486 | F87: 2 | G87: 121.5 | L87: 228 | N87: 258 | AC87: 11 | AD87: - | AE87: - | AF87: - | AG87: 94 | AH87: 83 | AI87: 83 | AJ87: 83 | AM87: 0 | AN87: 0 | AO87: 1 | AP87: 2 | AQ87: 2 | AR87: 2 | AS87: 2 | AT87: 1 | AU87: 1 | AV87: 1 | AW87: 1 | AX87: 1 | AY87: 0 | AZ87: 0 | BA87: 0 | BB87: 0 | BC87: 0 | BD87: 0 | BG87: 2 | BJ87: 258 | BK87: 228 | BZ87: - | CA87: - | CB87: - | CC87: 7 | CE87: 486 | EP87: 83 | ER87: 83 | ES87: (94)
A88: 84 (95) | B88: Magnus Israelsson | C88: Sibbamåla | D88: 473 | F88: 2 | G88: 118.25 | P88: 252 | U88: 221 | AC88: 11 | AD88: - | AE88: - | AF88: - | AG88: 95 | AH88: 84 | AI88: 84 | AJ88: 84 | AM88: 0 | AN88: 0 | AO88: 1 | AP88: 1 | AQ88: 1 | AR88: 1 | AS88: 1 | AT88: 2 | AU88: 2 | AV88: 1 | AW88: 1 | AX88: 2 | AY88: 1 | AZ88: 0 | BA88: 0 | BB88: 0 | BC88: 0 | BD88: 0 | BG88: 2 | BJ88: 252 | BK88: 221 | BZ88: - | CA88: - | CB88: - | CC88: 7 | CE88: 473 | EP88: 84 | ER88: 84 | ES88: (95)
A89: 84 (96) | B89: Tomas Lindedal | C89: Växjö Hsk | D89: 473 | F89: 4 | G89: 59.125 | P89: 33 | R89: 121 | T89: 175 | U89: 144 | AC89: 11 | AD89: - | AE89: - | AF89: - | AG89: 96 | AH89: 84 | AI89: 85 | AJ89: 85 | AM89: 0 | AN89: 0 | AO89: 1 | AP89: 1 | AQ89: 1 | AR89: 1 | AS89: 1 | AT89: 2 | AU89: 3 | AV89: 2 | AW89: 2 | AX89: 3 | AY89: 1 | AZ89: 0 | BA89: 0 | BB89: 0 | BC89: 0 | BD89: 0 | BG89: 2 | BJ89: 175 | BK89: 144 | BL89: 121 | BM89: 33 | BZ89: - | CA89: - | CB89: - | CC89: 5 | CE89: 473 | EP89: 85 | ER89: 84 | ES89: (96)
A90: 86 (73) | B90: Arne Blihd | C90: Lanternan | D90: 459 | F90: 3 | G90: 76.5 | O90: 211 | P90: 129 | U90: 119 | AC90: 11 | AD90: - | AE90: - | AF90: - | AG90: 73 | AH90: 86 | AI90: 86 | AJ90: 86 | AM90: 0 | AN90: 0 | AO90: 1 | AP90: 1 | AQ90: 1 | AR90: 1 | AS90: 2 | AT90: 3 | AU90: 2 | AV90: 1 | AW90: 1 | AX90: 2 | AY90: 1 | AZ90: 0 | BA90: 0 | BB90: 0 | BC90: 0 | BD90: 0 | BG90: 2 | BJ90: 211 | BK90: 129 | BL90: 119 | BZ90: - | CA90: - | CB90: - | CC90: 6 | CE90: 459 | EP90: 86 | ER90: 86 | ES90: (73)
A91: 87 (66) | B91: Marianne Karlsson | C91: Jämjö Hsk | D91: 457 | F91: 3 | G91: 76.16666667 | K91: 148 | O91: 166 | P91: 143 | AC91: 11 | AD91: - | AE91: - | AF91: - | AG91: 66 | AH91: 87 | AI91: 87 | AJ91: 87 | AM91: 0 | AN91: 0 | AO91: 2 | AP91: 2 | AQ91: 1 | AR91: 1 | AS91: 2 | AT91: 3 | AU91: 2 | AV91: 1 | AW91: 1 | AX91: 1 | AY91: 0 | AZ91: 0 | BA91: 0 | BB91: 0 | BC91: 0 | BD91: 0 | BG91: 2 | BJ91: 166 | BK91: 148 | BL91: 143 | BZ91: - | CA91: - | CB91: - | CC91: 6 | CE91: 457 | EP91: 87 | ER91: 87 | ES91: (66)
A92: 88 (84) | B92: Martin Smeds | C92: Balders HSK | D92: 452 | F92: 4 | G92: 56.5 | K92: 120 | L92: 73 | M92: 103 | S92: 156 | AC92: 11 | AD92: - | AE92: - | AF92: - | AG92: 84 | AH92: 88 | AI92: 88 | AJ92: 88 | AM92: 0 | AN92: 0 | AO92: 2 | AP92: 3 | AQ92: 3 | AR92: 2 | AS92: 1 | AT92: 1 | AU92: 1 | AV92: 2 | AW92: 2 | AX92: 1 | AY92: 0 | AZ92: 0 | BA92: 0 | BB92: 0 | BC92: 0 | BD92: 0 | BG92: 2 | BJ92: 156 | BK92: 120 | BL92: 103 | BM92: 73 | BZ92: - | CA92: - | CB92: - | CC92: 5 | CE92: 452 | EP92: 88 | ER92: 88 | ES92: (84)
A93: 89 (79) | B93: Ingegärd Holmqvist | C93: Lanternan | D93: 448 | F93: 3 | G93: 74.66666667 | K93: 115 | L93: 136 | O93: 197 | AC93: 11 | AD93: - | AE93: - | AF93: - | AG93: 79 | AH93: 89 | AI93: 89 | AJ93: 89 | AM93: 0 | AN93: 0 | AO93: 2 | AP93: 3 | AQ93: 2 | AR93: 1 | AS93: 2 | AT93: 2 | AU93: 1 | AV93: 1 | AW93: 1 | AX93: 1 | AY93: 0 | AZ93: 0 | BA93: 0 | BB93: 0 | BC93: 0 | BD93: 0 | BG93: 2 | BJ93: 197 | BK93: 136 | BL93: 115 | BZ93: - | CA93: - | CB93: - | CC93: 6 | CE93: 448 | EP93: 90 | ER93: 89 | ES93: (79)
A94: 90 (98) | B94: Johnny Åberg | C94: Balders HSK | D94: 433 | F94: 3 | G94: 72.16666667 | M94: 116 | Q94: 175 | S94: 142 | AC94: 11 | AD94: - | AE94: - | AF94: - | AG94: 98 | AH94: 90 | AI94: 90 | AJ94: 90 | AM94: 0 | AN94: 0 | AO94: 1 | AP94: 1 | AQ94: 2 | AR94: 2 | AS94: 1 | AT94: 1 | AU94: 1 | AV94: 2 | AW94: 2 | AX94: 1 | AY94: 0 | AZ94: 0 | BA94: 0 | BB94: 0 | BC94: 0 | BD94: 0 | BG94: 2 | BJ94: 175 | BK94: 142 | BL94: 116 | BZ94: - | CA94: - | CB94: - | CC94: 6 | CE94: 433 | EP94: 91 | ER94: 90 | ES94: (98)
A95: 91 (91) | B95: Lotta Sundin | C95: Vaxholm | D95: 431 | F95: 3 | G95: 71.83333333 | M95: 115 | Q95: 213 | S95: 103 | AC95: 11 | AD95: - | AE95: - | AF95: - | AG95: 91 | AH95: 91 | AI95: 91 | AJ95: 91 | AM95: 0 | AN95: 0 | AO95: 1 | AP95: 1 | AQ95: 2 | AR95: 2 | AS95: 1 | AT95: 1 | AU95: 1 | AV95: 2 | AW95: 2 | AX95: 1 | AY95: 0 | AZ95: 0 | BA95: 0 | BB95: 0 | BC95: 0 | BD95: 0 | BG95: 2 | BJ95: 213 | BK95: 115 | BL95: 103 | BZ95: - | CA95: - | CB95: - | CC95: 6 | CE95: 431 | EP95: 92 | ER95: 91 | ES95: (91)
A96: 92 (76) | B96: Andreas Gundersen | C96: Vaxholm Hsk | D96: 430 | F96: 2 | G96: 107.5 | M96: 191 | Q96: 239 | AC96: 11 | AD96: - | AE96: - | AF96: - | AG96: 76 | AH96: 92 | AI96: 92 | AJ96: 92 | AM96: 0 | AN96: 0 | AO96: 1 | AP96: 1 | AQ96: 2 | AR96: 2 | AS96: 1 | AT96: 1 | AU96: 1 | AV96: 1 | AW96: 1 | AX96: 1 | AY96: 0 | AZ96: 0 | BA96: 0 | BB96: 0 | BC96: 0 | BD96: 0 | BG96: 2 | BJ96: 239 | BK96: 191 | BZ96: - | CA96: - | CB96: - | CC96: 7 | CE96: 430 | EP96: 93 | ER96: 92 | ES96: (76)
A97: 93 (70) | B97: Lukas Bern | C97: Dynapac | D97: 426 | F97: 3 | G97: 71 | K97: 131 | L97: 137 | O97: 158 | AC97: 11 | AD97: - | AE97: - | AF97: - | AG97: 70 | AH97: 93 | AI97: 93 | AJ97: 93 | AM97: 0 | AN97: 0 | AO97: 2 | AP97: 3 | AQ97: 2 | AR97: 1 | AS97: 2 | AT97: 2 | AU97: 1 | AV97: 1 | AW97: 1 | AX97: 1 | AY97: 0 | AZ97: 0 | BA97: 0 | BB97: 0 | BC97: 0 | BD97: 0 | BG97: 2 | BJ97: 158 | BK97: 137 | BL97: 131 | BZ97: - | CA97: - | CB97: - | CC97: 6 | CE97: 426 | EP97: 89 | ER97: 93 | ES97: (70)
A98: 94 (69) | B98: Irené Pettersson | C98: Lanternan | D98: 424 | F98: 3 | G98: 70.66666667 | O98: 170 | P98: 117 | U98: 137 | AC98: 11 | AD98: - | AE98: - | AF98: - | AG98: 69 | AH98: 94 | AI98: 94 | AJ98: 94 | AM98: 0 | AN98: 0 | AO98: 1 | AP98: 1 | AQ98: 1 | AR98: 1 | AS98: 2 | AT98: 3 | AU98: 2 | AV98: 1 | AW98: 1 | AX98: 2 | AY98: 1 | AZ98: 0 | BA98: 0 | BB98: 0 | BC98: 0 | BD98: 0 | BG98: 2 | BJ98: 170 | BK98: 137 | BL98: 117 | BZ98: - | CA98: - | CB98: - | CC98: 6 | CE98: 424 | EP98: 94 | ER98: 94 | ES98: (69)
A99: 95 (99) | B99: Roger Eriksson | C99: Balders HSK | D99: 414 | F99: 3 | G99: 69 | Q99: 145 | S99: 120 | U99: 149 | AC99: 11 | AD99: - | AE99: - | AF99: - | AG99: 99 | AH99: 95 | AI99: 95 | AJ99: 95 | AM99: 0 | AN99: 0 | AO99: 1 | AP99: 1 | AQ99: 1 | AR99: 1 | AS99: 1 | AT99: 1 | AU99: 1 | AV99: 2 | AW99: 2 | AX99: 2 | AY99: 1 | AZ99: 0 | BA99: 0 | BB99: 0 | BC99: 0 | BD99: 0 | BG99: 2 | BJ99: 149 | BK99: 145 | BL99: 120 | BZ99: - | CA99: - | CB99: - | CC99: 6 | CE99: 414 | EP99: 95 | ER99: 95 | ES99: (99)
A100: 96 (77) | B100: Mikael Klaving | C100: Vaxholm Hsk | D100: 401 | F100: 2 | G100: 100.25 | M100: 177 | Q100: 224 | AC100: 11 | AD100: - | AE100: - | AF100: - | AG100: 77 | AH100: 96 | AI100: 96 | AJ100: 96 | AM100: 0 | AN100: 0 | AO100: 1 | AP100: 1 | AQ100: 2 | AR100: 2 | AS100: 1 | AT100: 1 | AU100: 1 | AV100: 1 | AW100: 1 | AX100: 1 | AY100: 0 | AZ100: 0 | BA100: 0 | BB100: 0 | BC100: 0 | BD100: 0 | BG100: 2 | BJ100: 224 | BK100: 177 | BZ100: - | CA100: - | CB100: - | CC100: 7 | CE100: 401 | EP100: 96 | ER100: 96 | ES100: (77)
A101: 97 (101) | B101: Kjell Åkesson | C101: Lanternan | D101: 389 | F101: 3 | G101: 64.83333333 | O101: 180 | P101: 102 | U101: 107 | AC101: 11 | AD101: - | AE101: - | AF101: - | AG101: 101 | AH101: 97 | AI101: 97 | AJ101: 97 | AM101: =COUNT($I$3,I101,H101) -> 0 | AN101: =COUNT($J$3,J101,I101) -> 0 | AO101: =COUNT($K$3,K101,J101) -> 1 | AP101: =COUNT($L$3,L101,K101) -> 1 | AQ101: =COUNT($M$3,M101,L101) -> 1 | AR101: =COUNT($N$3,N101,M101) -> 1 | AS101: =COUNT($O$3,O101,N101) -> 2 | AT101: =COUNT($P$3,P101,O101) -> 3 | AU101: =COUNT($R$3,R101,P101) -> 2 | AV101: =COUNT($S$3,S101,R101) -> 1 | AW101: =COUNT($T$3,T101,S101) -> 1 | AX101: =COUNT($U$3,U101,T101) -> 2 | AY101: =COUNT($V$3,V101,U101) -> 1 | AZ101: =COUNT($W$3,W101,V101) -> 0 | BA101: =COUNT($X$3,X101,W101) -> 0 | BB101: =COUNT($Y$3,Y101,X101) -> 0 | BC101: =COUNT($AA$3,AA101,Y101) -> 0 | BD101: =COUNT($AB$3,AB101,AA101) -> 0 | BG101: =IF(H101="x",1,2) -> 2 | BJ101: =IF($F101>0,LARGE($I101:$AB101,1),"") -> 180 | BK101: =IF($F101>1,LARGE($I101:$AB101,2),"") -> 107 | BL101: =IF($F101>2,LARGE($I101:$AB101,3),"") -> 102 | BM101: =IF($F101>3,LARGE($I101:$AB101,4),"") ->  | BN101: =IF($F101>4,LARGE($I101:$AB101,5),"") ->  | BO101: =IF($F101>5,LARGE($I101:$AB101,6),"") ->  | BP101: =IF($F101>6,LARGE($I101:$AB101,7),"") ->  | BQ101: =IF($F101>7,LARGE($I101:$AB101,8),"") ->  | BR101: =IF($F101>8,LARGE($I101:$AB101,9),"") ->  | BS101: =IF($F101>9,LARGE($I101:$AB101,10),"") ->  | BT101: =IF($F101>10,LARGE($I101:$AB101,11),"") ->  | BU101: =IF($F101>11,LARGE($I101:$AB101,12),"") ->  | BV101: =IF($F101>12,LARGE($I101:$AB101,13),"") ->  | BW101: =IF($F101>13,LARGE($I101:$AB101,14),"") ->  | BX101: =IF($F101>14,LARGE($I101:$AB101,15),"") ->  | BY101: =IF($F101>15,LARGE($I101:$AB101,16),"") ->  | BZ101: =IF($F101>12,LARGE($I101:$AB101,13),"-") -> - | CA101: =IF($F101>13,LARGE($I101:$AB101,14),"-") -> - | CB101: =IF($F101>14,LARGE($I101:$AB101,15),"-") -> - | CC101: =SUM(AC101-F101)-2 -> 6 | CE101: 389 | EP101: 97 | ER101: =IF(BG101>=1,AH101,"") -> 97 | ES101: (101)
A102: 98 (74) | B102: Marcus Karlsson | C102: Jämjö Hsk | D102: 382 | F102: 2 | G102: 95.5 | K102: 188 | P102: 194 | AC102: 11 | AD102: - | AE102: - | AF102: - | AG102: 74 | AH102: 98 | AI102: 98 | AJ102: 98 | AM102: 0 | AN102: 0 | AO102: 2 | AP102: 2 | AQ102: 1 | AR102: 1 | AS102: 1 | AT102: 2 | AU102: 2 | AV102: 1 | AW102: 1 | AX102: 1 | AY102: 0 | AZ102: 0 | BA102: 0 | BB102: 0 | BC102: 0 | BD102: 0 | BG102: 2 | BJ102: 194 | BK102: 188 | BZ102: - | CA102: - | CB102: - | CC102: 7 | CE102: 382 | EP102: 98 | ER102: 98 | ES102: (74)
A103: 99 (103) | B103: Henrik Fresk | C103: Balders HSK | D103: 355 | F103: 2 | G103: 88.75 | M103: 156 | S103: 199 | AC103: 11 | AD103: - | AE103: - | AF103: - | AG103: 103 | AH103: 99 | AI103: 99 | AJ103: 99 | AM103: 0 | AN103: 0 | AO103: 1 | AP103: 1 | AQ103: 2 | AR103: 2 | AS103: 1 | AT103: 1 | AU103: 1 | AV103: 2 | AW103: 2 | AX103: 1 | AY103: 0 | AZ103: 0 | BA103: 0 | BB103: 0 | BC103: 0 | BD103: 0 | BG103: 2 | BJ103: 199 | BK103: 156 | BZ103: - | CA103: - | CB103: - | CC103: 7 | CE103: 355 | EP103: 99 | ER103: 99 | ES103: (103)
A104: 100 (104) | B104: Anders Bergqvist | C104: Tingsryd | D104: 352 | F104: 2 | G104: 88 | P104: 144 | R104: 208 | AC104: 11 | AD104: - | AE104: - | AF104: - | AG104: 104 | AH104: 100 | AI104: 100 | AJ104: 100 | AM104: 0 | AN104: 0 | AO104: 1 | AP104: 1 | AQ104: 1 | AR104: 1 | AS104: 1 | AT104: 2 | AU104: 3 | AV104: 2 | AW104: 1 | AX104: 1 | AY104: 0 | AZ104: 0 | BA104: 0 | BB104: 0 | BC104: 0 | BD104: 0 | BG104: 2 | BJ104: 208 | BK104: 144 | BZ104: - | CA104: - | CB104: - | CC104: 7 | CE104: 352 | EP104: 100 | ER104: 100 | ES104: (104)
A105: 101 (106) | B105: Sune Olsson | C105: Korpen Nybro | D105: 345 | F105: 2 | G105: 86.25 | R105: 175 | T105: 170 | AC105: 11 | AD105: - | AE105: - | AF105: - | AG105: 106 | AH105: 101 | AI105: 101 | AJ105: 101 | AM105: 0 | AN105: 0 | AO105: 1 | AP105: 1 | AQ105: 1 | AR105: 1 | AS105: 1 | AT105: 1 | AU105: 2 | AV105: 2 | AW105: 2 | AX105: 2 | AY105: 0 | AZ105: 0 | BA105: 0 | BB105: 0 | BC105: 0 | BD105: 0 | BG105: 2 | BJ105: 175 | BK105: 170 | BZ105: - | CA105: - | CB105: - | CC105: 7 | CE105: 345 | EP105: 101 | ER105: 101 | ES105: (106)
A106: 102 (108) | B106: Ulrika Rydell | C106: Värends Hsk | D106: 332 | F106: 2 | G106: 83 | T106: 175 | U106: 157 | AC106: 11 | AD106: - | AE106: - | AF106: - | AG106: 108 | AH106: 102 | AI106: 102 | AJ106: 102 | AM106: 0 | AN106: 0 | AO106: 1 | AP106: 1 | AQ106: 1 | AR106: 1 | AS106: 1 | AT106: 1 | AU106: 1 | AV106: 1 | AW106: 2 | AX106: 3 | AY106: 1 | AZ106: 0 | BA106: 0 | BB106: 0 | BC106: 0 | BD106: 0 | BG106: 2 | BJ106: 175 | BK106: 157 | BZ106: - | CA106: - | CB106: - | CC106: 7 | CE106: 332 | EP106: 103 | ER106: 102 | ES106: (108)
A107: 103 (109) | B107: Göran Örjebo | C107: Vaxholm | D107: 330 | F107: 3 | G107: 55 | M107: 108 | Q107: 104 | S107: 118 | AC107: 11 | AD107: - | AE107: - | AF107: - | AG107: 109 | AH107: 103 | AI107: 103 | AJ107: 103 | AM107: 0 | AN107: 0 | AO107: 1 | AP107: 1 | AQ107: 2 | AR107: 2 | AS107: 1 | AT107: 1 | AU107: 1 | AV107: 2 | AW107: 2 | AX107: 1 | AY107: 0 | AZ107: 0 | BA107: 0 | BB107: 0 | BC107: 0 | BD107: 0 | BG107: 2 | BJ107: 118 | BK107: 108 | BL107: 104 | BZ107: - | CA107: - | CB107: - | CC107: 6 | CE107: 330 | EP107: 104 | ER107: 103 | ES107: (109)
A108: 104 (102) | B108: Hannah Karlberg | C108: Jämjö Hsk | D108: 325 | F108: 3 | G108: 54.16666667 | K108: 83 | L108: 107 | P108: 135 | AC108: 11 | AD108: - | AE108: - | AF108: - | AG108: 102 | AH108: 104 | AI108: 104 | AJ108: 104 | AM108: 0 | AN108: 0 | AO108: 2 | AP108: 3 | AQ108: 2 | AR108: 1 | AS108: 1 | AT108: 2 | AU108: 2 | AV108: 1 | AW108: 1 | AX108: 1 | AY108: 0 | AZ108: 0 | BA108: 0 | BB108: 0 | BC108: 0 | BD108: 0 | BG108: 2 | BJ108: 135 | BK108: 107 | BL108: 83 | BZ108: - | CA108: - | CB108: - | CC108: 6 | CE108: 325 | EP108: 105 | ER108: 104 | ES108: (102)
A109: 104 (110) | B109: Per-Olof Johansson | C109: Dynapac | D109: 325 | F109: 2 | G109: 81.25 | P109: 139 | U109: 186 | AC109: 11 | AD109: - | AE109: - | AF109: - | AG109: 110 | AH109: 104 | AI109: 105 | AJ109: 105 | AM109: 0 | AN109: 0 | AO109: 1 | AP109: 1 | AQ109: 1 | AR109: 1 | AS109: 1 | AT109: 2 | AU109: 2 | AV109: 1 | AW109: 1 | AX109: 2 | AY109: 1 | AZ109: 0 | BA109: 0 | BB109: 0 | BC109: 0 | BD109: 0 | BG109: 2 | BJ109: 186 | BK109: 139 | BZ109: - | CA109: - | CB109: - | CC109: 7 | CE109: 325 | EP109: 106 | ER109: 104 | ES109: (110)
A110: 106 (93) | B110: Morgan Atle | C110: Dynapac | D110: 315 | F110: 2 | G110: 78.75 | P110: 152 | U110: 163 | AC110: 11 | AD110: - | AE110: - | AF110: - | AG110: 93 | AH110: 106 | AI110: 106 | AJ110: 106 | AM110: 0 | AN110: 0 | AO110: 1 | AP110: 1 | AQ110: 1 | AR110: 1 | AS110: 1 | AT110: 2 | AU110: 2 | AV110: 1 | AW110: 1 | AX110: 2 | AY110: 1 | AZ110: 0 | BA110: 0 | BB110: 0 | BC110: 0 | BD110: 0 | BG110: 2 | BJ110: 163 | BK110: 152 | BZ110: - | CA110: - | CB110: - | CC110: 7 | CE110: 315 | EP110: 107 | ER110: 106 | ES110: (93)
A111: 107 (111) | B111: Matthias Zetterlund | C111: Vaxholm Hsk | D111: 313 | F111: 1 | G111: 156.5 | Q111: 313 | AC111: 11 | AD111: - | AE111: - | AF111: - | AG111: 111 | AH111: 107 | AI111: - | AJ111: 107 | AM111: 0 | AN111: 0 | AO111: 1 | AP111: 1 | AQ111: 1 | AR111: 1 | AS111: 1 | AT111: 1 | AU111: 1 | AV111: 1 | AW111: 1 | AX111: 1 | AY111: 0 | AZ111: 0 | BA111: 0 | BB111: 0 | BC111: 0 | BD111: 0 | BG111: 2 | BJ111: 313 | BZ111: - | CA111: - | CB111: - | CC111: 8 | CE111: 313 | EP111: 108 | ER111: 107 | ES111: (111)
A112: 107 (112) | B112: Tony Borgström | C112: Carlskrona | D112: 313 | F112: 2 | G112: 78.25 | O112: 185 | U112: 128 | AC112: 11 | AD112: - | AE112: - | AF112: - | AG112: 112 | AH112: 107 | AI112: 108 | AJ112: 108 | AM112: 0 | AN112: 0 | AO112: 1 | AP112: 1 | AQ112: 1 | AR112: 1 | AS112: 2 | AT112: 2 | AU112: 1 | AV112: 1 | AW112: 1 | AX112: 2 | AY112: 1 | AZ112: 0 | BA112: 0 | BB112: 0 | BC112: 0 | BD112: 0 | BG112: 2 | BJ112: 185 | BK112: 128 | BZ112: - | CA112: - | CB112: - | CC112: 7 | CE112: 313 | EP112: 102 | ER112: 107 | ES112: (112)
A113: 109 (115) | B113: Keyri Hernandez | C113: Jämjö Hsk | D113: 291 | F113: 2 | G113: 72.75 | P113: 135 | U113: 156 | AC113: 11 | AD113: - | AE113: - | AF113: - | AG113: 115 | AH113: 109 | AI113: 109 | AJ113: 109 | AM113: 0 | AN113: 0 | AO113: 1 | AP113: 1 | AQ113: 1 | AR113: 1 | AS113: 1 | AT113: 2 | AU113: 2 | AV113: 1 | AW113: 1 | AX113: 2 | AY113: 1 | AZ113: 0 | BA113: 0 | BB113: 0 | BC113: 0 | BD113: 0 | BG113: 2 | BJ113: 156 | BK113: 135 | BZ113: - | CA113: - | CB113: - | CC113: 7 | CE113: 291 | EP113: 109 | ER113: 109 | ES113: (115)
A114: 110 (116) | B114: Scott Brown | C114: Sollentuna | D114: 282 | F114: 2 | G114: 70.5 | M114: 103 | Q114: 179 | AC114: 11 | AD114: - | AE114: - | AF114: - | AG114: 116 | AH114: 110 | AI114: 110 | AJ114: 110 | AM114: 0 | AN114: 0 | AO114: 1 | AP114: 1 | AQ114: 2 | AR114: 2 | AS114: 1 | AT114: 1 | AU114: 1 | AV114: 1 | AW114: 1 | AX114: 1 | AY114: 0 | AZ114: 0 | BA114: 0 | BB114: 0 | BC114: 0 | BD114: 0 | BG114: 2 | BJ114: 179 | BK114: 103 | BZ114: - | CA114: - | CB114: - | CC114: 7 | CE114: 282 | EP114: 110 | ER114: 110 | ES114: (116)
A115: 111 (117) | B115: Nils-Åke Hansson | C115: Korpen Nybro | D115: 277 | F115: 3 | G115: 46.16666667 | P115: 88 | T115: 88 | U115: 101 | AC115: 11 | AD115: - | AE115: - | AF115: - | AG115: 117 | AH115: 111 | AI115: 111 | AJ115: 111 | AM115: 0 | AN115: 0 | AO115: 1 | AP115: 1 | AQ115: 1 | AR115: 1 | AS115: 1 | AT115: 2 | AU115: 2 | AV115: 1 | AW115: 2 | AX115: 3 | AY115: 1 | AZ115: 0 | BA115: 0 | BB115: 0 | BC115: 0 | BD115: 0 | BG115: 2 | BJ115: 101 | BK115: 88 | BL115: 88 | BZ115: - | CA115: - | CB115: - | CC115: 6 | CE115: 277 | EP115: 116 | ER115: 111 | ES115: (117)
A116: 112 (118) | B116: Roland Andreasson | C116: Lanternan | D116: 276 | F116: 1 | G116: 138 | K116: 276 | AC116: 11 | AD116: - | AE116: - | AF116: - | AG116: 118 | AH116: 112 | AI116: - | AJ116: 112 | AM116: 0 | AN116: 0 | AO116: 2 | AP116: 2 | AQ116: 1 | AR116: 1 | AS116: 1 | AT116: 1 | AU116: 1 | AV116: 1 | AW116: 1 | AX116: 1 | AY116: 0 | AZ116: 0 | BA116: 0 | BB116: 0 | BC116: 0 | BD116: 0 | BG116: 2 | BJ116: 276 | BZ116: - | CA116: - | CB116: - | CC116: 8 | CE116: 276 | EP116: 111 | ER116: 112 | ES116: (118)
A117: 113 (97) | B117: Mikael Grönskog | C117: Sibbamåla | D117: 270 | F117: 1 | G117: 135 | U117: 270 | AC117: 11 | AD117: - | AE117: - | AF117: - | AG117: 97 | AH117: 113 | AI117: - | AJ117: 113 | AM117: 0 | AN117: 0 | AO117: 1 | AP117: 1 | AQ117: 1 | AR117: 1 | AS117: 1 | AT117: 1 | AU117: 1 | AV117: 1 | AW117: 1 | AX117: 2 | AY117: 1 | AZ117: 0 | BA117: 0 | BB117: 0 | BC117: 0 | BD117: 0 | BG117: 2 | BJ117: 270 | BZ117: - | CA117: - | CB117: - | CC117: 8 | CE117: 270 | EP117: 112 | ER117: 113 | ES117: (97)
A118: 114 (105) | B118: Heidi Bülmann | C118: Vaxholm | D118: 252 | F118: 2 | G118: 63 | M118: 116 | Q118: 136 | AC118: 11 | AD118: - | AE118: - | AF118: - | AG118: 105 | AH118: 114 | AI118: 114 | AJ118: 114 | AM118: 0 | AN118: 0 | AO118: 1 | AP118: 1 | AQ118: 2 | AR118: 2 | AS118: 1 | AT118: 1 | AU118: 1 | AV118: 1 | AW118: 1 | AX118: 1 | AY118: 0 | AZ118: 0 | BA118: 0 | BB118: 0 | BC118: 0 | BD118: 0 | BG118: 2 | BJ118: 136 | BK118: 116 | BZ118: - | CA118: - | CB118: - | CC118: 7 | CE118: 252 | EP118: 114 | ER118: 114 | ES118: (105)
A119: 114 (120) | B119: Sandra Rydell | C119: Värends Hsk | D119: 252 | F119: 1 | G119: 126 | U119: 252 | AC119: 11 | AD119: - | AE119: - | AF119: - | AG119: 120 | AH119: 114 | AI119: - | AJ119: 115 | AM119: 0 | AN119: 0 | AO119: 1 | AP119: 1 | AQ119: 1 | AR119: 1 | AS119: 1 | AT119: 1 | AU119: 1 | AV119: 1 | AW119: 1 | AX119: 2 | AY119: 1 | AZ119: 0 | BA119: 0 | BB119: 0 | BC119: 0 | BD119: 0 | BG119: 2 | BJ119: 252 | BZ119: - | CA119: - | CB119: - | CC119: 8 | CE119: 252 | EP119: 115 | ER119: 114 | ES119: (120)
A120: 116 (121) | B120: Anders Johansson | C120: Dynapac | D120: 242 | F120: 1 | G120: 121 | O120: 242 | AC120: 11 | AD120: - | AE120: - | AF120: - | AG120: 121 | AH120: 116 | AI120: - | AJ120: 116 | AM120: 0 | AN120: 0 | AO120: 1 | AP120: 1 | AQ120: 1 | AR120: 1 | AS120: 2 | AT120: 2 | AU120: 1 | AV120: 1 | AW120: 1 | AX120: 1 | AY120: 0 | AZ120: 0 | BA120: 0 | BB120: 0 | BC120: 0 | BD120: 0 | BG120: 2 | BJ120: 242 | BZ120: - | CA120: - | CB120: - | CC120: 8 | CE120: 242 | EP120: 117 | ER120: 116 | ES120: (121)
A121: 117 (124) | B121: Joakim Strand | C121: Korpen Åseda | D121: 207 | F121: 1 | G121: 103.5 | R121: 207 | AC121: 11 | AD121: - | AE121: - | AF121: - | AG121: 124 | AH121: 117 | AI121: - | AJ121: 117 | AM121: 0 | AN121: 0 | AO121: 1 | AP121: 1 | AQ121: 1 | AR121: 1 | AS121: 1 | AT121: 1 | AU121: 2 | AV121: 2 | AW121: 1 | AX121: 1 | AY121: 0 | AZ121: 0 | BA121: 0 | BB121: 0 | BC121: 0 | BD121: 0 | BG121: 2 | BJ121: 207 | BZ121: - | CA121: - | CB121: - | CC121: 8 | CE121: 207 | EP121: 118 | ER121: 117 | ES121: (124)
A122: 118 (100) | B122: Victor Bengtsson | C122: Vaxholm Hsk | D122: 203 | F122: 1 | G122: 101.5 | M122: 203 | AC122: 11 | AD122: - | AE122: - | AF122: - | AG122: 100 | AH122: 118 | AI122: - | AJ122: 118 | AM122: 0 | AN122: 0 | AO122: 1 | AP122: 1 | AQ122: 2 | AR122: 2 | AS122: 1 | AT122: 1 | AU122: 1 | AV122: 1 | AW122: 1 | AX122: 1 | AY122: 0 | AZ122: 0 | BA122: 0 | BB122: 0 | BC122: 0 | BD122: 0 | BG122: 2 | BJ122: 203 | BZ122: - | CA122: - | CB122: - | CC122: 8 | CE122: 203 | EP122: 119 | ER122: 118 | ES122: (100)
A123: 119 (125) | B123: Birgit Brown | C123: Sollentuna | D123: 200 | F123: 2 | G123: 50 | M123: 50 | Q123: 150 | AC123: 11 | AD123: - | AE123: - | AF123: - | AG123: 125 | AH123: 119 | AI123: 119 | AJ123: 119 | AM123: 0 | AN123: 0 | AO123: 1 | AP123: 1 | AQ123: 2 | AR123: 2 | AS123: 1 | AT123: 1 | AU123: 1 | AV123: 1 | AW123: 1 | AX123: 1 | AY123: 0 | AZ123: 0 | BA123: 0 | BB123: 0 | BC123: 0 | BD123: 0 | BG123: 2 | BJ123: 150 | BK123: 50 | BZ123: - | CA123: - | CB123: - | CC123: 7 | CE123: 200 | EP123: 120 | ER123: 119 | ES123: (125)
A124: 120 (126) | B124: Johan Ullgren | C124: Vaxholm Hsk | D124: 199 | F124: 1 | G124: 99.5 | Q124: 199 | AC124: 11 | AD124: - | AE124: - | AF124: - | AG124: 126 | AH124: 120 | AI124: - | AJ124: 120 | AM124: 0 | AN124: 0 | AO124: 1 | AP124: 1 | AQ124: 1 | AR124: 1 | AS124: 1 | AT124: 1 | AU124: 1 | AV124: 1 | AW124: 1 | AX124: 1 | AY124: 0 | AZ124: 0 | BA124: 0 | BB124: 0 | BC124: 0 | BD124: 0 | BG124: 2 | BJ124: 199 | BZ124: - | CA124: - | CB124: - | CC124: 8 | CE124: 199 | EP124: 121 | ER124: 120 | ES124: (126)
A125: 121 (127) | B125: Linnea Gneupel | C125: Sibbamåla | D125: 198 | F125: 2 | G125: 49.5 | P125: 76 | T125: 122 | AC125: 11 | AD125: - | AE125: - | AF125: - | AG125: 127 | AH125: 121 | AI125: 121 | AJ125: 121 | AM125: 0 | AN125: 0 | AO125: 1 | AP125: 1 | AQ125: 1 | AR125: 1 | AS125: 1 | AT125: 2 | AU125: 2 | AV125: 1 | AW125: 2 | AX125: 2 | AY125: 0 | AZ125: 0 | BA125: 0 | BB125: 0 | BC125: 0 | BD125: 0 | BG125: 2 | BJ125: 122 | BK125: 76 | BZ125: - | CA125: - | CB125: - | CC125: 7 | CE125: 198 | EP125: 127 | ER125: 121 | ES125: (127)
A126: 122 (128) | B126: Tomas Röhl | C126: Stadslaget | D126: 193 | F126: 1 | G126: 96.5 | M126: 193 | AC126: 11 | AD126: - | AE126: - | AF126: - | AG126: 128 | AH126: 122 | AI126: - | AJ126: 122 | AM126: 0 | AN126: 0 | AO126: 1 | AP126: 1 | AQ126: 2 | AR126: 2 | AS126: 1 | AT126: 1 | AU126: 1 | AV126: 1 | AW126: 1 | AX126: 1 | AY126: 0 | AZ126: 0 | BA126: 0 | BB126: 0 | BC126: 0 | BD126: 0 | BG126: 2 | BJ126: 193 | BZ126: - | CA126: - | CB126: - | CC126: 8 | CE126: 193 | EP126: 122 | ER126: 122 | ES126: (128)
A127: 123 (129) | B127: Christer Brincner | C127: Värends Hsk | D127: 185 | F127: 1 | G127: 92.5 | R127: 185 | AC127: 11 | AD127: - | AE127: - | AF127: - | AG127: 129 | AH127: 123 | AI127: - | AJ127: 123 | AM127: 0 | AN127: 0 | AO127: 1 | AP127: 1 | AQ127: 1 | AR127: 1 | AS127: 1 | AT127: 1 | AU127: 2 | AV127: 2 | AW127: 1 | AX127: 1 | AY127: 0 | AZ127: 0 | BA127: 0 | BB127: 0 | BC127: 0 | BD127: 0 | BG127: 2 | BJ127: 185 | BZ127: - | CA127: - | CB127: - | CC127: 8 | CE127: 185 | EP127: 123 | ER127: 123 | ES127: (129)
A128: 124 (130) | B128: Mats Svensson | C128: Stadslaget | D128: 182 | F128: 1 | G128: 91 | M128: 182 | AC128: 11 | AD128: - | AE128: - | AF128: - | AG128: 130 | AH128: 124 | AI128: - | AJ128: 124 | AM128: 0 | AN128: 0 | AO128: 1 | AP128: 1 | AQ128: 2 | AR128: 2 | AS128: 1 | AT128: 1 | AU128: 1 | AV128: 1 | AW128: 1 | AX128: 1 | AY128: 0 | AZ128: 0 | BA128: 0 | BB128: 0 | BC128: 0 | BD128: 0 | BG128: 2 | BJ128: 182 | BZ128: - | CA128: - | CB128: - | CC128: 8 | CE128: 182 | EP128: 124 | ER128: 124 | ES128: (130)
A129: 125 (131) | B129: Eva Åkesson | C129: Lanternan | D129: 176 | F129: 3 | G129: 29.33333333 | O129: 85 | P129: 55 | U129: 36 | AC129: 11 | AD129: - | AE129: - | AF129: - | AG129: 131 | AH129: 125 | AI129: 125 | AJ129: 125 | AM129: 0 | AN129: 0 | AO129: 1 | AP129: 1 | AQ129: 1 | AR129: 1 | AS129: 2 | AT129: 3 | AU129: 2 | AV129: 1 | AW129: 1 | AX129: 2 | AY129: 1 | AZ129: 0 | BA129: 0 | BB129: 0 | BC129: 0 | BD129: 0 | BG129: 2 | BJ129: 85 | BK129: 55 | BL129: 36 | BZ129: - | CA129: - | CB129: - | CC129: 6 | CE129: 176 | EP129: 125 | ER129: 125 | ES129: (131)
A130: 125 (132) | B130: Danny Borgström | C130: Carlskrona | D130: 176 | F130: 1 | G130: 88 | O130: 176 | AC130: 11 | AD130: - | AE130: - | AF130: - | AG130: 132 | AH130: 125 | AI130: - | AJ130: 126 | AM130: 0 | AN130: 0 | AO130: 1 | AP130: 1 | AQ130: 1 | AR130: 1 | AS130: 2 | AT130: 2 | AU130: 1 | AV130: 1 | AW130: 1 | AX130: 1 | AY130: 0 | AZ130: 0 | BA130: 0 | BB130: 0 | BC130: 0 | BD130: 0 | BG130: 2 | BJ130: 176 | BZ130: - | CA130: - | CB130: - | CC130: 8 | CE130: 176 | EP130: 126 | ER130: 125 | ES130: (132)
A131: 127 (113) | B131: Björn Hansson | C131: Vaxholm Hsk | D131: 173 | F131: 1 | G131: 86.5 | M131: 173 | AC131: 11 | AD131: - | AE131: - | AF131: - | AG131: 113 | AH131: 127 | AI131: - | AJ131: 127 | AM131: 0 | AN131: 0 | AO131: 1 | AP131: 1 | AQ131: 2 | AR131: 2 | AS131: 1 | AT131: 1 | AU131: 1 | AV131: 1 | AW131: 1 | AX131: 1 | AY131: 0 | AZ131: 0 | BA131: 0 | BB131: 0 | BC131: 0 | BD131: 0 | BG131: 2 | BJ131: 173 | BZ131: - | CA131: - | CB131: - | CC131: 8 | CE131: 173 | EP131: 113 | ER131: 127 | ES131: (113)
A132: 128 (133) | B132: Daniel Becker | C132: Vaxholm | D132: 171 | F132: 1 | G132: 85.5 | S132: 171 | AC132: 11 | AD132: - | AE132: - | AF132: - | AG132: 133 | AH132: 128 | AI132: - | AJ132: 128 | AM132: 0 | AN132: 0 | AO132: 1 | AP132: 1 | AQ132: 1 | AR132: 1 | AS132: 1 | AT132: 1 | AU132: 1 | AV132: 2 | AW132: 2 | AX132: 1 | AY132: 0 | AZ132: 0 | BA132: 0 | BB132: 0 | BC132: 0 | BD132: 0 | BG132: 2 | BJ132: 171 | BZ132: - | CA132: - | CB132: - | CC132: 8 | CE132: 171 | EP132: 128 | ER132: 128 | ES132: (133)
A133: =IF(BG133>1,AH133&" ("&AG133&")",AH133&" ("&AI133&")") -> 129 (135) | B133: Mona Andersson | C133: Carlskrona | D133: =SUM(BJ133:BU133) -> 170 | F133: =COUNT(I133:AB133) -> 2 | G133: =SUM((CE133)/(F133*2)) -> 42.5 | O133: 91 | U133: 79 | AC133: =SUM($I$3:$AB$3) -> 11 | AD133: =BZ133 -> - | AE133: =CA133 -> - | AF133: =CB133 -> - | AG133: 135 | AH133: =IF(D133<D132,AJ133,AH132) -> 129 | AI133: =IF(F133>1,ROW(129:129),"-") -> 129 | AJ133: 129 | AM133: =COUNT($I$3,I133,H133) -> 0 | AN133: =COUNT($J$3,J133,I133) -> 0 | AO133: =COUNT($K$3,K133,J133) -> 1 | AP133: =COUNT($L$3,L133,K133) -> 1 | AQ133: =COUNT($M$3,M133,L133) -> 1 | AR133: =COUNT($N$3,N133,M133) -> 1 | AS133: =COUNT($O$3,O133,N133) -> 2 | AT133: =COUNT($P$3,P133,O133) -> 2 | AU133: =COUNT($R$3,R133,P133) -> 1 | AV133: =COUNT($S$3,S133,R133) -> 1 | AW133: =COUNT($T$3,T133,S133) -> 1 | AX133: =COUNT($U$3,U133,T133) -> 2 | AY133: =COUNT($V$3,V133,U133) -> 1 | AZ133: =COUNT($W$3,W133,V133) -> 0 | BA133: =COUNT($X$3,X133,W133) -> 0 | BB133: =COUNT($Y$3,Y133,X133) -> 0 | BC133: =COUNT($AA$3,AA133,Y133) -> 0 | BD133: =COUNT($AB$3,AB133,AA133) -> 0 | BG133: =IF(H133="x",1,2) -> 2 | BJ133: =IF($F133>0,LARGE($I133:$AB133,1),"") -> 91 | BK133: =IF($F133>1,LARGE($I133:$AB133,2),"") -> 79 | BL133: =IF($F133>2,LARGE($I133:$AB133,3),"") ->  | BM133: =IF($F133>3,LARGE($I133:$AB133,4),"") ->  | BN133: =IF($F133>4,LARGE($I133:$AB133,5),"") ->  | BO133: =IF($F133>5,LARGE($I133:$AB133,6),"") ->  | BP133: =IF($F133>6,LARGE($I133:$AB133,7),"") ->  | BQ133: =IF($F133>7,LARGE($I133:$AB133,8),"") ->  | BR133: =IF($F133>8,LARGE($I133:$AB133,9),"") ->  | BS133: =IF($F133>9,LARGE($I133:$AB133,10),"") ->  | BT133: =IF($F133>10,LARGE($I133:$AB133,11),"") ->  | BU133: =IF($F133>11,LARGE($I133:$AB133,12),"") ->  | BV133: =IF($F133>12,LARGE($I133:$AB133,13),"") ->  | BW133: =IF($F133>13,LARGE($I133:$AB133,14),"") ->  | BX133: =IF($F133>14,LARGE($I133:$AB133,15),"") ->  | BY133: =IF($F133>15,LARGE($I133:$AB133,16),"") ->  | BZ133: =IF($F133>12,LARGE($I133:$AB133,13),"-") -> - | CA133: =IF($F133>13,LARGE($I133:$AB133,14),"-") -> - | CB133: =IF($F133>14,LARGE($I133:$AB133,15),"-") -> - | CC133: =SUM(AC133-F133)-2 -> 7 | CE133: =SUM(BJ133:BY133) -> 170 | EP133: 129 | ER133: =IF(BG133>=1,AH133,"") -> 129 | ES133: =IF(BG133>1,"("&AG133&")","("&AI133&")") -> (135)
A134: 130 (137) | B134: Kjell Rydh | C134: Korpen Nybro | D134: 169 | F134: 1 | G134: 84.5 | T134: 169 | AC134: 11 | AD134: - | AE134: - | AF134: - | AG134: 137 | AH134: 130 | AI134: - | AJ134: 130 | AM134: 0 | AN134: 0 | AO134: 1 | AP134: 1 | AQ134: 1 | AR134: 1 | AS134: 1 | AT134: 1 | AU134: 1 | AV134: 1 | AW134: 2 | AX134: 2 | AY134: 0 | AZ134: 0 | BA134: 0 | BB134: 0 | BC134: 0 | BD134: 0 | BG134: 2 | BJ134: 169 | BZ134: - | CA134: - | CB134: - | CC134: 8 | CE134: 169 | EP134: 130 | ER134: 130 | ES134: (137)
A135: 131 (138) | B135: Jimmy Carlsson | C135: Vaxholm | D135: 166 | F135: 1 | G135: 83 | Q135: 166 | AC135: 11 | AD135: - | AE135: - | AF135: - | AG135: 138 | AH135: 131 | AI135: - | AJ135: 131 | AM135: 0 | AN135: 0 | AO135: 1 | AP135: 1 | AQ135: 1 | AR135: 1 | AS135: 1 | AT135: 1 | AU135: 1 | AV135: 1 | AW135: 1 | AX135: 1 | AY135: 0 | AZ135: 0 | BA135: 0 | BB135: 0 | BC135: 0 | BD135: 0 | BG135: 2 | BJ135: 166 | BZ135: - | CA135: - | CB135: - | CC135: 8 | CE135: 166 | EP135: 131 | ER135: 131 | ES135: (138)
A136: 132 (140) | B136: Erik Isaksson | C136: Korpen Åseda | D136: 163 | F136: 1 | G136: 81.5 | L136: 163 | AC136: 11 | AD136: - | AE136: - | AF136: - | AG136: 140 | AH136: 132 | AI136: - | AJ136: 132 | AM136: 0 | AN136: 0 | AO136: 1 | AP136: 2 | AQ136: 2 | AR136: 1 | AS136: 1 | AT136: 1 | AU136: 1 | AV136: 1 | AW136: 1 | AX136: 1 | AY136: 0 | AZ136: 0 | BA136: 0 | BB136: 0 | BC136: 0 | BD136: 0 | BG136: 2 | BJ136: 163 | BZ136: - | CA136: - | CB136: - | CC136: 8 | CE136: 163 | EP136: 132 | ER136: 132 | ES136: (140)
A137: 133 (143) | B137: Robin Malm | C137: Balders HSK | D137: 155 | F137: 1 | G137: 77.5 | S137: 155 | AC137: 11 | AD137: - | AE137: - | AF137: - | AG137: 143 | AH137: 133 | AI137: - | AJ137: 133 | AM137: 0 | AN137: 0 | AO137: 1 | AP137: 1 | AQ137: 1 | AR137: 1 | AS137: 1 | AT137: 1 | AU137: 1 | AV137: 2 | AW137: 2 | AX137: 1 | AY137: 0 | AZ137: 0 | BA137: 0 | BB137: 0 | BC137: 0 | BD137: 0 | BG137: 2 | BJ137: 155 | BZ137: - | CA137: - | CB137: - | CC137: 8 | CE137: 155 | EP137: 133 | ER137: 133 | ES137: (143)
A138: 134 (144) | B138: Johanna Hagerman | C138: Balders HSK | D138: 152 | F138: 2 | G138: 38 | Q138: 142 | S138: 10 | AC138: 11 | AD138: - | AE138: - | AF138: - | AG138: 144 | AH138: 134 | AI138: 134 | AJ138: 134 | AM138: 0 | AN138: 0 | AO138: 1 | AP138: 1 | AQ138: 1 | AR138: 1 | AS138: 1 | AT138: 1 | AU138: 1 | AV138: 2 | AW138: 2 | AX138: 1 | AY138: 0 | AZ138: 0 | BA138: 0 | BB138: 0 | BC138: 0 | BD138: 0 | BG138: 2 | BJ138: 142 | BK138: 10 | BZ138: - | CA138: - | CB138: - | CC138: 7 | CE138: 152 | EP138: 135 | ER138: 134 | ES138: (144)
A139: 135 (107) | B139: Peter Edlund | C139: Dynapac | D139: 147 | F139: 1 | G139: 73.5 | P139: 147 | AC139: 11 | AD139: - | AE139: - | AF139: - | AG139: 107 | AH139: 135 | AI139: - | AJ139: 135 | AM139: 0 | AN139: 0 | AO139: 1 | AP139: 1 | AQ139: 1 | AR139: 1 | AS139: 1 | AT139: 2 | AU139: 2 | AV139: 1 | AW139: 1 | AX139: 1 | AY139: 0 | AZ139: 0 | BA139: 0 | BB139: 0 | BC139: 0 | BD139: 0 | BG139: 2 | BJ139: 147 | BZ139: - | CA139: - | CB139: - | CC139: 8 | CE139: 147 | EP139: 136 | ER139: 135 | ES139: (107)
A140: 136 (147) | B140: Kent Svensson | C140: Lanternan | D140: 140 | F140: 2 | G140: 35 | O140: 55 | P140: 85 | AC140: 11 | AD140: - | AE140: - | AF140: - | AG140: 147 | AH140: 136 | AI140: 136 | AJ140: 136 | AM140: 0 | AN140: 0 | AO140: 1 | AP140: 1 | AQ140: 1 | AR140: 1 | AS140: 2 | AT140: 3 | AU140: 2 | AV140: 1 | AW140: 1 | AX140: 1 | AY140: 0 | AZ140: 0 | BA140: 0 | BB140: 0 | BC140: 0 | BD140: 0 | BG140: 2 | BJ140: 85 | BK140: 55 | BZ140: - | CA140: - | CB140: - | CC140: 7 | CE140: 140 | EP140: 137 | ER140: 136 | ES140: (147)
A141: 137 (148) | B141: Susanne Simonsson | C141: Lanternan | D141: 137 | F141: 1 | G141: 68.5 | K141: 137 | AC141: 11 | AD141: - | AE141: - | AF141: - | AG141: 148 | AH141: 137 | AI141: - | AJ141: 137 | AM141: 0 | AN141: 0 | AO141: 2 | AP141: 2 | AQ141: 1 | AR141: 1 | AS141: 1 | AT141: 1 | AU141: 1 | AV141: 1 | AW141: 1 | AX141: 1 | AY141: 0 | AZ141: 0 | BA141: 0 | BB141: 0 | BC141: 0 | BD141: 0 | BG141: 2 | BJ141: 137 | BZ141: - | CA141: - | CB141: - | CC141: 8 | CE141: 137 | EP141: 138 | ER141: 137 | ES141: (148)
A142: 138 (114) | B142: Thomas Diedrichs | C142: Vaxholm Hsk | D142: 134 | F142: 1 | G142: 67 | Q142: 134 | AC142: 11 | AD142: - | AE142: - | AF142: - | AG142: 114 | AH142: 138 | AI142: - | AJ142: 138 | AM142: 0 | AN142: 0 | AO142: 1 | AP142: 1 | AQ142: 1 | AR142: 1 | AS142: 1 | AT142: 1 | AU142: 1 | AV142: 1 | AW142: 1 | AX142: 1 | AY142: 0 | AZ142: 0 | BA142: 0 | BB142: 0 | BC142: 0 | BD142: 0 | BG142: 2 | BJ142: 134 | BZ142: - | CA142: - | CB142: - | CC142: 8 | CE142: 134 | EP142: 167 | ER142: 167 | ES142: (114)
A143: 139 (149) | B143: Pia Brovold | C143: Vaxholm | D143: 131 | F143: 2 | G143: 32.75 | M143: 66 | Q143: 65 | AC143: 11 | AD143: - | AE143: - | AF143: - | AG143: 149 | AH143: 139 | AI143: 139 | AJ143: 139 | AM143: 0 | AN143: 0 | AO143: 1 | AP143: 1 | AQ143: 2 | AR143: 2 | AS143: 1 | AT143: 1 | AU143: 1 | AV143: 1 | AW143: 1 | AX143: 1 | AY143: 0 | AZ143: 0 | BA143: 0 | BB143: 0 | BC143: 0 | BD143: 0 | BG143: 2 | BJ143: 66 | BK143: 65 | BZ143: - | CA143: - | CB143: - | CC143: 7 | CE143: 131 | EP143: 139 | ER143: =IF(BG143>=1,AH143,"") -> 139 | ES143: (149)
A144: 140 (152) | B144: Tommy Svensson | C144: Värends Hsk | D144: 122 | F144: 1 | G144: 61 | L144: 122 | AC144: 11 | AD144: - | AE144: - | AF144: - | AG144: 152 | AH144: 140 | AI144: - | AJ144: 140 | AM144: 0 | AN144: 0 | AO144: 1 | AP144: 2 | AQ144: 2 | AR144: 1 | AS144: 1 | AT144: 1 | AU144: 1 | AV144: 1 | AW144: 1 | AX144: 1 | AY144: 0 | AZ144: 0 | BA144: 0 | BB144: 0 | BC144: 0 | BD144: 0 | BG144: 2 | BJ144: 122 | BZ144: - | CA144: - | CB144: - | CC144: 8 | CE144: 122 | EP144: 140 | ER144: =IF(BG144>1,AH144,"") -> 140 | ES144: (152)
A145: 141 (134) | B145: Sonlard Berglund | C145: PBHSPC | D145: 118 | F145: 1 | G145: 59 | M145: 118 | AC145: 11 | AD145: - | AE145: - | AF145: - | AG145: 134 | AH145: 141 | AI145: - | AJ145: 141 | AM145: 0 | AN145: 0 | AO145: 1 | AP145: 1 | AQ145: 2 | AR145: 2 | AS145: 1 | AT145: 1 | AU145: 1 | AV145: 1 | AW145: 1 | AX145: 1 | AY145: 0 | AZ145: 0 | BA145: 0 | BB145: 0 | BC145: 0 | BD145: 0 | BG145: 2 | BJ145: 118 | BZ145: - | CA145: - | CB145: - | CC145: 8 | CE145: 118 | EP145: 141 | ER145: =IF(BG145>=1,AH145,"") -> 141 | ES145: (134)
A146: 142 (155) | B146: Roland Sjöstrand | C146: Tingsryd | D146: 109 | F146: 1 | G146: 54.5 | U146: 109 | AC146: 11 | AD146: - | AE146: - | AF146: - | AG146: 155 | AH146: 142 | AI146: - | AJ146: 142 | AM146: 0 | AN146: 0 | AO146: 1 | AP146: 1 | AQ146: 1 | AR146: 1 | AS146: 1 | AT146: 1 | AU146: 1 | AV146: 1 | AW146: 1 | AX146: 2 | AY146: 1 | AZ146: 0 | BA146: 0 | BB146: 0 | BC146: 0 | BD146: 0 | BG146: 2 | BJ146: 109 | BZ146: - | CA146: - | CB146: - | CC146: 8 | CE146: 109 | EP146: 142 | ER146: =IF(BG146>=1,AH146,"") -> 142 | ES146: (155)
A147: 143 (156) | B147: Peter Skörd | C147: Täby | D147: 108 | F147: 1 | G147: 54 | M147: 108 | AC147: 11 | AD147: - | AE147: - | AF147: - | AG147: 156 | AH147: 143 | AI147: - | AJ147: 143 | AM147: 0 | AN147: 0 | AO147: 1 | AP147: 1 | AQ147: 2 | AR147: 2 | AS147: 1 | AT147: 1 | AU147: 1 | AV147: 1 | AW147: 1 | AX147: 1 | AY147: 0 | AZ147: 0 | BA147: 0 | BB147: 0 | BC147: 0 | BD147: 0 | BG147: 2 | BJ147: 108 | BZ147: - | CA147: - | CB147: - | CC147: 8 | CE147: 108 | EP147: 143 | ER147: =IF(BG147>=1,AH147,"") -> 143 | ES147: (156)
A148: 144 (157) | B148: Magnus Hagerman | C148: Balders HSK | D148: 103 | F148: 1 | G148: 51.5 | S148: 103 | AC148: 11 | AD148: - | AE148: - | AF148: - | AG148: 157 | AH148: 144 | AI148: - | AJ148: 144 | AM148: 0 | AN148: 0 | AO148: 1 | AP148: 1 | AQ148: 1 | AR148: 1 | AS148: 1 | AT148: 1 | AU148: 1 | AV148: 2 | AW148: 2 | AX148: 1 | AY148: 0 | AZ148: 0 | BA148: 0 | BB148: 0 | BC148: 0 | BD148: 0 | BG148: 2 | BJ148: 103 | BZ148: - | CA148: - | CB148: - | CC148: 8 | CE148: 103 | EP148: 144 | ER148: =IF(BG148>=1,AH148,"") -> 144 | ES148: (157)
A149: 145 (158) | B149: Saga Karlberg | C149: Jämjö Hsk | D149: 101 | F149: 1 | G149: 50.5 | K149: 101 | AC149: 11 | AD149: - | AE149: - | AF149: - | AG149: 158 | AH149: 145 | AI149: - | AJ149: 145 | AM149: 0 | AN149: 0 | AO149: 2 | AP149: 2 | AQ149: 1 | AR149: 1 | AS149: 1 | AT149: 1 | AU149: 1 | AV149: 1 | AW149: 1 | AX149: 1 | AY149: 0 | AZ149: 0 | BA149: 0 | BB149: 0 | BC149: 0 | BD149: 0 | BG149: 2 | BJ149: 101 | BZ149: - | CA149: - | CB149: - | CC149: 8 | CE149: 101 | EP149: 145 | ER149: =IF(BG149>=1,AH149,"") -> 145 | ES149: (158)
A150: 146 (161) | B150: Kristoffer Lovén | C150: Balders HSK | D150: 90 | F150: 1 | G150: 45 | S150: 90 | AC150: 11 | AD150: - | AE150: - | AF150: - | AG150: 161 | AH150: 146 | AI150: - | AJ150: 146 | AM150: 0 | AN150: 0 | AO150: 1 | AP150: 1 | AQ150: 1 | AR150: 1 | AS150: 1 | AT150: 1 | AU150: 1 | AV150: 2 | AW150: 2 | AX150: 1 | AY150: 0 | AZ150: 0 | BA150: 0 | BB150: 0 | BC150: 0 | BD150: 0 | BG150: 2 | BJ150: 90 | BZ150: - | CA150: - | CB150: - | CC150: 8 | CE150: 90 | EP150: 175 | ER150: =IF(BG150>1,AH150,"") -> 146 | ES150: (161)
A151: 147 (163) | B151: Lars Eriksson | C151: Balders HSK | D151: 86 | F151: 1 | G151: 43 | S151: 86 | AC151: 11 | AD151: - | AE151: - | AF151: - | AG151: 163 | AH151: 147 | AI151: - | AJ151: 147 | AM151: 0 | AN151: 0 | AO151: 1 | AP151: 1 | AQ151: 1 | AR151: 1 | AS151: 1 | AT151: 1 | AU151: 1 | AV151: 2 | AW151: 2 | AX151: 1 | AY151: 0 | AZ151: 0 | BA151: 0 | BB151: 0 | BC151: 0 | BD151: 0 | BG151: 2 | BJ151: 86 | BZ151: - | CA151: - | CB151: - | CC151: 8 | CE151: 86 | EP151: 146 | ER151: =IF(BG151>=1,AH151,"") -> 147 | ES151: (163)
A152: 148 (164) | B152: Rebecka Fresk | C152: Balders HSK | D152: 85 | F152: 1 | G152: 42.5 | S152: 85 | AC152: 11 | AD152: - | AE152: - | AF152: - | AG152: 164 | AH152: 148 | AI152: - | AJ152: 148 | AM152: 0 | AN152: 0 | AO152: 1 | AP152: 1 | AQ152: 1 | AR152: 1 | AS152: 1 | AT152: 1 | AU152: 1 | AV152: 2 | AW152: 2 | AX152: 1 | AY152: 0 | AZ152: 0 | BA152: 0 | BB152: 0 | BC152: 0 | BD152: 0 | BG152: 2 | BJ152: 85 | BZ152: - | CA152: - | CB152: - | CC152: 8 | CE152: 85 | EP152: 147 | ER152: 148 | ES152: (164)
A153: 149 (123) | B153: Calle Sternås | C153: PBHSPC | D153: 84 | F153: 1 | G153: 42 | M153: 84 | AC153: 11 | AD153: - | AE153: - | AF153: - | AG153: 123 | AH153: 149 | AI153: - | AJ153: 149 | AM153: 0 | AN153: 0 | AO153: 1 | AP153: 1 | AQ153: 2 | AR153: 2 | AS153: 1 | AT153: 1 | AU153: 1 | AV153: 1 | AW153: 1 | AX153: 1 | AY153: 0 | AZ153: 0 | BA153: 0 | BB153: 0 | BC153: 0 | BD153: 0 | BG153: 2 | BJ153: 84 | BZ153: - | CA153: - | CB153: - | CC153: 8 | CE153: 84 | EP153: 148 | ER153: 149 | ES153: (123)
A154: 150 (166) | B154: Niclas Nyberg | C154: Stadslaget | D154: 78 | F154: 1 | G154: 39 | M154: 78 | AC154: 11 | AD154: - | AE154: - | AF154: - | AG154: 166 | AH154: 150 | AI154: - | AJ154: 150 | AM154: 0 | AN154: 0 | AO154: 1 | AP154: 1 | AQ154: 2 | AR154: 2 | AS154: 1 | AT154: 1 | AU154: 1 | AV154: 1 | AW154: 1 | AX154: 1 | AY154: 0 | AZ154: 0 | BA154: 0 | BB154: 0 | BC154: 0 | BD154: 0 | BG154: 2 | BJ154: 78 | BZ154: - | CA154: - | CB154: - | CC154: 8 | CE154: 78 | EP154: 149 | ER154: 150 | ES154: (166)
A155: 151 (168) | B155: Salli Fransson | C155: Dynapac | D155: 68 | F155: 1 | G155: 34 | P155: 68 | AC155: 11 | AD155: - | AE155: - | AF155: - | AG155: 168 | AH155: 151 | AI155: - | AJ155: 151 | AM155: 0 | AN155: 0 | AO155: 1 | AP155: 1 | AQ155: 1 | AR155: 1 | AS155: 1 | AT155: 2 | AU155: 2 | AV155: 1 | AW155: 1 | AX155: 1 | AY155: 0 | AZ155: 0 | BA155: 0 | BB155: 0 | BC155: 0 | BD155: 0 | BG155: 2 | BJ155: 68 | BZ155: - | CA155: - | CB155: - | CC155: 8 | CE155: 68 | EP155: 150 | ER155: 151 | ES155: (168)
A156: 152 (170) | B156: Alexander Bergström | C156: PBHSPC | D156: 66 | F156: 1 | G156: 33 | M156: 66 | AC156: 11 | AD156: - | AE156: - | AF156: - | AG156: 170 | AH156: 152 | AI156: - | AJ156: 152 | AM156: 0 | AN156: 0 | AO156: 1 | AP156: 1 | AQ156: 2 | AR156: 2 | AS156: 1 | AT156: 1 | AU156: 1 | AV156: 1 | AW156: 1 | AX156: 1 | AY156: 0 | AZ156: 0 | BA156: 0 | BB156: 0 | BC156: 0 | BD156: 0 | BG156: 2 | BJ156: 66 | BZ156: - | CA156: - | CB156: - | CC156: 8 | CE156: 66 | EP156: 151 | ER156: 152 | ES156: (170)
A157: 152 (171) | B157: Åse Larsson | C157: Stadslaget | D157: 66 | F157: 1 | G157: 33 | M157: 66 | AC157: 11 | AD157: - | AE157: - | AF157: - | AG157: 171 | AH157: 152 | AI157: - | AJ157: 153 | AM157: 0 | AN157: 0 | AO157: 1 | AP157: 1 | AQ157: 2 | AR157: 2 | AS157: 1 | AT157: 1 | AU157: 1 | AV157: 1 | AW157: 1 | AX157: 1 | AY157: 0 | AZ157: 0 | BA157: 0 | BB157: 0 | BC157: 0 | BD157: 0 | BG157: 2 | BJ157: 66 | BZ157: - | CA157: - | CB157: - | CC157: 8 | CE157: 66 | EP157: 184 | ER157: =IF(BG157>1,AH157,"") -> 152 | ES157: (171)
A158: 154 (175) | B158: Charlotte Jacobsson | C158: Vaxholm | D158: 57 | F158: 1 | G158: 28.5 | M158: 57 | AC158: 11 | AD158: - | AE158: - | AF158: - | AG158: 175 | AH158: 154 | AI158: - | AJ158: 154 | AM158: 0 | AN158: 0 | AO158: 1 | AP158: 1 | AQ158: 2 | AR158: 2 | AS158: 1 | AT158: 1 | AU158: 1 | AV158: 1 | AW158: 1 | AX158: 1 | AY158: 0 | AZ158: 0 | BA158: 0 | BB158: 0 | BC158: 0 | BD158: 0 | BG158: 2 | BJ158: 57 | BZ158: - | CA158: - | CB158: - | CC158: 8 | CE158: 57 | EP158: 152 | ER158: =IF(BG158>=1,AH158,"") -> 154 | ES158: (175)
A159: 155 (139) | B159: Pontus Strandell | C159: PBHSPC | D159: 55 | F159: 1 | G159: 27.5 | M159: 55 | AC159: 11 | AD159: - | AE159: - | AF159: - | AG159: 139 | AH159: 155 | AI159: - | AJ159: 155 | AM159: 0 | AN159: 0 | AO159: 1 | AP159: 1 | AQ159: 2 | AR159: 2 | AS159: 1 | AT159: 1 | AU159: 1 | AV159: 1 | AW159: 1 | AX159: 1 | AY159: 0 | AZ159: 0 | BA159: 0 | BB159: 0 | BC159: 0 | BD159: 0 | BG159: 2 | BJ159: 55 | BZ159: - | CA159: - | CB159: - | CC159: 8 | CE159: 55 | EP159: 153 | ER159: 155 | ES159: (139)
A160: 156 (177) | B160: Anne-Marie Larsson | C160: Tingsryd | D160: 47 | F160: 1 | G160: 23.5 | R160: 47 | AC160: 11 | AD160: - | AE160: - | AF160: - | AG160: 177 | AH160: 156 | AI160: - | AJ160: 156 | AM160: 0 | AN160: 0 | AO160: 1 | AP160: 1 | AQ160: 1 | AR160: 1 | AS160: 1 | AT160: 1 | AU160: 2 | AV160: 2 | AW160: 1 | AX160: 1 | AY160: 0 | AZ160: 0 | BA160: 0 | BB160: 0 | BC160: 0 | BD160: 0 | BG160: 2 | BJ160: 47 | BZ160: - | CA160: - | CB160: - | CC160: 8 | CE160: 47 | EP160: 154 | ER160: 156 | ES160: (177)
A161: 157 (178) | B161: Anders Möller | C161: Balders HSK | D161: 41 | F161: 1 | G161: 20.5 | K161: 41 | AC161: 11 | AD161: - | AE161: - | AF161: - | AG161: 178 | AH161: 157 | AI161: - | AJ161: 157 | AM161: 0 | AN161: 0 | AO161: 2 | AP161: 2 | AQ161: 1 | AR161: 1 | AS161: 1 | AT161: 1 | AU161: 1 | AV161: 1 | AW161: 1 | AX161: 1 | AY161: 0 | AZ161: 0 | BA161: 0 | BB161: 0 | BC161: 0 | BD161: 0 | BG161: 2 | BJ161: 41 | BZ161: - | CA161: - | CB161: - | CC161: 8 | CE161: 41 | EP161: 156 | ER161: 157 | ES161: (178)
A162: 158 (159) | B162: Pontus Karlsson | C162: PBHSPC | D162: 27 | F162: 1 | G162: 13.5 | M162: 27 | AC162: 11 | AD162: - | AE162: - | AF162: - | AG162: 159 | AH162: 158 | AI162: - | AJ162: 158 | AM162: 0 | AN162: 0 | AO162: 1 | AP162: 1 | AQ162: 2 | AR162: 2 | AS162: 1 | AT162: 1 | AU162: 1 | AV162: 1 | AW162: 1 | AX162: 1 | AY162: 0 | AZ162: 0 | BA162: 0 | BB162: 0 | BC162: 0 | BD162: 0 | BG162: 2 | BJ162: 27 | BZ162: - | CA162: - | CB162: - | CC162: 8 | CE162: 27 | EP162: 157 | ER162: 158 | ES162: (159)
A163: 159 (182) | B163: Mikael Sellén | C163: Team Småland | D163: 20 | F163: 2 | G163: 5 | R163: 17 | T163: 3 | AC163: 11 | AD163: - | AE163: - | AF163: - | AG163: 182 | AH163: 159 | AI163: 159 | AJ163: 159 | AM163: 0 | AN163: 0 | AO163: 1 | AP163: 1 | AQ163: 1 | AR163: 1 | AS163: 1 | AT163: 1 | AU163: 2 | AV163: 2 | AW163: 2 | AX163: 2 | AY163: 0 | AZ163: 0 | BA163: 0 | BB163: 0 | BC163: 0 | BD163: 0 | BG163: 2 | BJ163: 17 | BK163: 3 | BZ163: - | CA163: - | CB163: - | CC163: 7 | CE163: 20 | EP163: 158 | ER163: 159 | ES163: (182)
A164: 160 (119) | B164: Karl-Axel Roos | D164: 0 | F164: 1 | G164: 0 | P164: 0 | AC164: 11 | AD164: - | AE164: - | AF164: - | AG164: 119 | AH164: 160 | AI164: - | AJ164: 160 | AM164: 0 | AN164: 0 | AO164: 1 | AP164: 1 | AQ164: 1 | AR164: 1 | AS164: 1 | AT164: 2 | AU164: 2 | AV164: 1 | AW164: 1 | AX164: 1 | AY164: 0 | AZ164: 0 | BA164: 0 | BB164: 0 | BC164: 0 | BD164: 0 | BG164: 2 | BJ164: 0 | BZ164: - | CA164: - | CB164: - | CC164: 8 | CE164: 0 | EP164: 159 | ER164: 160 | ES164: (119)
A165: 160 (122) | D165: 0 | F165: 0 | AC165: 11 | AD165: - | AE165: - | AF165: - | AG165: 122 | AH165: 160 | AI165: - | AJ165: 161 | AM165: =COUNT($I$3,I165,H165) -> 0 | AN165: =COUNT($J$3,J165,I165) -> 0 | AO165: =COUNT($K$3,K165,J165) -> 1 | AP165: =COUNT($L$3,L165,K165) -> 1 | AQ165: =COUNT($M$3,M165,L165) -> 1 | AR165: =COUNT($N$3,N165,M165) -> 1 | AS165: =COUNT($O$3,O165,N165) -> 1 | AT165: =COUNT($P$3,P165,O165) -> 1 | AU165: =COUNT($R$3,R165,P165) -> 1 | AV165: =COUNT($S$3,S165,R165) -> 1 | AW165: =COUNT($T$3,T165,S165) -> 1 | AX165: =COUNT($U$3,U165,T165) -> 1 | AY165: =COUNT($V$3,V165,U165) -> 0 | AZ165: =COUNT($W$3,W165,V165) -> 0 | BA165: =COUNT($X$3,X165,W165) -> 0 | BB165: =COUNT($Y$3,Y165,X165) -> 0 | BC165: =COUNT($AA$3,AA165,Y165) -> 0 | BD165: =COUNT($AB$3,AB165,AA165) -> 0 | BG165: =IF(H165="x",1,2) -> 2 | BJ165: =IF($F165>0,LARGE($I165:$AB165,1),"") ->  | BK165: =IF($F165>1,LARGE($I165:$AB165,2),"") ->  | BL165: =IF($F165>2,LARGE($I165:$AB165,3),"") ->  | BM165: =IF($F165>3,LARGE($I165:$AB165,4),"") ->  | BN165: =IF($F165>4,LARGE($I165:$AB165,5),"") ->  | BO165: =IF($F165>5,LARGE($I165:$AB165,6),"") ->  | BP165: =IF($F165>6,LARGE($I165:$AB165,7),"") ->  | BQ165: =IF($F165>7,LARGE($I165:$AB165,8),"") ->  | BR165: =IF($F165>8,LARGE($I165:$AB165,9),"") ->  | BS165: =IF($F165>9,LARGE($I165:$AB165,10),"") ->  | BT165: =IF($F165>10,LARGE($I165:$AB165,11),"") ->  | BU165: =IF($F165>11,LARGE($I165:$AB165,12),"") ->  | BV165: =IF($F165>12,LARGE($I165:$AB165,13),"") ->  | BW165: =IF($F165>13,LARGE($I165:$AB165,14),"") ->  | BX165: =IF($F165>14,LARGE($I165:$AB165,15),"") ->  | BY165: =IF($F165>15,LARGE($I165:$AB165,16),"") ->  | BZ165: =IF($F165>12,LARGE($I165:$AB165,13),"-") -> - | CA165: =IF($F165>13,LARGE($I165:$AB165,14),"-") -> - | CB165: =IF($F165>14,LARGE($I165:$AB165,15),"-") -> - | CC165: =SUM(AC165-F165)-2 -> 9 | CE165: 0 | EP165: 206 | ER165: =IF(BG165>1,AH165,"") -> 160 | ES165: (122)
A166: 160 (136) | D166: 0 | F166: 0 | AC166: 11 | AD166: - | AE166: - | AF166: - | AG166: 136 | AH166: 160 | AI166: - | AJ166: 162 | AM166: 0 | AN166: 0 | AO166: 1 | AP166: 1 | AQ166: 1 | AR166: 1 | AS166: 1 | AT166: 1 | AU166: 1 | AV166: 1 | AW166: 1 | AX166: 1 | AY166: 0 | AZ166: 0 | BA166: 0 | BB166: 0 | BC166: 0 | BD166: 0 | BG166: 2 | BZ166: - | CA166: - | CB166: - | CC166: 9 | CE166: 0 | EP166: 160 | ER166: =IF(BG166>=1,AH166,"") -> 160 | ES166: (136)
A167: 160 (141) | D167: 0 | F167: 0 | AC167: 11 | AD167: - | AE167: - | AF167: - | AG167: 141 | AH167: 160 | AI167: - | AJ167: 163 | AM167: 0 | AN167: 0 | AO167: 1 | AP167: 1 | AQ167: 1 | AR167: 1 | AS167: 1 | AT167: 1 | AU167: 1 | AV167: 1 | AW167: 1 | AX167: 1 | AY167: 0 | AZ167: 0 | BA167: 0 | BB167: 0 | BC167: 0 | BD167: 0 | BG167: 2 | BZ167: - | CA167: - | CB167: - | CC167: 9 | CE167: 0 | EP167: 161 | ER167: 161 | ES167: (141)
A168: 160 (142) | D168: 0 | F168: 0 | AC168: 11 | AD168: - | AE168: - | AF168: - | AG168: 142 | AH168: 160 | AI168: - | AJ168: 164 | AM168: 0 | AN168: 0 | AO168: 1 | AP168: 1 | AQ168: 1 | AR168: 1 | AS168: 1 | AT168: 1 | AU168: 1 | AV168: 1 | AW168: 1 | AX168: 1 | AY168: 0 | AZ168: 0 | BA168: 0 | BB168: 0 | BC168: 0 | BD168: 0 | BG168: 2 | BZ168: - | CA168: - | CB168: - | CC168: 9 | CE168: 0 | EP168: 162 | ER168: =IF(BG168>1,AH168,"") -> 160 | ES168: (142)
A169: 160 (145) | D169: 0 | F169: 0 | AC169: 11 | AD169: - | AE169: - | AF169: - | AG169: 145 | AH169: 160 | AI169: - | AJ169: 165 | AM169: 0 | AN169: 0 | AO169: 1 | AP169: 1 | AQ169: 1 | AR169: 1 | AS169: 1 | AT169: 1 | AU169: 1 | AV169: 1 | AW169: 1 | AX169: 1 | AY169: 0 | AZ169: 0 | BA169: 0 | BB169: 0 | BC169: 0 | BD169: 0 | BG169: 2 | BZ169: - | CA169: - | CB169: - | CC169: 9 | CE169: 0 | EP169: 163 | ER169: =IF(BG169>1,AH169,"") -> 160 | ES169: (145)
A170: 160 (146) | D170: 0 | F170: 0 | AC170: 11 | AD170: - | AE170: - | AF170: - | AG170: 146 | AH170: 160 | AI170: - | AJ170: 166 | AM170: 0 | AN170: 0 | AO170: 1 | AP170: 1 | AQ170: 1 | AR170: 1 | AS170: 1 | AT170: 1 | AU170: 1 | AV170: 1 | AW170: 1 | AX170: 1 | AY170: 0 | AZ170: 0 | BA170: 0 | BB170: 0 | BC170: 0 | BD170: 0 | BG170: 2 | BZ170: - | CA170: - | CB170: - | CC170: 9 | CE170: 0 | EP170: 164 | ER170: =IF(BG170>1,AH170,"") -> 160 | ES170: (146)
A171: 160 (150) | D171: 0 | F171: 0 | AC171: 11 | AD171: - | AE171: - | AF171: - | AG171: 150 | AH171: 160 | AI171: - | AJ171: 167 | AM171: 0 | AN171: 0 | AO171: 1 | AP171: 1 | AQ171: 1 | AR171: 1 | AS171: 1 | AT171: 1 | AU171: 1 | AV171: 1 | AW171: 1 | AX171: 1 | AY171: 0 | AZ171: 0 | BA171: 0 | BB171: 0 | BC171: 0 | BD171: 0 | BG171: 2 | BZ171: - | CA171: - | CB171: - | CC171: 9 | CE171: 0 | EP171: 165 | ER171: =IF(BG171>1,AH171,"") -> 160 | ES171: (150)
A172: 160 (151) | D172: 0 | F172: 0 | AC172: 11 | AD172: - | AE172: - | AF172: - | AG172: 151 | AH172: 160 | AI172: - | AJ172: 168 | AM172: 0 | AN172: 0 | AO172: 1 | AP172: 1 | AQ172: 1 | AR172: 1 | AS172: 1 | AT172: 1 | AU172: 1 | AV172: 1 | AW172: 1 | AX172: 1 | AY172: 0 | AZ172: 0 | BA172: 0 | BB172: 0 | BC172: 0 | BD172: 0 | BG172: 2 | BZ172: - | CA172: - | CB172: - | CC172: 9 | CE172: 0 | EP172: 195 | ER172: =IF(BG172>1,AH172,"") -> 160 | ES172: (151)
A173: 160 (153) | D173: 0 | F173: 0 | AC173: 11 | AD173: - | AE173: - | AF173: - | AG173: 153 | AH173: 160 | AI173: - | AJ173: 169 | AM173: 0 | AN173: 0 | AO173: 1 | AP173: 1 | AQ173: 1 | AR173: 1 | AS173: 1 | AT173: 1 | AU173: 1 | AV173: 1 | AW173: 1 | AX173: 1 | AY173: 0 | AZ173: 0 | BA173: 0 | BB173: 0 | BC173: 0 | BD173: 0 | BG173: 2 | BZ173: - | CA173: - | CB173: - | CC173: 9 | CE173: 0 | EP173: 134 | ER173: =IF(BG173>=1,AH173,"") -> 160 | ES173: (153)
A174: 160 (154) | D174: 0 | F174: 0 | AC174: 11 | AD174: - | AE174: - | AF174: - | AG174: 154 | AH174: 160 | AI174: - | AJ174: 170 | AM174: 0 | AN174: 0 | AO174: 1 | AP174: 1 | AQ174: 1 | AR174: 1 | AS174: 1 | AT174: 1 | AU174: 1 | AV174: 1 | AW174: 1 | AX174: 1 | AY174: 0 | AZ174: 0 | BA174: 0 | BB174: 0 | BC174: 0 | BD174: 0 | BG174: 2 | BZ174: - | CA174: - | CB174: - | CC174: 9 | CE174: 0 | EP174: 166 | ER174: =IF(BG174>1,AH174,"") -> 160 | ES174: (154)
A175: 160 (160) | D175: 0 | F175: 0 | AC175: 11 | AD175: - | AE175: - | AF175: - | AG175: 160 | AH175: 160 | AI175: - | AJ175: 171 | AM175: 0 | AN175: 0 | AO175: 1 | AP175: 1 | AQ175: 1 | AR175: 1 | AS175: 1 | AT175: 1 | AU175: 1 | AV175: 1 | AW175: 1 | AX175: 1 | AY175: 0 | AZ175: 0 | BA175: 0 | BB175: 0 | BC175: 0 | BD175: 0 | BG175: 2 | BZ175: - | CA175: - | CB175: - | CC175: 9 | CE175: 0 | EP175: 168 | ER175: 168 | ES175: (160)
A176: 160 (162) | D176: 0 | F176: 0 | AC176: 11 | AD176: - | AE176: - | AF176: - | AG176: 162 | AH176: 160 | AI176: - | AJ176: 172 | AM176: 0 | AN176: 0 | AO176: 1 | AP176: 1 | AQ176: 1 | AR176: 1 | AS176: 1 | AT176: 1 | AU176: 1 | AV176: 1 | AW176: 1 | AX176: 1 | AY176: 0 | AZ176: 0 | BA176: 0 | BB176: 0 | BC176: 0 | BD176: 0 | BG176: 2 | BZ176: - | CA176: - | CB176: - | CC176: 9 | CE176: 0 | EP176: 215 | ER176: =IF(BG176>1,AH176,"") -> 160 | ES176: (162)
A177: 160 (165) | D177: 0 | F177: 0 | AC177: 11 | AD177: - | AE177: - | AF177: - | AG177: 165 | AH177: 160 | AI177: - | AJ177: 173 | AM177: 0 | AN177: 0 | AO177: 1 | AP177: 1 | AQ177: 1 | AR177: 1 | AS177: 1 | AT177: 1 | AU177: 1 | AV177: 1 | AW177: 1 | AX177: 1 | AY177: 0 | AZ177: 0 | BA177: 0 | BB177: 0 | BC177: 0 | BD177: 0 | BG177: 2 | BZ177: - | CA177: - | CB177: - | CC177: 9 | CE177: 0 | EP177: 188 | ER177: 188 | ES177: (165)
A178: 160 (167) | D178: 0 | F178: 0 | AC178: 11 | AD178: - | AE178: - | AF178: - | AG178: 167 | AH178: 160 | AI178: - | AJ178: 174 | AM178: 0 | AN178: 0 | AO178: 1 | AP178: 1 | AQ178: 1 | AR178: 1 | AS178: 1 | AT178: 1 | AU178: 1 | AV178: 1 | AW178: 1 | AX178: 1 | AY178: 0 | AZ178: 0 | BA178: 0 | BB178: 0 | BC178: 0 | BD178: 0 | BG178: 2 | BZ178: - | CA178: - | CB178: - | CC178: 9 | CE178: 0 | EP178: 170 | ER178: =IF(BG178>1,AH178,"") -> 160 | ES178: (167)
A179: 160 (169) | D179: 0 | F179: 0 | AC179: 11 | AD179: - | AE179: - | AF179: - | AG179: 169 | AH179: 160 | AI179: - | AJ179: 175 | AM179: 0 | AN179: 0 | AO179: 1 | AP179: 1 | AQ179: 1 | AR179: 1 | AS179: 1 | AT179: 1 | AU179: 1 | AV179: 1 | AW179: 1 | AX179: 1 | AY179: 0 | AZ179: 0 | BA179: 0 | BB179: 0 | BC179: 0 | BD179: 0 | BG179: 2 | BZ179: - | CA179: - | CB179: - | CC179: 9 | CE179: 0 | EP179: 171 | ER179: 160 | ES179: (169)
A180: 160 (172) | D180: 0 | F180: 0 | AC180: 11 | AD180: - | AE180: - | AF180: - | AG180: 172 | AH180: 160 | AI180: - | AJ180: 176 | AM180: 0 | AN180: 0 | AO180: 1 | AP180: 1 | AQ180: 1 | AR180: 1 | AS180: 1 | AT180: 1 | AU180: 1 | AV180: 1 | AW180: 1 | AX180: 1 | AY180: 0 | AZ180: 0 | BA180: 0 | BB180: 0 | BC180: 0 | BD180: 0 | BG180: 2 | BZ180: - | CA180: - | CB180: - | CC180: 9 | CE180: 0 | EP180: 172 | ER180: 160 | ES180: (172)
A181: 160 (173) | D181: 0 | F181: 0 | AC181: 11 | AD181: - | AE181: - | AF181: - | AG181: 173 | AH181: 160 | AI181: - | AJ181: 177 | AM181: 0 | AN181: 0 | AO181: 1 | AP181: 1 | AQ181: 1 | AR181: 1 | AS181: 1 | AT181: 1 | AU181: 1 | AV181: 1 | AW181: 1 | AX181: 1 | AY181: 0 | AZ181: 0 | BA181: 0 | BB181: 0 | BC181: 0 | BD181: 0 | BG181: 2 | BZ181: - | CA181: - | CB181: - | CC181: 9 | CE181: 0 | EP181: 173 | ER181: 160 | ES181: (173)
A182: 160 (174) | D182: 0 | F182: 0 | AC182: 11 | AD182: - | AE182: - | AF182: - | AG182: 174 | AH182: 160 | AI182: - | AJ182: 178 | AM182: 0 | AN182: 0 | AO182: 1 | AP182: 1 | AQ182: 1 | AR182: 1 | AS182: 1 | AT182: 1 | AU182: 1 | AV182: 1 | AW182: 1 | AX182: 1 | AY182: 0 | AZ182: 0 | BA182: 0 | BB182: 0 | BC182: 0 | BD182: 0 | BG182: 2 | BZ182: - | CA182: - | CB182: - | CC182: 9 | CE182: 0 | EP182: 174 | ER182: 160 | ES182: (174)
A183: 160 (176) | D183: 0 | F183: 0 | AC183: 11 | AD183: - | AE183: - | AF183: - | AG183: 176 | AH183: 160 | AI183: - | AJ183: 179 | AM183: 0 | AN183: 0 | AO183: 1 | AP183: 1 | AQ183: 1 | AR183: 1 | AS183: 1 | AT183: 1 | AU183: 1 | AV183: 1 | AW183: 1 | AX183: 1 | AY183: 0 | AZ183: 0 | BA183: 0 | BB183: 0 | BC183: 0 | BD183: 0 | BG183: 2 | BZ183: - | CA183: - | CB183: - | CC183: 9 | CE183: 0 | EP183: 182 | ER183: 160 | ES183: (176)
A184: 160 (179) | D184: 0 | F184: 0 | AC184: 11 | AD184: - | AE184: - | AF184: - | AG184: 179 | AH184: 160 | AI184: - | AJ184: 180 | AM184: 0 | AN184: 0 | AO184: 1 | AP184: 1 | AQ184: 1 | AR184: 1 | AS184: 1 | AT184: 1 | AU184: 1 | AV184: 1 | AW184: 1 | AX184: 1 | AY184: 0 | AZ184: 0 | BA184: 0 | BB184: 0 | BC184: 0 | BD184: 0 | BG184: 2 | BZ184: - | CA184: - | CB184: - | CC184: 9 | CE184: 0 | EP184: 176 | ER184: 160 | ES184: (179)
A185: 160 (180) | D185: 0 | F185: 0 | AC185: 11 | AD185: - | AE185: - | AF185: - | AG185: 180 | AH185: 160 | AI185: - | AJ185: 181 | AM185: 0 | AN185: 0 | AO185: 1 | AP185: 1 | AQ185: 1 | AR185: 1 | AS185: 1 | AT185: 1 | AU185: 1 | AV185: 1 | AW185: 1 | AX185: 1 | AY185: 0 | AZ185: 0 | BA185: 0 | BB185: 0 | BC185: 0 | BD185: 0 | BG185: 2 | BZ185: - | CA185: - | CB185: - | CC185: 9 | CE185: 0 | EP185: 202 | ER185: 160 | ES185: (180)
A186: 160 (181) | D186: 0 | F186: 0 | AC186: 11 | AD186: - | AE186: - | AF186: - | AG186: 181 | AH186: 160 | AI186: - | AJ186: 182 | AM186: 0 | AN186: 0 | AO186: 1 | AP186: 1 | AQ186: 1 | AR186: 1 | AS186: 1 | AT186: 1 | AU186: 1 | AV186: 1 | AW186: 1 | AX186: 1 | AY186: 0 | AZ186: 0 | BA186: 0 | BB186: 0 | BC186: 0 | BD186: 0 | BG186: 2 | BZ186: - | CA186: - | CB186: - | CC186: 9 | CE186: 0 | EP186: 177 | ER186: 177 | ES186: (181)
A187: 160 (183) | D187: 0 | F187: 0 | AC187: 11 | AD187: - | AE187: - | AF187: - | AG187: 183 | AH187: 160 | AI187: - | AJ187: 183 | AM187: 0 | AN187: 0 | AO187: 1 | AP187: 1 | AQ187: 1 | AR187: 1 | AS187: 1 | AT187: 1 | AU187: 1 | AV187: 1 | AW187: 1 | AX187: 1 | AY187: 0 | AZ187: 0 | BA187: 0 | BB187: 0 | BC187: 0 | BD187: 0 | BG187: 2 | BZ187: - | CA187: - | CB187: - | CC187: 9 | CE187: 0 | EP187: 178 | ER187: =IF(BG187>1,AH187,"") -> 160 | ES187: (183)
A188: 160 (184) | D188: 0 | F188: 0 | AC188: 11 | AD188: - | AE188: - | AF188: - | AG188: 184 | AH188: 160 | AI188: - | AJ188: 184 | AM188: 0 | AN188: 0 | AO188: 1 | AP188: 1 | AQ188: 1 | AR188: 1 | AS188: 1 | AT188: 1 | AU188: 1 | AV188: 1 | AW188: 1 | AX188: 1 | AY188: 0 | AZ188: 0 | BA188: 0 | BB188: 0 | BC188: 0 | BD188: 0 | BG188: 2 | BZ188: - | CA188: - | CB188: - | CC188: 9 | CE188: 0 | EP188: 179 | ER188: 179 | ES188: (184)
A189: 160 (185) | D189: 0 | F189: 0 | AC189: 11 | AD189: - | AE189: - | AF189: - | AG189: 185 | AH189: 160 | AI189: - | AJ189: 185 | AM189: 0 | AN189: 0 | AO189: 1 | AP189: 1 | AQ189: 1 | AR189: 1 | AS189: 1 | AT189: 1 | AU189: 1 | AV189: 1 | AW189: 1 | AX189: 1 | AY189: 0 | AZ189: 0 | BA189: 0 | BB189: 0 | BC189: 0 | BD189: 0 | BG189: 2 | BZ189: - | CA189: - | CB189: - | CC189: 9 | CE189: 0 | EP189: 180 | ER189: =IF(BG189>1,AH189,"") -> 160 | ES189: (185)
A190: 160 (186) | D190: 0 | F190: 0 | AC190: 11 | AD190: - | AE190: - | AF190: - | AG190: 186 | AH190: 160 | AI190: - | AJ190: 186 | AM190: 0 | AN190: 0 | AO190: 1 | AP190: 1 | AQ190: 1 | AR190: 1 | AS190: 1 | AT190: 1 | AU190: 1 | AV190: 1 | AW190: 1 | AX190: 1 | AY190: 0 | AZ190: 0 | BA190: 0 | BB190: 0 | BC190: 0 | BD190: 0 | BG190: 2 | BZ190: - | CA190: - | CB190: - | CC190: 9 | CE190: 0 | EP190: 181 | ER190: =IF(BG190>1,AH190,"") -> 160 | ES190: (186)
A191: 160 (187) | D191: 0 | F191: 0 | AC191: 11 | AD191: - | AE191: - | AF191: - | AG191: 187 | AH191: 160 | AI191: - | AJ191: 187 | AM191: 0 | AN191: 0 | AO191: 1 | AP191: 1 | AQ191: 1 | AR191: 1 | AS191: 1 | AT191: 1 | AU191: 1 | AV191: 1 | AW191: 1 | AX191: 1 | AY191: 0 | AZ191: 0 | BA191: 0 | BB191: 0 | BC191: 0 | BD191: 0 | BG191: 2 | BZ191: - | CA191: - | CB191: - | CC191: 9 | CE191: 0 | EP191: 155 | ER191: =IF(BG191>=1,AH191,"") -> 160 | ES191: (187)
A192: 160 (188) | D192: 0 | F192: 0 | AC192: 11 | AD192: - | AE192: - | AF192: - | AG192: 188 | AH192: 160 | AI192: - | AJ192: 188 | AM192: 0 | AN192: 0 | AO192: 1 | AP192: 1 | AQ192: 1 | AR192: 1 | AS192: 1 | AT192: 1 | AU192: 1 | AV192: 1 | AW192: 1 | AX192: 1 | AY192: 0 | AZ192: 0 | BA192: 0 | BB192: 0 | BC192: 0 | BD192: 0 | BG192: 2 | BZ192: - | CA192: - | CB192: - | CC192: 9 | CE192: 0 | EP192: 183 | ER192: =IF(BG192>1,AH192,"") -> 160 | ES192: (188)
A193: 160 (189) | D193: 0 | F193: 0 | AC193: 11 | AD193: - | AE193: - | AF193: - | AG193: 189 | AH193: 160 | AI193: - | AJ193: 189 | AM193: 0 | AN193: 0 | AO193: 1 | AP193: 1 | AQ193: 1 | AR193: 1 | AS193: 1 | AT193: 1 | AU193: 1 | AV193: 1 | AW193: 1 | AX193: 1 | AY193: 0 | AZ193: 0 | BA193: 0 | BB193: 0 | BC193: 0 | BD193: 0 | BG193: 2 | BZ193: - | CA193: - | CB193: - | CC193: 9 | CE193: 0 | EP193: 185 | ER193: 160 | ES193: (189)
A194: 160 (190) | D194: 0 | F194: 0 | AC194: 11 | AD194: - | AE194: - | AF194: - | AG194: 190 | AH194: 160 | AI194: - | AJ194: 190 | AM194: 0 | AN194: 0 | AO194: 1 | AP194: 1 | AQ194: 1 | AR194: 1 | AS194: 1 | AT194: 1 | AU194: 1 | AV194: 1 | AW194: 1 | AX194: 1 | AY194: 0 | AZ194: 0 | BA194: 0 | BB194: 0 | BC194: 0 | BD194: 0 | BG194: 2 | BZ194: - | CA194: - | CB194: - | CC194: 9 | CE194: 0 | EP194: 186 | ER194: 160 | ES194: (190)
A195: 160 (191) | D195: 0 | F195: 0 | AC195: 11 | AD195: - | AE195: - | AF195: - | AG195: 191 | AH195: 160 | AI195: - | AJ195: 191 | AM195: 0 | AN195: 0 | AO195: 1 | AP195: 1 | AQ195: 1 | AR195: 1 | AS195: 1 | AT195: 1 | AU195: 1 | AV195: 1 | AW195: 1 | AX195: 1 | AY195: 0 | AZ195: 0 | BA195: 0 | BB195: 0 | BC195: 0 | BD195: 0 | BG195: 2 | BZ195: - | CA195: - | CB195: - | CC195: 9 | CE195: 0 | EP195: 187 | ER195: 160 | ES195: (191)
A196: 160 (192) | D196: 0 | F196: 0 | AC196: 11 | AD196: - | AE196: - | AF196: - | AG196: 192 | AH196: 160 | AI196: - | AJ196: 192 | AM196: 0 | AN196: 0 | AO196: 1 | AP196: 1 | AQ196: 1 | AR196: 1 | AS196: 1 | AT196: 1 | AU196: 1 | AV196: 1 | AW196: 1 | AX196: 1 | AY196: 0 | AZ196: 0 | BA196: 0 | BB196: 0 | BC196: 0 | BD196: 0 | BG196: 2 | BZ196: - | CA196: - | CB196: - | CC196: 9 | CE196: 0 | EP196: 205 | ER196: 160 | ES196: (192)
A197: =IF(BG197>1,AH197&" ("&AG197&")",AH197&" ("&AI197&")") -> 160 (193) | D197: =SUM(BJ197:BU197) -> 0 | F197: =COUNT(I197:AB197) -> 0 | G197: =SUM((CE197)/(F197*2)) ->  | AC197: =SUM($I$3:$AB$3) -> 11 | AD197: =BZ197 -> - | AE197: =CA197 -> - | AF197: =CB197 -> - | AG197: 193 | AH197: =IF(D197<D196,AJ197,AH196) -> 160 | AI197: =IF(F197>1,ROW(193:193),"-") -> - | AJ197: 193 | AM197: 0 | AN197: 0 | AO197: 1 | AP197: 1 | AQ197: 1 | AR197: 1 | AS197: 1 | AT197: 1 | AU197: 1 | AV197: 1 | AW197: 1 | AX197: 1 | AY197: 0 | AZ197: 0 | BA197: 0 | BB197: 0 | BC197: 0 | BD197: 0 | BG197: =IF(H197="x",1,2) -> 2 | BJ197: =IF($F197>0,LARGE($I197:$AB197,1),"") ->  | BK197: =IF($F197>1,LARGE($I197:$AB197,2),"") ->  | BL197: =IF($F197>2,LARGE($I197:$AB197,3),"") ->  | BM197: =IF($F197>3,LARGE($I197:$AB197,4),"") ->  | BN197: =IF($F197>4,LARGE($I197:$AB197,5),"") ->  | BO197: =IF($F197>5,LARGE($I197:$AB197,6),"") ->  | BP197: =IF($F197>6,LARGE($I197:$AB197,7),"") ->  | BQ197: =IF($F197>7,LARGE($I197:$AB197,8),"") ->  | BR197: =IF($F197>8,LARGE($I197:$AB197,9),"") ->  | BS197: =IF($F197>9,LARGE($I197:$AB197,10),"") ->  | BT197: =IF($F197>10,LARGE($I197:$AB197,11),"") ->  | BU197: =IF($F197>11,LARGE($I197:$AB197,12),"") ->  | BV197: =IF($F197>12,LARGE($I197:$AB197,13),"") ->  | BW197: =IF($F197>13,LARGE($I197:$AB197,14),"") ->  | BX197: =IF($F197>14,LARGE($I197:$AB197,15),"") ->  | BY197: =IF($F197>15,LARGE($I197:$AB197,16),"") ->  | BZ197: - | CA197: - | CB197: - | CC197: =SUM(AC197-F197)-2 -> 9 | CE197: =SUM(BJ197:BY197) -> 0 | EP197: 216 | ER197: 160 | ES197: =IF(BG197>1,"("&AG197&")","("&AI197&")") -> (193)
A198: 160 (194) | D198: 0 | F198: 0 | AC198: 11 | AD198: - | AE198: - | AF198: - | AG198: 194 | AH198: 160 | AI198: - | AJ198: 194 | AM198: =COUNT($I$3,I198,H198) -> 0 | AN198: =COUNT($J$3,J198,I198) -> 0 | AO198: =COUNT($K$3,K198,J198) -> 1 | AP198: =COUNT($L$3,L198,K198) -> 1 | AQ198: =COUNT($M$3,M198,L198) -> 1 | AR198: =COUNT($N$3,N198,M198) -> 1 | AS198: =COUNT($O$3,O198,N198) -> 1 | AT198: =COUNT($P$3,P198,O198) -> 1 | AU198: =COUNT($R$3,R198,P198) -> 1 | AV198: =COUNT($S$3,S198,R198) -> 1 | AW198: =COUNT($T$3,T198,S198) -> 1 | AX198: =COUNT($U$3,U198,T198) -> 1 | AY198: =COUNT($V$3,V198,U198) -> 0 | AZ198: =COUNT($W$3,W198,V198) -> 0 | BA198: =COUNT($X$3,X198,W198) -> 0 | BB198: =COUNT($Y$3,Y198,X198) -> 0 | BC198: =COUNT($AA$3,AA198,Y198) -> 0 | BD198: =COUNT($AB$3,AB198,AA198) -> 0 | BG198: 2 | BZ198: =IF($F198>12,LARGE($I198:$AB198,13),"-") -> - | CA198: =IF($F198>13,LARGE($I198:$AB198,14),"-") -> - | CB198: =IF($F198>14,LARGE($I198:$AB198,15),"-") -> - | CC198: 9 | CE198: 0 | EP198: 189 | ER198: 160 | ES198: (194)
A199: 160 (195) | D199: 0 | F199: 0 | AC199: 11 | AD199: - | AE199: - | AF199: - | AG199: 195 | AH199: 160 | AI199: - | AJ199: 195 | AM199: 0 | AN199: 0 | AO199: 1 | AP199: 1 | AQ199: 1 | AR199: 1 | AS199: 1 | AT199: 1 | AU199: 1 | AV199: 1 | AW199: 1 | AX199: 1 | AY199: 0 | AZ199: 0 | BA199: 0 | BB199: 0 | BC199: 0 | BD199: 0 | BG199: 2 | BZ199: - | CA199: - | CB199: - | CC199: 9 | CE199: 0 | EP199: 190 | ER199: 160 | ES199: (195)
A200: 160 (196) | D200: 0 | F200: 0 | AC200: 11 | AD200: - | AE200: - | AF200: - | AG200: 196 | AH200: 160 | AI200: - | AJ200: 196 | AM200: 0 | AN200: 0 | AO200: 1 | AP200: 1 | AQ200: 1 | AR200: 1 | AS200: 1 | AT200: 1 | AU200: 1 | AV200: 1 | AW200: 1 | AX200: 1 | AY200: 0 | AZ200: 0 | BA200: 0 | BB200: 0 | BC200: 0 | BD200: 0 | BG200: 2 | BZ200: - | CA200: - | CB200: - | CC200: 9 | CE200: 0 | EP200: 191 | ER200: 160 | ES200: (196)
... 236 more rows

Sheet Regler
A1: Regler för Sverige-,Junior- o Miniorranking
A3: Rankingpoäng utgör den totala poängen från rankingtävlingar under säsongen
A4: som varje enskild kastare har fått ihop.
A5: Max från 13 tävlingar kan medräknas, och då räknas de 13 med högst resultat.
A7: Den som har högst poäng när säsongen är över vinner.
A9: Skulle det vara kastare som hamnar på samma poäng när säsongen är över, och är bland de
A10: tre bästa så gäller detta för att skilja dem åt.
A12: 1. Högst snitt per serie
A13: 2. Högst poäng på en tävling, sedan näst högst osv.
A14: 3. Högsta poängen på senaste tävlingen, sedan den dessför innan osv.(DM-tävlingar ej inräknade)
A15: 4. Skulle det fortfarande inte gå att skilja dem åt, så blir de på samma plats.
A18: Seriespelsranking
A20: Alla individuella seriespelsresultaten under säsongen räknas in.
A21: Den som har högst snitt när säsongen är över vinner.
A23: För att kunna vara bland de tre pristagarna, måste man spelat minst 7 serier.
A25: Skulle det vara kastare som hamnar på samma snitt när säsongen är över, och är bland de
A26: tre bästa så gäller detta för att skilja dem åt.
A28: 1. Det högsta serieresultatet, sedan näst högsta osv.
A29: 2. Skulle det fortfarande inte gå att skilja dem åt, så blir de på samma plats.

Sheet Miniorranking
B1: Svenska Hästskokastarförbundets Sverigeranking | AE1: =COUNT(I5:AC25)-(O2+P2+W2+X2) -> 7
C2: MINIOR | I2: =COUNT(I5:I25) -> 0 | J2: =COUNT(J5:J25) -> 0 | K2: 0 | L2: 0 | M2: 3 | N2: 1 | O2: 0 | P2: 3 | Q2: 0 | R2: 0 | S2: 0 | T2: 0 | U2: 3 | V2: 0 | W2: 0 | X2: 0 | Y2: =COUNT(Y5:Y25) -> 0 | Z2: 0 | AA2: 0
B3: SLUTSTÄLLNING | C3: Säsong 2020 / 2021 | I3: =IF(SUM(I5:I407)>70,1,"") ->  | J3: =IF(SUM(J5:J407)>7,1,"") ->  | K3: =IF(SUM(K5:K407)>7,1,"") ->  | M3: 1 | N3: 1 | P3: 1 | U3: 1 | Y3: =IF(SUM(Y5:Y407)>7,1,"") ->  | AB3: =IF(SUM(AB5:AB407)>100,1,"") -> 
A4: Plac. | B4: Kastare | C4: Klubb | D4: Ranking-poäng | F4: Antal täv-lingar | G4: Snitt per serie | I4: Jämjö Open | J4: Björkenäs Open | K4: Utomhus-SM Dag 1 | L4: Utomhus-SM Dag 2 | M4: Vaxholm Open | N4: Blekinge-DM Ute | O4: Utomhus Smålandsmästaren | P4: Dynapac Open | Q4: Stockholms-DM ute | R4: Åseda Open | S4: Färsna Cup | T4: Höstskon Nybro | U4: Carlskrona Cup | V4: Sibbamåla Open | W4: Blekinge DM Inne | X4: Inomhus-SM | Y4: Värendspokalen | Z4: Tingsryds Open
A5: =EL5&EM5 -> 1(1) | B5: Albin Rydell | C5: Värends Hsk | D5: =SUM(I5:AC5) -> 185 | F5: =COUNT(I5:AC5) -> 1 | G5: =SUM((D5)/(F5*2)) -> 92.5 | U5: 185 | AF5: 1 | AG5: =IF(D5>1,ROW(1:1),"-") -> 1 | AH5: =IF(F5>1,ROW(1:1),"-") -> - | AL5: =COUNT($I$3,I5,H5) -> 0 | AM5: =COUNT($J$3,J5,I5) -> 0 | AN5: =COUNT($K$3,K5,J5) -> 0 | AO5: =COUNT($L$3,L5,K5) -> 0 | AP5: =COUNT($M$3,M5,L5) -> 1 | AQ5: =COUNT($N$3,N5,M5) -> 1 | AR5: =COUNT($O$3,O5,N5) -> 0 | AS5: =COUNT($P$3,P5,O5) -> 1 | AT5: =COUNT($R$3,R5,P5) -> 0 | AU5: =COUNT($S$3,S5,R5) -> 0 | AV5: =COUNT($T$3,T5,S5) -> 0 | AW5: =COUNT($U$3,U5,T5) -> 2 | AX5: =COUNT($V$3,V5,U5) -> 1 | AY5: =COUNT($W$3,W5,V5) -> 0 | AZ5: =COUNT($X$3,X5,W5) -> 0 | BA5: =COUNT($Z$3,Z5,X5) -> 0 | BB5: =COUNT($AA$3,AA5,Z5) -> 0 | BC5: =COUNT($AB$3,AB5,AA5) -> 0 | BD5: =COUNT($AC$3,AC5,AB5) -> 0 | BF5: =COUNTIF(AK5:BE5,">1") -> 1 | BG5: =IF(H5="x",1,2) -> 2 | EJ5: 1 | EL5: =IF(BF5>=1,AG5,"") -> 1 | EM5: =IF(BG5>1,"("&AF5&")","("&AH5&")") -> (1)
A6: 2(2) | B6: Saga Karlberg | C6: Jämjö Hsk | D6: 183 | F6: 2 | G6: 45.75 | N6: 94 | P6: 89 | AF6: 2 | AG6: =IF(AND(D6=D5,D6=D4),ROW(#REF!),IF(D6=D5,ROW(1:1),IF(D6>1,ROW(2:2),"-"))) -> 2 | AH6: 2 | AL6: 0 | AM6: 0 | AN6: 0 | AO6: 0 | AP6: 1 | AQ6: 2 | AR6: 1 | AS6: 2 | AT6: 1 | AU6: 0 | AV6: 0 | AW6: 1 | AX6: 0 | AY6: 0 | AZ6: 0 | BA6: 0 | BB6: 0 | BC6: 0 | BD6: 0 | BF6: 2 | BG6: 2 | EJ6: 3 | EL6: 2 | EM6: (2)
A7: 3(3) | B7: William Fernandez | C7: Vaxholm | D7: 116 | F7: 1 | G7: 58 | M7: 116 | AF7: 3 | AG7: =IF(AND(D7=D6,D7=D5,D7=D4),ROW(#REF!),IF(AND(D7=D6,D7=D5),ROW(1:1),IF(D7=D6,ROW(2:2),IF(D7>1,ROW(3:3),"-")))) -> 3 | AH7: - | AL7: 0 | AM7: 0 | AN7: 0 | AO7: 0 | AP7: 2 | AQ7: 2 | AR7: 0 | AS7: 1 | AT7: 0 | AU7: 0 | AV7: 0 | AW7: 1 | AX7: 0 | AY7: 0 | AZ7: 0 | BA7: 0 | BB7: 0 | BC7: 0 | BD7: 0 | BF7: 2 | BG7: 2 | EJ7: 4 | EL7: 3 | EM7: (3)
A8: 4(4) | B8: Elvin Rydell | C8: Värends Hsk | D8: 95 | F8: 1 | G8: 47.5 | U8: 95 | AF8: 4 | AG8: =IF(AND(D8=D7,D8=D6,D8=D5,D8=D4),ROW(#REF!),IF(AND(D8=D7,D8=D6,D8=D5),ROW(1:1),IF(AND(D8=D7,D8=D6),ROW(2:2),IF(D8=D7,ROW(3:3),IF(D8>1,ROW(4:4),"-"))))) -> 4 | AH8: - | AL8: 0 | AM8: 0 | AN8: 0 | AO8: 0 | AP8: 1 | AQ8: 1 | AR8: 0 | AS8: 1 | AT8: 0 | AU8: 0 | AV8: 0 | AW8: 2 | AX8: 1 | AY8: 0 | AZ8: 0 | BA8: 0 | BB8: 0 | BC8: 0 | BD8: 0 | BF8: 1 | BG8: 2 | EJ8: 5 | EL8: 4 | EM8: (4)
A9: 5(5) | B9: Alex Rydell | C9: Värends Hsk | D9: 84 | F9: 1 | G9: 42 | U9: 84 | AF9: 5 | AG9: =IF(AND(D9=D8,D9=D7,D9=D6,D9=D5),ROW(1:1),IF(AND(D9=D8,D9=D7,D9=D6),ROW(2:2),IF(AND(D9=D8,D9=D7),ROW(3:3),IF(D9=D8,ROW(4:4),IF(D9>1,ROW(5:5),"-"))))) -> 5 | AH9: - | AL9: 0 | AM9: 0 | AN9: 0 | AO9: 0 | AP9: 1 | AQ9: 1 | AR9: 0 | AS9: 1 | AT9: 0 | AU9: 0 | AV9: 0 | AW9: 2 | AX9: 1 | AY9: 0 | AZ9: 0 | BA9: 0 | BB9: 0 | BC9: 0 | BD9: 0 | BF9: 1 | BG9: 2 | EJ9: 6 | EL9: 5 | EM9: (5)
A10: 6(6) | B10: Gustav Svensson | C10: Carlskrona Hsc | D10: 68 | F10: 1 | G10: 34 | P10: 68 | AF10: 6 | AG10: =IF(AND(D10=D9,D10=D8,D10=D7,D10=D6),ROW(2:2),IF(AND(D10=D9,D10=D8,D10=D7),ROW(3:3),IF(AND(D10=D9,D10=D8),ROW(4:4),IF(D10=D9,ROW(5:5),IF(D10>1,ROW(6:6),"-"))))) -> 6 | AH10: - | AL10: 0 | AM10: 0 | AN10: 0 | AO10: 0 | AP10: 1 | AQ10: 1 | AR10: 0 | AS10: 2 | AT10: 1 | AU10: 0 | AV10: 0 | AW10: 1 | AX10: 0 | AY10: 0 | AZ10: 0 | BA10: 0 | BB10: 0 | BC10: 0 | BD10: 0 | BF10: 1 | BG10: 2 | EJ10: 7 | EL10: 6 | EM10: (6)
A11: 7(-) | B11: Ludvig Holmgren | C11: Carlskrona Hsc | D11: 60 | F11: 1 | G11: 30 | P11: 60 | AF11: - | AG11: =IF(AND(D11=D10,D11=D9,D11=D8,D11=D7),ROW(3:3),IF(AND(D11=D10,D11=D9,D11=D8),ROW(4:4),IF(AND(D11=D10,D11=D9),ROW(5:5),IF(D11=D10,ROW(6:6),IF(D11>1,ROW(7:7),"-"))))) -> 7 | AH11: - | AL11: 0 | AM11: 0 | AN11: 0 | AO11: 0 | AP11: 1 | AQ11: 1 | AR11: 0 | AS11: 2 | AT11: 1 | AU11: 0 | AV11: 0 | AW11: 1 | AX11: 0 | AY11: 0 | AZ11: 0 | BA11: 0 | BB11: 0 | BC11: 0 | BD11: 0 | BF11: 1 | BG11: 2 | EJ11: 8 | EL11: 7 | EM11: (-)
A12: 8(7) | B12: Victor Fernandez | C12: Vaxholm | D12: 50 | F12: 1 | G12: 25 | M12: 50 | AF12: 7 | AG12: =IF(AND(D12=D11,D12=D10,D12=D9,D12=D8),ROW(4:4),IF(AND(D12=D11,D12=D10,D12=D9),ROW(5:5),IF(AND(D12=D11,D12=D10),ROW(6:6),IF(D12=D11,ROW(7:7),IF(D12>1,ROW(8:8),"-"))))) -> 8 | AH12: - | AL12: 0 | AM12: 0 | AN12: 0 | AO12: 0 | AP12: 2 | AQ12: 2 | AR12: 0 | AS12: 1 | AT12: 0 | AU12: 0 | AV12: 0 | AW12: 1 | AX12: 0 | AY12: 0 | AZ12: 0 | BA12: 0 | BB12: 0 | BC12: 0 | BD12: 0 | BF12: 2 | BG12: 2 | EJ12: 9 | EL12: 8 | EM12: (7)
A13: 9(8) | B13: Melker Gundersen | C13: Vaxholm | D13: 41 | F13: 1 | G13: 20.5 | M13: 41 | AF13: 8 | AG13: =IF(D13=D12,ROW(8:8),IF(D13>1,ROW(9:9),"-")) -> 9 | AH13: - | AL13: 0 | AM13: 0 | AN13: 0 | AO13: 0 | AP13: 2 | AQ13: 2 | AR13: 0 | AS13: 1 | AT13: 0 | AU13: 0 | AV13: 0 | AW13: 1 | AX13: 0 | AY13: 0 | AZ13: 0 | BA13: 0 | BB13: 0 | BC13: 0 | BD13: 0 | BF13: 2 | BG13: 2 | EJ13: 2 | EL13: 9 | EM13: (8)
A14: (7) | D14: 0 | F14: 0 | AF14: 7 | AG14: =IF(AND(D14=D13,D14=D12,D14=D11,D14=D10),ROW(6:6),IF(AND(D14=D13,D14=D12,D14=D11),ROW(7:7),IF(AND(D14=D13,D14=D12),ROW(8:8),IF(D14=D13,ROW(9:9),IF(D14>1,ROW(10:10),"-"))))) -> - | AH14: - | AL14: 0 | AM14: 0 | AN14: 0 | AO14: 0 | AP14: 1 | AQ14: 1 | AR14: 0 | AS14: 1 | AT14: 0 | AU14: 0 | AV14: 0 | AW14: 1 | AX14: 0 | AY14: 0 | AZ14: 0 | BA14: 0 | BB14: 0 | BC14: 0 | BD14: 0 | BF14: =COUNTIF(AK14:BE14,">1") -> 0 | BG14: 2 | EJ14: 10 | EL14: =IF(BF14>=1,AG14,"") ->  | EM14: =IF(BG14>1,"("&AF14&")","("&AH14&")") -> (7)
A15: (7) | D15: 0 | F15: 0 | AF15: 7 | AG15: 10 | AH15: - | AL15: 0 | AM15: 0 | AN15: 0 | AO15: 0 | AP15: 1 | AQ15: 1 | AR15: 0 | AS15: 1 | AT15: 0 | AU15: 0 | AV15: 0 | AW15: 1 | AX15: 0 | AY15: 0 | AZ15: 0 | BA15: 0 | BB15: 0 | BC15: 0 | BD15: 0 | BF15: 0 | BG15: 2 | EJ15: 11 | EM15: (7)
A16: (8) | D16: 0 | F16: 0 | AF16: 8 | AG16: 10 | AH16: - | AL16: 0 | AM16: 0 | AN16: 0 | AO16: 0 | AP16: 1 | AQ16: 1 | AR16: 0 | AS16: 1 | AT16: 0 | AU16: 0 | AV16: 0 | AW16: 1 | AX16: 0 | AY16: 0 | AZ16: 0 | BA16: 0 | BB16: 0 | BC16: 0 | BD16: 0 | BF16: 0 | BG16: 2 | EJ16: 12 | EM16: (8)
A17: (9) | D17: 0 | F17: 0 | AF17: 9 | AG17: 10 | AH17: - | AL17: 0 | AM17: 0 | AN17: 0 | AO17: 0 | AP17: 1 | AQ17: 1 | AR17: 0 | AS17: 1 | AT17: 0 | AU17: 0 | AV17: 0 | AW17: 1 | AX17: 0 | AY17: 0 | AZ17: 0 | BA17: 0 | BB17: 0 | BC17: 0 | BD17: 0 | BF17: 0 | BG17: 2 | EJ17: 13 | EM17: (9)
A18: (10) | D18: 0 | F18: 0 | AF18: 10 | AG18: 10 | AH18: - | AL18: 0 | AM18: 0 | AN18: 0 | AO18: 0 | AP18: 1 | AQ18: 1 | AR18: 0 | AS18: 1 | AT18: 0 | AU18: 0 | AV18: 0 | AW18: 1 | AX18: 0 | AY18: 0 | AZ18: 0 | BA18: 0 | BB18: 0 | BC18: 0 | BD18: 0 | BF18: 0 | BG18: 2 | EJ18: 14 | EL18: =IF(BF18>=1,AG18,"") ->  | EM18: (10)
A19: (11) | D19: 0 | F19: 0 | AF19: 11 | AG19: 11 | AH19: - | AL19: 0 | AM19: 0 | AN19: 0 | AO19: 0 | AP19: 1 | AQ19: 1 | AR19: 0 | AS19: 1 | AT19: 0 | AU19: 0 | AV19: 0 | AW19: 1 | AX19: 0 | AY19: 0 | AZ19: 0 | BA19: 0 | BB19: 0 | BC19: 0 | BD19: 0 | BF19: 0 | BG19: 2 | EJ19: 15 | EM19: (11)
A20: (12) | D20: 0 | F20: 0 | AF20: 12 | AG20: 12 | AH20: - | AL20: 0 | AM20: 0 | AN20: 0 | AO20: 0 | AP20: 1 | AQ20: 1 | AR20: 0 | AS20: 1 | AT20: 0 | AU20: 0 | AV20: 0 | AW20: 1 | AX20: 0 | AY20: 0 | AZ20: 0 | BA20: 0 | BB20: 0 | BC20: 0 | BD20: 0 | BF20: 0 | BG20: 2 | EJ20: 16 | EL20: =IF(BF20>=1,AG20,"") ->  | EM20: (12)
A21: (13) | D21: 0 | F21: 0 | AF21: 13 | AG21: 13 | AH21: - | AL21: 0 | AM21: 0 | AN21: 0 | AO21: 0 | AP21: 1 | AQ21: 1 | AR21: 0 | AS21: 1 | AT21: 0 | AU21: 0 | AV21: 0 | AW21: 1 | AX21: 0 | AY21: 0 | AZ21: 0 | BA21: 0 | BB21: 0 | BC21: 0 | BD21: 0 | BF21: 0 | BG21: 2 | EJ21: 17 | EM21: (13)
A22: (14) | D22: 0 | F22: 0 | AF22: 14 | AG22: 14 | AH22: - | AL22: 0 | AM22: 0 | AN22: 0 | AO22: 0 | AP22: 1 | AQ22: 1 | AR22: 0 | AS22: 1 | AT22: 0 | AU22: 0 | AV22: 0 | AW22: 1 | AX22: 0 | AY22: 0 | AZ22: 0 | BA22: 0 | BB22: 0 | BC22: 0 | BD22: 0 | BF22: 0 | BG22: 2 | EJ22: 18 | EM22: (14)
A23: (15) | D23: 0 | F23: 0 | AF23: 15 | AG23: 15 | AH23: - | AL23: 0 | AM23: 0 | AN23: 0 | AO23: 0 | AP23: 1 | AQ23: 1 | AR23: 0 | AS23: 1 | AT23: 0 | AU23: 0 | AV23: 0 | AW23: 1 | AX23: 0 | AY23: 0 | AZ23: 0 | BA23: 0 | BB23: 0 | BC23: 0 | BD23: 0 | BF23: =COUNTIF(AK23:BE23,">1") -> 0 | BG23: 2 | EJ23: 19 | EM23: =IF(BG23>1,"("&AF23&")","("&AH23&")") -> (15)
A24: (16) | D24: 0 | F24: 0 | AF24: 16 | AG24: 16 | AH24: - | AL24: 0 | AM24: 0 | AN24: 0 | AO24: 0 | AP24: 1 | AQ24: 1 | AR24: 0 | AS24: 1 | AT24: 0 | AU24: 0 | AV24: 0 | AW24: 1 | AX24: 0 | AY24: 0 | AZ24: 0 | BA24: 0 | BB24: 0 | BC24: 0 | BD24: 0 | BF24: 0 | BG24: 2 | EJ24: 20 | EM24: (16)
A25: (17) | D25: 0 | F25: 0 | AF25: 17 | AG25: 17 | AH25: - | AL25: =COUNT($I$3,I25,H25) -> 0 | AM25: =COUNT($J$3,J25,I25) -> 0 | AN25: =COUNT($K$3,K25,J25) -> 0 | AO25: =COUNT($L$3,L25,K25) -> 0 | AP25: =COUNT($M$3,M25,L25) -> 1 | AQ25: =COUNT($N$3,N25,M25) -> 1 | AR25: =COUNT($O$3,O25,N25) -> 0 | AS25: =COUNT($P$3,P25,O25) -> 1 | AT25: =COUNT($R$3,R25,P25) -> 0 | AU25: =COUNT($S$3,S25,R25) -> 0 | AV25: =COUNT($T$3,T25,S25) -> 0 | AW25: =COUNT($U$3,U25,T25) -> 1 | AX25: =COUNT($V$3,V25,U25) -> 0 | AY25: =COUNT($W$3,W25,V25) -> 0 | AZ25: =COUNT($X$3,X25,W25) -> 0 | BA25: =COUNT($Z$3,Z25,X25) -> 0 | BB25: =COUNT($AA$3,AA25,Z25) -> 0 | BC25: =COUNT($AB$3,AB25,AA25) -> 0 | BD25: =COUNT($AC$3,AC25,AB25) -> 0 | BF25: =COUNTIF(AK25:BE25,">1") -> 0 | BG25: =IF(H25="x",1,2) -> 2 | EJ25: 21 | EM25: =IF(BG25>1,"("&AF25&")","("&AH25&")") -> (17)
EJ28: 1 | EL28: =IF(BF28>=1,AG28,"") ->  | EM28: =IF(BF28>1,"("&AF28&")","("&AH28&")") -> ()
EJ29: 3 | EM29: ()
EJ30: 4 | EM30: ()
EJ31: 5 | EM31: ()
EJ32: 6 | EM32: ()
EJ33: 7 | EM33: ()
EJ34: 8 | EM34: ()
EJ35: 9 | EM35: ()
EJ36: 10 | EM36: ()
EJ37: 11 | EM37: ()
EJ38: 12 | EM38: ()
EJ39: 13 | EM39: ()
EJ40: 14 | EL40: =IF(BF40>=1,AG40,14) -> 14 | EM40: ()
EJ41: 15 | EL41: =IF(BF41>=1,AG41,"") ->  | EM41: ()
EJ42: 16 | EL42: =IF(BF42>=1,AG42,"") ->  | EM42: ()
EJ43: 2 | EL43: =IF(BF43>=1,AG43,"") ->  | EM43: ()
EJ44: 17 | EL44: =IF(BF44>=1,AG44,"") ->  | EM44: =IF(BF44>2,"("&AF44&")","("&AH44&")") -> ()
EJ45: 18 | EL45: 18 | EM45: =IF(BF45>1,"("&AF45&")","("&AH45&")") -> ()
EJ46: 19 | EL46: 19 | EM46: =IF(BF46>1,"("&AF46&")","("&AH46&")") -> ()
EJ47: 20 | EL47: 20 | EM47: =IF(BF47>1,"("&AF47&")","("&AH47&")") -> ()

Sheet Seriespelsranking
B1: Svenska Hästskokastarförbundets Seriespelsranking
B2: 2020_2021
B3: Seriespelet läggs ner denna säsong
A4: Plac. | B4: Kastare | C4: Klubb | D4: Ranking-snitt | F4: Antal serie-resultat | G4: Total-poäng serie-resultat | I4: Antal vunna dubblar | J4: Antal förlorade dubblar | K4: Antal vunna singlar | L4: Antal förlorade singlar | M4: Antal vunna matcher i % | N4: Inskrivning resultat | BQ4: Uträkning för | BR4: statistik vunna resp. | BS4: förlorade | BT4: dubblar och singlar.
A5: =IF(H5="x",DU5&EF5,DU5&EE5) -> 1(1) | B5: Tobias Gneupel | C5: Sibbamåla | D5: =IF(F5>0.5,(G5/F5),0) -> 239.1333333 | F5: =COUNT(N5:BO5) -> 15 | G5: =SUM(N5:BO5) -> 3587 | I5: =COUNTIF(BQ5:DR5,2) -> 0 | J5: =COUNTIF(BQ5:DR5,-2) -> 0 | K5: =COUNTIF(BQ5:DR5,1) -> 0 | L5: =COUNTIF(BQ5:DR5,-1) -> 0 | M5: =IF(F5>0,(I5+K5)/(F5),0) -> 0 | N5: 218 | O5: 253 | P5: 259 | Q5: 202 | R5: 185 | S5: 309 | T5: 200 | U5: 265 | V5: 282 | W5: 203 | X5: 284 | Y5: 246 | Z5: 228 | AA5: 228 | AB5: 225 | DT5: 1 | DU5: =IF(AND(D5=D4,D5=D3,D5=D2,D5=D1),ROW(1:1),IF(AND(D5=D4,D5=D3,D5=D2),ROW(1:1),IF(AND(D5=D4,D5=D3),ROW(1:1),IF(D5=D4,ROW(1:1),IF(D5>1,ROW(1:1),"-"))))) -> 1 | DV5: =IF(DX5=1,ROW(1:1),"-") -> 1 | DX5: 1 | EB5: 11 | ED5: =IF(DX5=1,DU5,IF(DX5="",DU5,"")) -> 1 | EE5: =IF(DX5=1,"("&DT5&")","("&DV5&")") -> (1) | EF5: (-)
A6: =IF(H6="x",DU6&EF6,DU6&EE6) -> 2(2) | B6: Kent Sundahl | C6: Carlskrona | D6: 206.2 | F6: 15 | G6: 3093 | I6: 0 | J6: 0 | K6: 0 | L6: 0 | M6: 0 | N6: 184 | O6: 209 | P6: 148 | Q6: 286 | R6: 192 | S6: 254 | T6: 151 | U6: 190 | V6: 222 | W6: 247 | X6: 217 | Y6: 168 | Z6: 272 | AA6: 176 | AB6: 177 | DT6: 2 | DU6: =IF(AND(D6=D5,D6=D4,D6=D3,D6=D2),ROW(1:1),IF(AND(D6=D5,D6=D4,D6=D3),ROW(1:1),IF(AND(D6=D5,D6=D4),ROW(1:1),IF(D6=D5,ROW(1:1),IF(D6>1,ROW(2:2),"-"))))) -> 2 | DV6: 2 | DX6: 1 | EB6: 16 | ED6: 2 | EE6: (2) | EF6: (-)
A7: 3(3) | B7: Matz Karlsson | C7: Korpen Åseda | D7: 202.5294118 | F7: 17 | G7: 3443 | I7: 0 | J7: 0 | K7: 0 | L7: 0 | M7: 0 | N7: 167 | O7: 253 | P7: 187 | Q7: 216 | R7: 297 | S7: 120 | T7: 152 | U7: 164 | V7: 155 | W7: 213 | X7: 205 | Y7: 261 | Z7: 199 | AA7: 236 | AB7: 192 | AC7: 220 | AD7: 206 | DT7: 3 | DU7: =IF(AND(D7=D6,D7=D5,D7=D4,D7=D3),ROW(1:1),IF(AND(D7=D6,D7=D5,D7=D4),ROW(1:1),IF(AND(D7=D6,D7=D5),ROW(1:1),IF(D7=D6,ROW(2:2),IF(D7>1,ROW(3:3),"-"))))) -> 3 | DV7: 3 | DX7: 1 | EB7: 20 | ED7: 3 | EE7: (3) | EF7: (-)
A8: 4(4) | B8: Jean Fredriksson Väre | C8: Skärgårdsalliansen | D8: 188.6666667 | F8: 3 | G8: 566 | I8: 0 | J8: 0 | K8: 0 | L8: 0 | M8: 0 | N8: 238 | O8: 139 | P8: 189 | DT8: 4 | DU8: =IF(AND(D8=D7,D8=D6,D8=D5),ROW(1:1),IF(AND(D8=D7,D8=D6),ROW(2:2),IF(D8=D7,ROW(3:3),IF(D8>1,ROW(4:4),"-")))) -> 4 | DV8: 4 | DX8: 1 | EB8: 4 | ED8: 4 | EE8: (4) | EF8: (-)
A9: 5(5) | B9: Sandor Bodi | C9: Växjö Hsk | D9: 185.2 | F9: 5 | G9: 926 | I9: 0 | J9: 0 | K9: 0 | L9: 0 | M9: 0 | N9: 238 | O9: 192 | P9: 183 | Q9: 190 | R9: 123 | DT9: 5 | DU9: =IF(D9>1,ROW(5:5),"-") -> 5 | DV9: 5 | DX9: 1 | EB9: 1 | ED9: 5 | EE9: (5) | EF9: (-)
A10: 6(6) | B10: Yamolada Damnoegam | C10: Växjö Hsk | D10: 174.2222222 | F10: 9 | G10: 1568 | I10: 0 | J10: 0 | K10: 0 | L10: 0 | M10: 0 | N10: 167 | O10: 262 | P10: 179 | Q10: 172 | R10: 162 | S10: 134 | T10: 143 | U10: 142 | V10: 207 | DT10: 6 | DU10: =IF(D10=D9,ROW(5:5),IF(D10>1,ROW(6:6),"-")) -> 6 | DV10: 6 | DX10: 1 | EB10: 2 | ED10: 6 | EE10: (6) | EF10: (-)
A11: 7(7) | B11: Joel Sundahl | C11: Carlskrona | D11: 174.125 | F11: 16 | G11: 2786 | I11: 0 | J11: 0 | K11: 0 | L11: 0 | M11: 0 | N11: 165 | O11: 165 | P11: 211 | Q11: 277 | R11: 198 | S11: 122 | T11: 199 | U11: 129 | V11: 179 | W11: 122 | X11: 155 | Y11: 218 | Z11: 179 | AA11: 139 | AB11: 156 | AC11: 172 | DT11: 7 | DU11: =IF(AND(D11=D10,D11=D9,D11=D8,D11=D7),ROW(3:3),IF(AND(D11=D10,D11=D9,D11=D8),ROW(4:4),IF(AND(D11=D10,D11=D9),ROW(5:5),IF(D11=D10,ROW(6:6),IF(D11>1,ROW(7:7),"-"))))) -> 7 | DV11: 7 | DX11: 1 | EB11: 5 | ED11: 7 | EE11: (7) | EF11: (-)
A12: 8(8) | B12: Olle Ottosson | C12: Dynapac | D12: 173.7058824 | F12: 17 | G12: 2953 | I12: 0 | J12: 0 | K12: 0 | L12: 0 | M12: 0 | N12: 130 | O12: 183 | P12: 107 | Q12: 160 | R12: 136 | S12: 125 | T12: 212 | U12: 187 | V12: 173 | W12: 211 | X12: 227 | Y12: 199 | Z12: 184 | AA12: 172 | AB12: 225 | AC12: 137 | AD12: 185 | DT12: 8 | DU12: 8 | DV12: 8 | DX12: 1 | EB12: 6 | ED12: 8 | EE12: (8) | EF12: (-)
A13: 9(9) | B13: Ingvar Eriksson | C13: Carlskrona | D13: 173.1875 | F13: 16 | G13: 2771 | I13: 0 | J13: 0 | K13: 0 | L13: 0 | M13: 0 | N13: 222 | O13: 194 | P13: 172 | Q13: 205 | R13: 219 | S13: 137 | T13: 204 | U13: 143 | V13: 215 | W13: 134 | X13: 146 | Y13: 163 | Z13: 182 | AA13: 155 | AB13: 109 | AC13: 171 | DT13: 9 | DU13: 9 | DV13: 9 | DX13: 1 | EB13: 8 | ED13: 9 | EE13: (9) | EF13: (-)
A14: 10(10) | B14: Hathaichonlanee Phaengphui | C14: Växjö Hsk | D14: 170.5555556 | F14: 9 | G14: 1535 | I14: 0 | J14: 0 | K14: 0 | L14: 0 | M14: 0 | N14: 180 | O14: 198 | P14: 133 | Q14: 198 | R14: 136 | S14: 235 | T14: 161 | U14: 132 | V14: 162 | DT14: 10 | DU14: 10 | DV14: 10 | DX14: 1 | EB14: 12 | ED14: 10 | EE14: (10) | EF14: (-)
A15: 11(11) | B15: Armin Sisic | C15: Värends Hsk | D15: 168.2 | F15: 15 | G15: 2523 | I15: 0 | J15: 0 | K15: 0 | L15: 0 | M15: 0 | N15: 178 | O15: 197 | P15: 163 | Q15: 158 | R15: 125 | S15: 118 | T15: 155 | U15: 141 | V15: 148 | W15: 216 | X15: 153 | Y15: 182 | Z15: 211 | AA15: 160 | AB15: 218 | DT15: 11 | DU15: 11 | DV15: 11 | DX15: 1 | EB15: 15 | ED15: 11 | EE15: (11) | EF15: (-)
A16: 12(12) | B16: Sandra Widlund | C16: Växjö Hsk | D16: 165.5 | F16: 10 | G16: 1655 | I16: 0 | J16: 0 | K16: 0 | L16: 0 | M16: 0 | N16: 188 | O16: 218 | P16: 202 | Q16: 177 | R16: 146 | S16: 157 | T16: 170 | U16: 95 | V16: 132 | W16: 170 | DT16: 12 | DU16: 12 | DV16: 12 | DX16: 1 | EB16: 21 | ED16: 12 | EE16: (12) | EF16: (-)
A17: 13(13) | B17: Anita Fabbeke | C17: Dynapac | D17: 165 | F17: 5 | G17: 825 | I17: 0 | J17: 0 | K17: 0 | L17: 0 | M17: 0 | N17: 146 | O17: 214 | P17: 144 | Q17: 166 | R17: 155 | DT17: 13 | DU17: 13 | DV17: 13 | DX17: 1 | EB17: 3 | ED17: 13 | EE17: (13) | EF17: (-)
A18: 14(14) | B18: Gert Karlsson | C18: Korpen Åseda | D18: 158.2857143 | F18: 14 | G18: 2216 | I18: 0 | J18: 0 | K18: 0 | L18: 0 | M18: 0 | N18: 156 | O18: 129 | P18: 126 | Q18: 151 | R18: 158 | S18: 109 | T18: 123 | U18: 154 | V18: 185 | W18: 148 | X18: 245 | Y18: 169 | Z18: 186 | AA18: 177 | DT18: 14 | DU18: 14 | DV18: 14 | DX18: 1 | EB18: 7 | ED18: 14 | EE18: (14) | EF18: (-)
A19: 15(15) | B19: Magnus Israelsson | C19: Sibbamåla | D19: 155.8571429 | F19: 14 | G19: 2182 | I19: 0 | J19: 0 | K19: 0 | L19: 0 | M19: 0 | N19: 179 | O19: 227 | P19: 124 | Q19: 226 | R19: 137 | S19: 116 | T19: 160 | U19: 74 | V19: 132 | W19: 166 | X19: 183 | Y19: 103 | Z19: 211 | AA19: 144 | DT19: 15 | DU19: 15 | DV19: 15 | DX19: 1 | EB19: 17 | ED19: 15 | EE19: (15) | EF19: (-)
A20: 16(16) | B20: Johan Johansson | C20: Tingsryd | D20: 151.8333333 | F20: 12 | G20: 1822 | I20: 0 | J20: 0 | K20: 0 | L20: 0 | M20: 0 | N20: 156 | O20: 197 | P20: 89 | Q20: 163 | R20: 180 | S20: 136 | T20: 135 | U20: 155 | V20: 185 | W20: 151 | X20: 139 | Y20: 136 | DT20: 16 | DU20: 16 | DV20: 16 | DX20: 1 | EB20: 18 | ED20: 16 | EE20: (16) | EF20: (-)
A21: 17(17) | B21: Leif Danielsson | C21: Korpen Nybro | D21: 151.2 | F21: 10 | G21: 1512 | I21: 0 | J21: 0 | K21: 0 | L21: 0 | M21: 0 | N21: 147 | O21: 151 | P21: 129 | Q21: 168 | R21: 126 | S21: 167 | T21: 109 | U21: 164 | V21: 145 | W21: 206 | DT21: 17 | DU21: 17 | DV21: 17 | DX21: 1 | EB21: 24 | ED21: 17 | EE21: (17) | EF21: (-)
A22: 18(19) | B22: Lars-Erik Ottosson | C22: Lanternan | D22: 150.25 | F22: 8 | G22: 1202 | I22: 0 | J22: 0 | K22: 0 | L22: 0 | M22: 0 | N22: 151 | O22: 197 | P22: 173 | Q22: 127 | R22: 109 | S22: 149 | T22: 155 | U22: 141 | DT22: 19 | DU22: 18 | DV22: 18 | DX22: 1 | EB22: 9 | ED22: 18 | EE22: (19) | EF22: (-)
A23: 19(20) | B23: Leo Andersson | C23: Carlskrona | D23: 149.2727273 | F23: 11 | G23: 1642 | I23: 0 | J23: 0 | K23: 0 | L23: 0 | M23: 0 | N23: 121 | O23: 163 | P23: 148 | Q23: 140 | R23: 180 | S23: 141 | T23: 190 | U23: 141 | V23: 160 | W23: 124 | X23: 134 | DT23: 20 | DU23: 19 | DV23: 19 | DX23: 1 | EB23: 10 | ED23: 19 | EE23: (20) | EF23: (-)
A24: 20(18) | B24: Stefan Olofsson | C24: Korpen Nybro | D24: 144.875 | F24: 8 | G24: 1159 | I24: 0 | J24: 0 | K24: 0 | L24: 0 | M24: 0 | N24: 133 | O24: 196 | P24: 162 | Q24: 107 | R24: 156 | S24: 104 | T24: 139 | U24: 162 | DT24: 18 | DU24: 20 | DV24: 20 | DX24: 1 | EB24: 22 | ED24: 20 | EE24: (18) | EF24: (-)
A25: 21(21) | B25: Peter Olsson | C25: Dynapac | D25: 144.7058824 | F25: 17 | G25: 2460 | I25: 0 | J25: 0 | K25: 0 | L25: 0 | M25: 0 | N25: 84 | O25: 140 | P25: 125 | Q25: 104 | R25: 103 | S25: 89 | T25: 107 | U25: 165 | V25: 198 | W25: 223 | X25: 141 | Y25: 183 | Z25: 87 | AA25: 174 | AB25: 208 | AC25: 171 | AD25: 158 | DT25: 21 | DU25: 21 | DV25: 21 | DX25: 1 | EB25: 14 | ED25: 21 | EE25: (21) | EF25: (-)
A26: 22(22) | B26: Mathias Karlberg | C26: Jämjö Hsk | D26: 144.2 | F26: 15 | G26: 2163 | I26: 0 | J26: 0 | K26: 0 | L26: 0 | M26: 0 | N26: 132 | O26: 216 | P26: 137 | Q26: 137 | R26: 135 | S26: 122 | T26: 179 | U26: 123 | V26: 83 | W26: 147 | X26: 176 | Y26: 209 | Z26: 126 | AA26: 129 | AB26: 112 | DT26: 22 | DU26: 22 | DV26: 22 | DX26: 1 | EB26: 13 | ED26: 22 | EE26: (22) | EF26: (-)
A27: 23(23) | B27: Lisbeth Nygaard-Karlsson | C27: Tingsryd | D27: 141.7 | F27: 10 | G27: 1417 | I27: 0 | J27: 0 | K27: 0 | L27: 0 | M27: 0 | N27: 189 | O27: 141 | P27: 155 | Q27: 100 | R27: 159 | S27: 153 | T27: 138 | U27: 106 | V27: 124 | W27: 152 | DT27: 23 | DU27: 23 | DV27: 23 | DX27: 1 | EB27: 19 | ED27: 23 | EE27: (23) | EF27: (-)
A28: 24(24) | B28: Sune Olsson | C28: Korpen Nybro | D28: 137.875 | F28: 8 | G28: 1103 | I28: 0 | J28: 0 | K28: 0 | L28: 0 | M28: 0 | N28: 135 | O28: 144 | P28: 181 | Q28: 116 | R28: 124 | S28: 140 | T28: 142 | U28: 121 | DT28: 24 | DU28: =IF(AND(D28=D27,D28=D26,D28=D25,D28=D24),ROW(20:20),IF(AND(D28=D27,D28=D26,D28=D25),ROW(21:21),IF(AND(D28=D27,D28=D26),ROW(22:22),IF(D28=D27,ROW(23:23),IF(D28>1,ROW(24:24),"-"))))) -> 24 | DV28: =IF(DX28=1,ROW(24:24),"-") -> 24 | DX28: 1 | EB28: 28 | ED28: =IF(DX28=1,DU28,IF(DX28="",DU28,"")) -> 24 | EE28: =IF(DX28=1,"("&DT28&")","("&DV28&")") -> (24) | EF28: (-)
A29: 25(25) | B29: Anton Alexandersson | C29: Sibbamåla | D29: 137 | F29: 3 | G29: 411 | I29: 0 | J29: 0 | K29: 0 | L29: 0 | M29: 0 | N29: 111 | O29: 133 | P29: 167 | DT29: 25 | DU29: =IF(AND(D29=D28,D29=D27,D29=D26,D29=D25),ROW(21:21),IF(AND(D29=D28,D29=D27,D29=D26),ROW(22:22),IF(AND(D29=D28,D29=D27),ROW(23:23),IF(D29=D28,ROW(24:24),IF(D29>1,ROW(25:25),"-"))))) -> 25 | DV29: =IF(DX29=1,ROW(25:25),"-") -> 25 | DX29: 1 | EB29: 23 | ED29: =IF(DX29=1,DU29,IF(DX29="",DU29,"")) -> 25 | EE29: =IF(DX29=1,"("&DT29&")","("&DV29&")") -> (25) | EF29: (-)
A30: 26(26) | B30: Lennart Karlsson | C30: Tingsryd | D30: 136.3636364 | F30: 11 | G30: 1500 | I30: 0 | J30: 0 | K30: 0 | L30: 0 | M30: 0 | N30: 145 | O30: 127 | P30: 192 | Q30: 187 | R30: 100 | S30: 128 | T30: 86 | U30: 88 | V30: 152 | W30: 188 | X30: 107 | DT30: 26 | DU30: =IF(AND(D30=D29,D30=D28,D30=D27,D30=D26),ROW(22:22),IF(AND(D30=D29,D30=D28,D30=D27),ROW(23:23),IF(AND(D30=D29,D30=D28),ROW(24:24),IF(D30=D29,ROW(25:25),IF(D30>1,ROW(26:26),"-"))))) -> 26 | DV30: =IF(DX30=1,ROW(26:26),"-") -> 26 | DX30: 1 | EB30: 25 | ED30: =IF(DX30=1,DU30,IF(DX30="",DU30,"")) -> 26 | EE30: =IF(DX30=1,"("&DT30&")","("&DV30&")") -> (26) | EF30: (-)
A31: 27(27) | B31: Mattias Gneupel | C31: Sibbamåla | D31: 136.1666667 | F31: 12 | G31: 1634 | I31: 0 | J31: 0 | K31: 0 | L31: 0 | M31: 0 | N31: 159 | O31: 140 | P31: 114 | Q31: 83 | R31: 95 | S31: 157 | T31: 165 | U31: 159 | V31: 139 | W31: 89 | X31: 195 | Y31: 139 | DT31: 27 | DU31: =IF(AND(D31=D30,D31=D29,D31=D28,D31=D27),ROW(23:23),IF(AND(D31=D30,D31=D29,D31=D28),ROW(24:24),IF(AND(D31=D30,D31=D29),ROW(25:25),IF(D31=D30,ROW(26:26),IF(D31>1,ROW(27:27),"-"))))) -> 27 | DV31: =IF(DX31=1,ROW(27:27),"-") -> 27 | DX31: 1 | EB31: 26 | ED31: =IF(DX31=1,DU31,IF(DX31="",DU31,"")) -> 27 | EE31: =IF(DX31=1,"("&DT31&")","("&DV31&")") -> (27) | EF31: (-)
A32: 28(28) | B32: Günther Iraschko | C32: Växjö Hsk | D32: 135.8333333 | F32: 6 | G32: 815 | I32: 0 | J32: 0 | K32: 0 | L32: 0 | M32: 0 | N32: 123 | O32: 128 | P32: 123 | Q32: 136 | R32: 163 | S32: 142 | DT32: 28 | DU32: =IF(AND(D32=D31,D32=D30,D32=D29,D32=D28),ROW(24:24),IF(AND(D32=D31,D32=D30,D32=D29),ROW(25:25),IF(AND(D32=D31,D32=D30),ROW(26:26),IF(D32=D31,ROW(27:27),IF(D32>1,ROW(28:28),"-"))))) -> 28 | DV32: =IF(DX32=1,ROW(28:28),"-") -> 28 | DX32: 1 | EB32: 27 | ED32: =IF(DX32=1,DU32,IF(DX32="",DU32,"")) -> 28 | EE32: =IF(DX32=1,"("&DT32&")","("&DV32&")") -> (28) | EF32: (-)
A33: 29(29) | B33: Mathias Zetterlund | C33: Vaxholm Hsk | D33: 131.8181818 | F33: 11 | G33: 1450 | I33: 0 | J33: 0 | K33: 0 | L33: 0 | M33: 0 | N33: 118 | O33: 122 | P33: 157 | Q33: 132 | R33: 102 | S33: 101 | T33: 139 | U33: 189 | V33: 172 | W33: 138 | X33: 80 | DT33: 29 | DU33: 29 | DV33: 29 | DX33: 1 | EB33: 29 | ED33: 29 | EE33: (29) | EF33: (-)
A34: 30(-) | B34: Julia Eriksson | C34: Skärgårdsalliansen | D34: 131.3333333 | F34: 3 | G34: 394 | H34: x | I34: 0 | J34: 0 | K34: 0 | L34: 0 | M34: 0 | N34: 96 | O34: 164 | P34: 134 | DT34: 94 | DU34: 30 | DV34: 30 | DX34: 1 | EB34: 30 | ED34: 30 | EE34: (94) | EF34: (-)
A35: 31(30) | B35: Berndt Petersson | C35: Lanternan | D35: 131 | F35: 18 | G35: 2358 | I35: 0 | J35: 0 | K35: 0 | L35: 0 | M35: 0 | N35: 125 | O35: 164 | P35: 153 | Q35: 154 | R35: 170 | S35: 157 | T35: 99 | U35: 125 | V35: 134 | W35: 82 | X35: 110 | Y35: 179 | Z35: 116 | AA35: 121 | AB35: 113 | AC35: 146 | AD35: 68 | AE35: 142 | DT35: 30 | DU35: 31 | DV35: 31 | DX35: 1 | EB35: 31 | ED35: 31 | EE35: (30) | EF35: (-)
A36: 32(31) | B36: Roy Dahlén | C36: Dynapac | D36: 126.3636364 | F36: 11 | G36: 1390 | I36: 0 | J36: 0 | K36: 0 | L36: 0 | M36: 0 | N36: 93 | O36: 119 | P36: 80 | Q36: 88 | R36: 158 | S36: 138 | T36: 167 | U36: 115 | V36: 122 | W36: 163 | X36: 147 | DT36: 31 | DU36: 32 | DV36: 32 | DX36: 1 | EB36: 32 | ED36: 32 | EE36: (31) | EF36: (-)
A37: 33(59) | B37: Fredrik Sandelius | C37: Skärgårdsalliansen | D37: =IF(F37>0.5,(G37/F37),0) -> 126.25 | F37: =COUNT(N37:BO37) -> 8 | G37: =SUM(N37:BO37) -> 1010 | I37: =COUNTIF(BQ37:DR37,2) -> 0 | J37: =COUNTIF(BQ37:DR37,-2) -> 0 | K37: =COUNTIF(BQ37:DR37,1) -> 0 | L37: =COUNTIF(BQ37:DR37,-1) -> 0 | M37: =IF(F37>0,(I37+K37)/(F37),0) -> 0 | N37: 84 | O37: 86 | P37: 157 | Q37: 108 | R37: 108 | S37: 155 | T37: 196 | U37: 116 | DT37: 59 | DU37: 33 | DV37: =IF(DX37=1,ROW(33:33),"-") -> 33 | DX37: 1 | EB37: 33 | ED37: =IF(DX37=1,DU37,IF(DX37="",DU37,"")) -> 33 | EE37: =IF(DX37=1,"("&DT37&")","("&DV37&")") -> (59) | EF37: (-)
A38: 34(32) | B38: Dan Hallstan | C38: Växjö Hsk | D38: 126 | F38: 9 | G38: 1134 | I38: 0 | J38: 0 | K38: 0 | L38: 0 | M38: 0 | N38: 132 | O38: 103 | P38: 86 | Q38: 93 | R38: 196 | S38: 128 | T38: 164 | U38: 81 | V38: 151 | DT38: 32 | DU38: 34 | DV38: 34 | DX38: 1 | EB38: 34 | ED38: 34 | EE38: (32) | EF38: (-)
A39: 35(33) | B39: Kjell Åkesson | C39: Lanternan | D39: 124.6666667 | F39: 3 | G39: 374 | I39: 0 | J39: 0 | K39: 0 | L39: 0 | M39: 0 | N39: 120 | O39: 137 | P39: 117 | DT39: 33 | DU39: 35 | DV39: 35 | DX39: 1 | EB39: 35 | ED39: 35 | EE39: (33) | EF39: (-)
A40: 36(34) | B40: Klara Larsson | C40: Värends Hsk | D40: 123.5 | F40: 6 | G40: 741 | I40: 0 | J40: 0 | K40: 0 | L40: 0 | M40: 0 | N40: 75 | O40: 201 | P40: 109 | Q40: 106 | R40: 155 | S40: 95 | DT40: 34 | DU40: 36 | DV40: 36 | DX40: 1 | EB40: 36 | ED40: 36 | EE40: (34) | EF40: (-)
A41: 37(36) | B41: Janne Johansson | C41: Tingsryd | D41: 123 | F41: 3 | G41: 369 | I41: 0 | J41: 0 | K41: 0 | L41: 0 | M41: 0 | N41: 104 | O41: 171 | P41: 94 | DT41: 36 | DU41: 37 | DV41: 37 | DX41: 1 | EB41: 37 | ED41: 37 | EE41: (36) | EF41: (-)
A42: 38(37) | B42: Tomas Lindahl | C42: Korpen Åseda | D42: 122.8666667 | F42: 15 | G42: 1843 | I42: 0 | J42: 0 | K42: 0 | L42: 0 | M42: 0 | N42: 97 | O42: 119 | P42: 115 | Q42: 128 | R42: 153 | S42: 107 | T42: 96 | U42: 107 | V42: 98 | W42: 225 | X42: 188 | Y42: 84 | Z42: 100 | AA42: 112 | AB42: 114 | DT42: 37 | DU42: 38 | DV42: 38 | DX42: 1 | EB42: 38 | ED42: 38 | EE42: (37) | EF42: (-)
A43: 39(38) | B43: Andreas Gundersen | C43: Skärgårdsalliansen | D43: 122.6666667 | F43: 3 | G43: 368 | I43: 0 | J43: 0 | K43: 0 | L43: 0 | M43: 0 | N43: 131 | O43: 89 | P43: 148 | DT43: 38 | DU43: =IF(AND(D43=D42,D43=D41,D43=D40,D43=D39),ROW(35:35),IF(AND(D43=D42,D43=D41,D43=D40),ROW(36:36),IF(AND(D43=D42,D43=D41),ROW(37:37),IF(D43=D42,ROW(38:38),IF(D43>1,ROW(39:39),"-"))))) -> 39 | DV43: 39 | DX43: 1 | EB43: 39 | ED43: 39 | EE43: (38) | EF43: (-)
A44: 40(35) | B44: Malira Eriksson | C44: Skärgårdsalliansen | D44: 122.125 | F44: 8 | G44: 977 | I44: 0 | J44: 0 | K44: 0 | L44: 0 | M44: 0 | N44: 110 | O44: 112 | P44: 120 | Q44: 163 | R44: 112 | S44: 95 | T44: 116 | U44: 149 | DT44: 35 | DU44: 40 | DV44: 40 | DX44: 1 | EB44: 40 | ED44: 40 | EE44: (35) | EF44: (-)
A45: 41(40) | B45: Kristian Jältsäter | C45: Skärgårdsalliansen | D45: 121.875 | F45: 8 | G45: 975 | I45: 0 | J45: 0 | K45: 0 | L45: 0 | M45: 0 | N45: 84 | O45: 123 | P45: 129 | Q45: 131 | R45: 190 | S45: 152 | T45: 71 | U45: 95 | DT45: 40 | DU45: 41 | DV45: 41 | DX45: 1 | EB45: 41 | ED45: 41 | EE45: (40) | EF45: (-)
A46: 42(39) | B46: Göran Olofsson | C46: Korpen Nybro | D46: 121.6428571 | F46: 14 | G46: 1703 | I46: 0 | J46: 0 | K46: 0 | L46: 0 | M46: 0 | N46: 95 | O46: 153 | P46: 84 | Q46: 117 | R46: 94 | S46: 169 | T46: 142 | U46: 121 | V46: 101 | W46: 159 | X46: 106 | Y46: 153 | Z46: 90 | AA46: 119 | DT46: 39 | DU46: 42 | DV46: 42 | DX46: 1 | EB46: 42 | ED46: 42 | EE46: (39) | EF46: (-)
A47: 43(41) | B47: Åke Bergkvist | C47: Tingsryd | D47: 120.875 | F47: 8 | G47: 967 | I47: 0 | J47: 0 | K47: 0 | L47: 0 | M47: 0 | N47: 97 | O47: 164 | P47: 101 | Q47: 97 | R47: 117 | S47: 166 | T47: 116 | U47: 109 | DT47: 41 | DU47: 43 | DV47: 43 | DX47: 1 | EB47: 43 | ED47: 43 | EE47: (41) | EF47: (-)
A48: 44(42) | B48: Maire Johansson | C48: Växjö Hsk | D48: 120.8571429 | F48: 7 | G48: 846 | I48: 0 | J48: 0 | K48: 0 | L48: 0 | M48: 0 | N48: 103 | O48: 137 | P48: 133 | Q48: 137 | R48: 83 | S48: 176 | T48: 77 | DT48: 42 | DU48: 44 | DV48: 44 | DX48: 1 | EB48: 52 | ED48: 44 | EE48: (42) | EF48: (-)
A49: 45(43) | B49: Hans Johansson | C49: Tingsryd | D49: 120.0909091 | F49: 11 | G49: 1321 | I49: 0 | J49: 0 | K49: 0 | L49: 0 | M49: 0 | N49: 88 | O49: 110 | P49: 134 | Q49: 116 | R49: 167 | S49: 99 | T49: 157 | U49: 157 | V49: 61 | W49: 88 | X49: 144 | DT49: 43 | DU49: 45 | DV49: 45 | DX49: 1 | EB49: 44 | ED49: 45 | EE49: (43) | EF49: (-)
A50: 46(44) | B50: Björn Gabrielsson | C50: Vaxholm Hsk | D50: 119.2 | F50: 10 | G50: 1192 | I50: 0 | J50: 0 | K50: 0 | L50: 0 | M50: 0 | N50: 118 | O50: 107 | P50: 137 | Q50: 123 | R50: 90 | S50: 151 | T50: 82 | U50: 159 | V50: 128 | W50: 97 | DT50: 44 | DU50: 46 | DV50: 46 | DX50: 1 | EB50: 45 | ED50: 46 | EE50: (44) | EF50: (-)
A51: 47(45) | B51: Erik Smiding | C51: Vaxholm Hsk | D51: 118.6 | F51: 10 | G51: 1186 | I51: 0 | J51: 0 | K51: 0 | L51: 0 | M51: 0 | N51: 126 | O51: 126 | P51: 79 | Q51: 78 | R51: 186 | S51: 119 | T51: 93 | U51: 123 | V51: 129 | W51: 127 | DT51: 45 | DU51: 47 | DV51: 47 | DX51: 1 | EB51: 46 | ED51: 47 | EE51: (45) | EF51: (-)
A52: 48(46) | B52: Marianne Karlsson | C52: Jämjö Hsk | D52: 117.8 | F52: 5 | G52: 589 | I52: 0 | J52: 0 | K52: 0 | L52: 0 | M52: 0 | N52: 107 | O52: 149 | P52: 109 | Q52: 91 | R52: 133 | DT52: 46 | DU52: 48 | DV52: 48 | DX52: 1 | EB52: 47 | ED52: 48 | EE52: (46) | EF52: (-)
A53: 49(47) | B53: Ingegerd Pettersson | C53: Lanternan | D53: 116.6 | F53: 15 | G53: 1749 | I53: 0 | J53: 0 | K53: 0 | L53: 0 | M53: 0 | N53: 116 | O53: 142 | P53: 100 | Q53: 91 | R53: 176 | S53: 142 | T53: 85 | U53: 119 | V53: 129 | W53: 65 | X53: 115 | Y53: 109 | Z53: 111 | AA53: 144 | AB53: 105 | DT53: 47 | DU53: 49 | DV53: 49 | DX53: 1 | EB53: 48 | ED53: 49 | EE53: (47) | EF53: (-)
A54: 50(48) | B54: Jan Petersson | C54: Lanternan | D54: 116.4666667 | F54: 15 | G54: 1747 | I54: 0 | J54: 0 | K54: 0 | L54: 0 | M54: 0 | N54: 80 | O54: 167 | P54: 108 | Q54: 123 | R54: 98 | S54: 136 | T54: 90 | U54: 102 | V54: 139 | W54: 112 | X54: 78 | Y54: 130 | Z54: 76 | AA54: 150 | AB54: 158 | DT54: 48 | DU54: 50 | DV54: 50 | DX54: 1 | EB54: 49 | ED54: 50 | EE54: (48) | EF54: (-)
A55: 51(49) | B55: Bengt Fabbeke | C55: Dynapac | D55: 116.375 | F55: 16 | G55: 1862 | I55: 0 | J55: 0 | K55: 0 | L55: 0 | M55: 0 | N55: 125 | O55: 92 | P55: 132 | Q55: 148 | R55: 153 | S55: 118 | T55: 48 | U55: 140 | V55: 202 | W55: 68 | X55: 136 | Y55: 137 | Z55: 115 | AA55: 64 | AB55: 86 | AC55: 98 | DT55: 49 | DU55: 51 | DV55: 51 | DX55: 1 | EB55: 50 | ED55: 51 | EE55: (49) | EF55: (-)
A56: 52(50) | B56: Björn Landberg | C56: Vaxholm Hsk | D56: 116.1666667 | F56: 12 | G56: 1394 | I56: 0 | J56: 0 | K56: 0 | L56: 0 | M56: 0 | N56: 108 | O56: 83 | P56: 122 | Q56: 133 | R56: 88 | S56: 109 | T56: 67 | U56: 105 | V56: 165 | W56: 93 | X56: 153 | Y56: 168 | DT56: 50 | DU56: 52 | DV56: 52 | DX56: 1 | EB56: 51 | ED56: 52 | EE56: (50) | EF56: (-)
A57: 53(51) | B57: Pascal Letter | C57: Skärgårdsalliansen | D57: 116 | F57: 3 | G57: 348 | I57: 0 | J57: 0 | K57: 0 | L57: 0 | M57: 0 | N57: 103 | O57: 133 | P57: 112 | DT57: 51 | DU57: 53 | DV57: 53 | DX57: 1 | EB57: 53 | ED57: 53 | EE57: (51) | EF57: (-)
A58: 54(52) | B58: Dan Madayang | C58: Korpen Åseda | D58: 115.4285714 | F58: 14 | G58: 1616 | I58: 0 | J58: 0 | K58: 0 | L58: 0 | M58: 0 | N58: 159 | O58: 102 | P58: 87 | Q58: 163 | R58: 108 | S58: 101 | T58: 168 | U58: 91 | V58: 86 | W58: 101 | X58: 99 | Y58: 104 | Z58: 91 | AA58: 156 | DT58: 52 | DU58: 54 | DV58: 54 | DX58: 1 | EB58: 109 | ED58: 54 | EE58: (52) | EF58: (-)
A59: 55(53) | B59: Göran Mårtensson | C59: Jämjö Hsk | D59: 114.0769231 | F59: 13 | G59: 1483 | I59: 0 | J59: 0 | K59: 0 | L59: 0 | M59: 0 | N59: 133 | O59: 173 | P59: 82 | Q59: 142 | R59: 88 | S59: 113 | T59: 135 | U59: 90 | V59: 85 | W59: 105 | X59: 105 | Y59: 171 | Z59: 61 | DT59: 53 | DU59: 55 | DV59: 55 | DX59: 1 | EB59: 54 | ED59: 55 | EE59: (53) | EF59: (-)
A60: 56(54) | B60: Lars Johannesson | C60: Jämjö Hsk | D60: 113.8333333 | F60: 12 | G60: 1366 | I60: 0 | J60: 0 | K60: 0 | L60: 0 | M60: 0 | N60: 141 | O60: 137 | P60: 37 | Q60: 146 | R60: 111 | S60: 78 | T60: 93 | U60: 156 | V60: 145 | W60: 100 | X60: 102 | Y60: 120 | DT60: 54 | DU60: 56 | DV60: 56 | DX60: 1 | EB60: 55 | ED60: 56 | EE60: (54) | EF60: (-)
A61: 57(55) | B61: Inge Skoglöw | C61: Jämjö Hsk | D61: 111.6666667 | F61: 9 | G61: 1005 | I61: 0 | J61: 0 | K61: 0 | L61: 0 | M61: 0 | N61: 142 | O61: 109 | P61: 93 | Q61: 110 | R61: 121 | S61: 138 | T61: 68 | U61: 116 | V61: 108 | DT61: 55 | DU61: 57 | DV61: 57 | DX61: 1 | EB61: 56 | ED61: 57 | EE61: (55) | EF61: (-)
A62: 58(57) | B62: Nathalie Sundahl | C62: Carlskrona | D62: 109.6 | F62: 5 | G62: 548 | I62: 0 | J62: 0 | K62: 0 | L62: 0 | M62: 0 | N62: 77 | O62: 104 | P62: 106 | Q62: 160 | R62: 101 | DT62: 57 | DU62: 58 | DV62: 58 | DX62: 1 | EB62: 57 | ED62: 58 | EE62: (57) | EF62: (-)
A63: 59(-) | B63: Martin Anjou | C63: Skärgårdsalliansen | D63: 109 | F63: 3 | G63: 327 | H63: x | I63: 0 | J63: 0 | K63: 0 | L63: 0 | M63: 0 | N63: 100 | O63: 128 | P63: 99 | DT63: 95 | DU63: 59 | DV63: 59 | DX63: 1 | EB63: 58 | ED63: 59 | EE63: (95) | EF63: (-)
A64: 60(58) | B64: Sandra Rydell | C64: Värends Hsk | D64: 108.7692308 | F64: 13 | G64: 1414 | I64: 0 | J64: 0 | K64: 0 | L64: 0 | M64: 0 | N64: 79 | O64: 119 | P64: 105 | Q64: 96 | R64: 114 | S64: 118 | T64: 70 | U64: 129 | V64: 122 | W64: 114 | X64: 140 | Y64: 102 | Z64: 106 | DT64: 58 | DU64: 60 | DV64: 60 | DX64: 1 | EB64: 59 | ED64: 60 | EE64: (58) | EF64: (-)
A65: 61(60) | B65: Ronny Lundberg | C65: Lanternan | D65: 107.8181818 | F65: 11 | G65: 1186 | I65: 0 | J65: 0 | K65: 0 | L65: 0 | M65: 0 | N65: 92 | O65: 126 | P65: 48 | Q65: 115 | R65: 88 | S65: 150 | T65: 121 | U65: 113 | V65: 103 | W65: 109 | X65: 121 | DT65: 60 | DU65: 61 | DV65: 61 | DX65: 1 | EB65: 60 | ED65: 61 | EE65: (60) | EF65: (-)
A66: =IF(H66="x",DU66&" ("&EF66&")",DU66&" ("&DT66&")") -> 62 (56) | B66: Bo Petersson | C66: Korpen Nybro | D66: 107.5 | F66: 14 | G66: 1505 | I66: 0 | J66: 0 | K66: 0 | L66: 0 | M66: 0 | N66: 118 | O66: 110 | P66: 93 | Q66: 73 | R66: 103 | S66: 48 | T66: 112 | U66: 156 | V66: 83 | W66: 167 | X66: 152 | Y66: 104 | Z66: 134 | AA66: 52 | DT66: 56 | DU66: 62 | DV66: 62 | DX66: 1 | EB66: 61 | ED66: 62 | EE66: (56) | EF66: (-)
A67: 63 (61) | B67: Bengt Andersson | C67: Växjö Hsk | D67: 107.4444444 | F67: 9 | G67: 967 | I67: 0 | J67: 0 | K67: 0 | L67: 0 | M67: 0 | N67: 118 | O67: 128 | P67: 106 | Q67: 103 | R67: 126 | S67: 69 | T67: 125 | U67: 94 | V67: 98 | DT67: 61 | DU67: 63 | DV67: 63 | DX67: 1 | EB67: 62 | ED67: 63 | EE67: (61) | EF67: (-)
A68: 64 (62) | B68: Ann-Marie Larsson | C68: Tingsryd | D68: 107 | F68: 3 | G68: 321 | I68: 0 | J68: 0 | K68: 0 | L68: 0 | M68: 0 | N68: 136 | O68: 93 | P68: 92 | DT68: 62 | DU68: 64 | DV68: 64 | DX68: 1 | EB68: 64 | ED68: 64 | EE68: (62) | EF68: (-)
A69: 65 (63) | B69: Martin Antic | C69: Värends Hsk | D69: =IF(F69>0.5,(G69/F69),0) -> 106 | F69: =COUNT(N69:BO69) -> 3 | G69: =SUM(N69:BO69) -> 318 | I69: =COUNTIF(BQ69:DR69,2) -> 0 | J69: =COUNTIF(BQ69:DR69,-2) -> 0 | K69: =COUNTIF(BQ69:DR69,1) -> 0 | L69: =COUNTIF(BQ69:DR69,-1) -> 0 | M69: =IF(F69>0,(I69+K69)/(F69),0) -> 0 | N69: 71 | O69: 134 | P69: 113 | DT69: 63 | DU69: 65 | DV69: =IF(DX69=1,ROW(65:65),"-") -> 65 | DX69: 1 | EB69: 65 | ED69: =IF(DX69=1,DU69,IF(DX69="",DU69,"")) -> 65 | EE69: =IF(DX69=1,"("&DT69&")","("&DV69&")") -> (63) | EF69: (-)
A70: =IF(H70="x",DU70&" ("&EF70&")",DU70&" ("&DT70&")") -> 65 (63) | B70: Kerstin Svensson | C70: Växjö Hsk | D70: 106 | F70: 2 | G70: 212 | I70: 0 | J70: 0 | K70: 0 | L70: 0 | M70: 0 | N70: 84 | O70: 128 | DT70: 63 | DU70: 65 | DV70: 66 | DX70: 1 | EB70: 66 | ED70: 65 | EE70: (63) | EF70: (-)
A71: 67 (65) | B71: Lisbeth Blihd | C71: Lanternan | D71: 105.625 | F71: 8 | G71: 845 | I71: 0 | J71: 0 | K71: 0 | L71: 0 | M71: 0 | N71: 136 | O71: 75 | P71: 92 | Q71: 130 | R71: 122 | S71: 99 | T71: 109 | U71: 82 | DT71: 65 | DU71: 67 | DV71: 67 | DX71: 1 | EB71: 67 | ED71: 67 | EE71: (65) | EF71: (-)
A72: 68 (66) | B72: Christian Balsiger | C72: Värends Hsk | D72: 104.9090909 | F72: 11 | G72: 1154 | I72: 0 | J72: 0 | K72: 0 | L72: 0 | M72: 0 | N72: 40 | O72: 89 | P72: 108 | Q72: 134 | R72: 101 | S72: 82 | T72: 142 | U72: 66 | V72: 113 | W72: 140 | X72: 139 | DT72: 66 | DU72: 68 | DV72: 68 | DX72: 1 | EB72: 68 | ED72: 68 | EE72: (66) | EF72: (-)
A73: 69 (67) | B73: Daniel Mårtensson | C73: Jämjö Hsk | D73: 104.5333333 | F73: 15 | G73: 1568 | I73: 0 | J73: 0 | K73: 0 | L73: 0 | M73: 0 | N73: 149 | O73: 90 | P73: 104 | Q73: 129 | R73: 161 | S73: 97 | T73: 104 | U73: 82 | V73: 104 | W73: 114 | X73: 71 | Y73: 82 | Z73: 102 | AA73: 68 | AB73: 111 | DT73: 67 | DU73: 69 | DV73: 69 | DX73: 1 | EB73: 69 | ED73: 69 | EE73: (67) | EF73: (-)
A74: 70 (68) | B74: Carina Gneupel | C74: Sibbamåla | D74: 104.375 | F74: 8 | G74: 835 | I74: 0 | J74: 0 | K74: 0 | L74: 0 | M74: 0 | N74: 134 | O74: 153 | P74: 113 | Q74: 99 | R74: 102 | S74: 91 | T74: 58 | U74: 85 | DT74: 68 | DU74: 70 | DV74: 70 | DX74: 1 | EB74: 70 | ED74: 70 | EE74: (68) | EF74: (-)
A75: 71 (69) | B75: Mikael Klaving | C75: Skärgårdsalliansen | D75: 102.5 | F75: 2 | G75: 205 | I75: 0 | J75: 0 | K75: 0 | L75: 0 | M75: 0 | N75: 98 | O75: 107 | DT75: 69 | DU75: =IF(AND(D75=D74,D75=D73,D75=D72,D75=D71),ROW(67:67),IF(AND(D75=D74,D75=D73,D75=D72),ROW(68:68),IF(AND(D75=D74,D75=D73),ROW(69:69),IF(D75=D74,ROW(70:70),IF(D75>1,ROW(71:71),"-"))))) -> 71 | DV75: 71 | DX75: 1 | EB75: 114 | ED75: 71 | EE75: (69) | EF75: (-)
A76: 72 (70) | B76: Gilbert Pettersson | C76: Lanternan | D76: 101.8 | F76: 5 | G76: 509 | I76: 0 | J76: 0 | K76: 0 | L76: 0 | M76: 0 | N76: 115 | O76: 112 | P76: 87 | Q76: 78 | R76: 117 | DT76: 70 | DU76: 72 | DV76: 72 | DX76: 1 | EB76: 71 | ED76: 72 | EE76: (70) | EF76: (-)
A77: 73 (71) | B77: Mikael Grönskog | C77: Sibbamåla | D77: 100 | F77: 2 | G77: 200 | I77: 0 | J77: 0 | K77: 0 | L77: 0 | M77: 0 | N77: 101 | O77: 99 | DT77: 71 | DU77: 73 | DV77: 73 | DX77: 1 | EB77: 111 | ED77: 73 | EE77: (71) | EF77: (-)
A78: 74 (72) | B78: Sebastian Israelsson | C78: Sibbamåla | D78: 98.57142857 | F78: 7 | G78: 690 | I78: 0 | J78: 0 | K78: 0 | L78: 0 | M78: 0 | N78: 126 | O78: 109 | P78: 72 | Q78: 70 | R78: 161 | S78: 95 | T78: 57 | DT78: 72 | DU78: 74 | DV78: 74 | DX78: 1 | EB78: 72 | ED78: 74 | EE78: (72) | EF78: (-)
A79: 75 (73) | B79: Lasse Brincner | C79: Värends Hsk | D79: 96.88888889 | F79: 9 | G79: 872 | I79: 0 | J79: 0 | K79: 0 | L79: 0 | M79: 0 | N79: 87 | O79: 81 | P79: 115 | Q79: 91 | R79: 99 | S79: 126 | T79: 67 | U79: 77 | V79: 129 | DT79: 73 | DU79: 75 | DV79: 75 | DX79: 1 | EB79: 73 | ED79: 75 | EE79: (73) | EF79: (-)
A80: 76 (74) | B80: Christer Lööv | C80: Värends Hsk | D80: 95.75 | F80: 4 | G80: 383 | I80: 0 | J80: 0 | K80: 0 | L80: 0 | M80: 0 | N80: 85 | O80: 118 | P80: 91 | Q80: 89 | DT80: 74 | DU80: 76 | DV80: 76 | DX80: 1 | EB80: 74 | ED80: 76 | EE80: (74) | EF80: (-)
A81: 77 (75) | B81: Irene Petersson | C81: Lanternan | D81: 95.5 | F81: 4 | G81: 382 | I81: 0 | J81: 0 | K81: 0 | L81: 0 | M81: 0 | N81: 100 | O81: 104 | P81: 95 | Q81: 83 | DT81: 75 | DU81: 77 | DV81: 77 | DX81: 1 | EB81: 75 | ED81: 77 | EE81: (75) | EF81: (-)
A82: 78 (76) | B82: Hernan Hernandez | C82: Jämjö Hsk | D82: 92.33333333 | F82: 9 | G82: 831 | I82: 0 | J82: 0 | K82: 0 | L82: 0 | M82: 0 | N82: 72 | O82: 159 | P82: 50 | Q82: 72 | R82: 110 | S82: 75 | T82: 130 | U82: 108 | V82: 55 | DT82: 76 | DU82: 78 | DV82: 78 | DX82: 1 | EB82: 76 | ED82: 78 | EE82: (76) | EF82: (-)
A83: 78 (76) | B83: Thomas Dahl | C83: Växjö Hsk | D83: 92.33333333 | F83: 3 | G83: 277 | I83: 0 | J83: 0 | K83: 0 | L83: 0 | M83: 0 | N83: 68 | O83: 101 | P83: 108 | DT83: 76 | DU83: 78 | DV83: 79 | DX83: 1 | EB83: 77 | ED83: 78 | EE83: (76) | EF83: (-)
A84: 78 (76) | B84: Jonny Åberg | C84: Skärgårdsalliansen | D84: 92.33333333 | F84: 3 | G84: 277 | I84: 0 | J84: 0 | K84: 0 | L84: 0 | M84: 0 | N84: 92 | O84: 33 | P84: 152 | DT84: 76 | DU84: 78 | DV84: 80 | DX84: 1 | EB84: 78 | ED84: 78 | EE84: (76) | EF84: (-)
A85: 81 (79) | B85: Anders Bergqvist | C85: Tingsryd | D85: 91.625 | F85: 8 | G85: 733 | I85: 0 | J85: 0 | K85: 0 | L85: 0 | M85: 0 | N85: 68 | O85: 88 | P85: 101 | Q85: 108 | R85: 67 | S85: 115 | T85: 88 | U85: 98 | DT85: 79 | DU85: 81 | DV85: 81 | DX85: 1 | EB85: 79 | ED85: 81 | EE85: (79) | EF85: (-)
A86: 82 (80) | B86: Johan Ullgren | C86: Skärgårdsalliansen | D86: 91.5 | F86: 4 | G86: 366 | I86: 0 | J86: 0 | K86: 0 | L86: 0 | M86: 0 | N86: 80 | O86: 123 | P86: 69 | Q86: 94 | DT86: 80 | DU86: 82 | DV86: 82 | DX86: 1 | EB86: 80 | ED86: 82 | EE86: (80) | EF86: (-)
A87: 83 (81) | B87: Anders Karlsson | C87: Värends Hsk | D87: 90 | F87: 2 | G87: 180 | I87: 0 | J87: 0 | K87: 0 | L87: 0 | M87: 0 | N87: 105 | O87: 75 | DT87: 81 | DU87: 83 | DV87: 83 | DX87: 1 | EB87: 81 | ED87: 83 | EE87: (81) | EF87: (-)
A88: 84 (82) | B88: Astrid Martinez | C88: Jämjö Hsk | D88: 87.27272727 | F88: 11 | G88: 960 | I88: 0 | J88: 0 | K88: 0 | L88: 0 | M88: 0 | N88: 158 | O88: 82 | P88: 56 | Q88: 72 | R88: 92 | S88: 98 | T88: 46 | U88: 116 | V88: 107 | W88: 90 | X88: 43 | DT88: 82 | DU88: 84 | DV88: 84 | DX88: 1 | EB88: 82 | ED88: 84 | EE88: (82) | EF88: (-)
A89: 85 (83) | B89: Ulrika Rydell | C89: Värends Hsk | D89: 85.66666667 | F89: 6 | G89: 514 | I89: 0 | J89: 0 | K89: 0 | L89: 0 | M89: 0 | N89: 77 | O89: 81 | P89: 58 | Q89: 92 | R89: 91 | S89: 115 | DT89: 83 | DU89: 85 | DV89: 85 | DX89: 1 | EB89: 83 | ED89: 85 | EE89: (83) | EF89: (-)
A90: 86 (84) | B90: Arne Blidh | C90: Lanternan | D90: 77.85714286 | F90: 7 | G90: 545 | I90: 0 | J90: 0 | K90: 0 | L90: 0 | M90: 0 | N90: 71 | O90: 55 | P90: 55 | Q90: 142 | R90: 90 | S90: 101 | T90: 31 | DT90: 84 | DU90: 86 | DV90: 86 | DX90: 1 | EB90: 84 | ED90: 86 | EE90: (84) | EF90: (-)
A91: 87 (85) | B91: Gunnar Lundbeck | C91: Tingsryd | D91: 72.2 | F91: 5 | G91: 361 | I91: 0 | J91: 0 | K91: 0 | L91: 0 | M91: 0 | N91: 122 | O91: 51 | P91: 78 | Q91: 38 | R91: 72 | DT91: 85 | DU91: 87 | DV91: 87 | DX91: 1 | EB91: 85 | ED91: 87 | EE91: (85) | EF91: (-)
A92: 88 (86) | B92: Hanna Karlberg | C92: Jämjö Hsk | D92: 69.375 | F92: 8 | G92: 555 | I92: 0 | J92: 0 | K92: 0 | L92: 0 | M92: 0 | N92: 56 | O92: 70 | P92: 57 | Q92: 55 | R92: 95 | S92: 110 | T92: 50 | U92: 62 | DT92: 86 | DU92: 88 | DV92: 88 | DX92: 1 | EB92: 86 | ED92: 88 | EE92: (86) | EF92: (-)
A93: 89 (87) | B93: Göran Örjebo | C93: Skärgårdsalliansen | D93: 65 | F93: 3 | G93: 195 | I93: 0 | J93: 0 | K93: 0 | L93: 0 | M93: 0 | N93: 82 | O93: 77 | P93: 36 | DT93: 87 | DU93: 89 | DV93: 89 | DX93: 1 | EB93: 87 | ED93: 89 | EE93: (87) | EF93: (-)
A94: 90 (88) | B94: Karin Gullbrand | C94: Värends Hsk | D94: 64 | F94: 2 | G94: 128 | I94: 0 | J94: 0 | K94: 0 | L94: 0 | M94: 0 | N94: 80 | O94: 48 | DT94: 88 | DU94: 90 | DV94: 90 | DX94: 1 | EB94: 88 | ED94: 90 | EE94: (88) | EF94: (-)
A95: 91 (89) | B95: Thomas Marklund | C95: Värends Hsk | D95: 59.5 | F95: 2 | G95: 119 | I95: 0 | J95: 0 | K95: 0 | L95: 0 | M95: 0 | N95: 55 | O95: 64 | DT95: 89 | DU95: 91 | DV95: 91 | DX95: 1 | EB95: 89 | ED95: 91 | EE95: (89) | EF95: (-)
A96: 92 (90) | B96: Roger Eriksson | C96: Skärgårdsalliansen | D96: 52.5 | F96: 2 | G96: 105 | I96: 0 | J96: 0 | K96: 0 | L96: 0 | M96: 0 | N96: 17 | O96: 88 | DT96: 90 | DU96: 92 | DV96: 92 | DX96: 1 | EB96: 112 | ED96: 92 | EE96: (90) | EF96: (-)
A97: 93 (91) | B97: Roland Sjöstrand | C97: Tingsryd | D97: 47.6 | F97: 5 | G97: 238 | I97: 0 | J97: 0 | K97: 0 | L97: 0 | M97: 0 | N97: 0 | O97: 36 | P97: 70 | Q97: 79 | R97: 53 | DT97: 91 | DU97: 93 | DV97: 93 | DX97: 1 | EB97: 90 | ED97: 93 | EE97: (91) | EF97: (-)
A98: 94 (92) | B98: Hanna Karlsson | C98: Jämjö Hsk | D98: 31.66666667 | F98: 3 | G98: 95 | I98: 0 | J98: 0 | K98: 0 | L98: 0 | M98: 0 | N98: 7 | O98: 57 | P98: 31 | DT98: 92 | DU98: 94 | DV98: 94 | DX98: 1 | EB98: 91 | ED98: 94 | EE98: (92) | EF98: (-)
A99: - ((-)) | B99: Gebriela Kostantinos | C99: Korpen Åseda | D99: 0 | F99: 0 | G99: 0 | H99: x | I99: 0 | J99: 0 | K99: 0 | L99: 0 | M99: 0 | DT99: - | DU99: - | DV99: 95 | DX99: 1 | EB99: 92 | ED99: - | EE99: (-) | EF99: (-)
A100: 95 ((-)) | B100: Fredrik Lundin | C100: Lanternan | D100: 0 | F100: 0 | G100: 0 | H100: x | I100: 0 | J100: 0 | K100: 0 | L100: 0 | M100: 0 | DT100: - | DU100: 95 | DV100: 96 | DX100: 1 | EB100: 63 | ED100: 95 | EE100: (-) | EF100: (-)
A101: 95 ((-)) | B101: Emil Rehn | C101: Korpen Åseda | D101: =IF(F101>0.5,(G101/F101),0) -> 0 | F101: =COUNT(N101:BO101) -> 0 | G101: =SUM(N101:BO101) -> 0 | H101: x | I101: =COUNTIF(BQ101:DR101,2) -> 0 | J101: =COUNTIF(BQ101:DR101,-2) -> 0 | K101: =COUNTIF(BQ101:DR101,1) -> 0 | L101: =COUNTIF(BQ101:DR101,-1) -> 0 | M101: =IF(F101>0,(I101+K101)/(F101),0) -> 0 | DT101: 96 | DU101: 95 | DV101: =IF(DX101=1,ROW(97:97),"-") -> 97 | DX101: 1 | EB101: 93 | ED101: =IF(DX101=1,DU101,IF(DX101="",DU101,"")) -> 95 | EE101: =IF(DX101=1,"("&DT101&")","("&DV101&")") -> (96) | EF101: (-)
A102: 95 ((-)) | B102: Thomas Diedrichs | C102: Vaxholm Hsk | D102: 0 | F102: 0 | G102: 0 | H102: x | I102: 0 | J102: 0 | K102: 0 | L102: 0 | M102: 0 | DT102: 96 | DU102: 95 | DV102: 98 | DX102: 1 | EB102: 94 | ED102: 95 | EE102: (96) | EF102: (-)
A103: 95 ((-)) | B103: Christoffer Cederholm | C103: Tingsryd | D103: 0 | F103: 0 | G103: 0 | H103: x | I103: 0 | J103: 0 | K103: 0 | L103: 0 | M103: 0 | DT103: 96 | DU103: 95 | DV103: 99 | DX103: 1 | EB103: 95 | ED103: 95 | EE103: (96) | EF103: (-)
A104: 96 ((-)) | B104: Maj-Britt Jarl | C104: Växjö Hsk | D104: 0 | F104: 0 | G104: 0 | H104: x | I104: 0 | J104: 0 | K104: 0 | L104: 0 | M104: 0 | DT104: 96 | DU104: 96 | DV104: 100 | DX104: 1 | EB104: 96 | ED104: 96 | EE104: (96) | EF104: (-)
A105: 97 ((-)) | B105: Björn Hansson | C105: Vaxholm Hsk | D105: 0 | F105: 0 | G105: 0 | H105: x | I105: 0 | J105: 0 | K105: 0 | L105: 0 | M105: 0 | DT105: 97 | DU105: 97 | DV105: 101 | DX105: 1 | EB105: 97 | ED105: 97 | EE105: (97) | EF105: (-)
A106: 98 ((-)) | B106: Bela Bodi | C106: Växjö Hsk | D106: 0 | F106: 0 | G106: 0 | H106: x | I106: 0 | J106: 0 | K106: 0 | L106: 0 | M106: 0 | DT106: 98 | DU106: 98 | DV106: 102 | DX106: 1 | EB106: 98 | ED106: 98 | EE106: (98) | EF106: (-)
A107: 99 ((-)) | B107: Christer Blomgren | C107: Lanternan | D107: 0 | F107: 0 | G107: 0 | H107: x | I107: 0 | J107: 0 | K107: 0 | L107: 0 | M107: 0 | DT107: 99 | DU107: =IF(AND(D107=D106,D107=D105,D107=D104,D107=D103),ROW(99:99),IF(AND(D107=D106,D107=D105,D107=D104),ROW(100:100),IF(AND(D107=D106,D107=D105),ROW(101:101),IF(D107=D106,ROW(102:102),IF(D107>1,ROW(103:103),"-"))))) -> 99 | DV107: 103 | DX107: 1 | EB107: 99 | ED107: 99 | EE107: (99) | EF107: (-)
A108: 100 ((-)) | B108: Bernt Olsson | C108: Jämjö Hsk | D108: 0 | F108: 0 | G108: 0 | H108: x | I108: 0 | J108: 0 | K108: 0 | L108: 0 | M108: 0 | DT108: 100 | DU108: 100 | DV108: 104 | DX108: 1 | EB108: 100 | ED108: 100 | EE108: (100) | EF108: (-)
A109: 101 ((-)) | B109: Marcus Karlsson | C109: Jämjö Hsk | D109: 0 | F109: 0 | G109: 0 | H109: x | I109: 0 | J109: 0 | K109: 0 | L109: 0 | M109: 0 | DT109: 101 | DU109: 101 | DV109: 105 | DX109: 1 | EB109: 101 | ED109: 101 | EE109: (101) | EF109: (-)
A110: 102 ((-)) | B110: Lukas Bern | C110: Dynapac | D110: 0 | F110: 0 | G110: 0 | H110: x | I110: 0 | J110: 0 | K110: 0 | L110: 0 | M110: 0 | DT110: 102 | DU110: 102 | DV110: 106 | DX110: 1 | EB110: 102 | ED110: 102 | EE110: (102) | EF110: (-)
A111: 103 ((-)) | B111: Leif Sundahl | C111: Carlskrona | D111: 0 | F111: 0 | G111: 0 | H111: x | I111: 0 | J111: 0 | K111: 0 | L111: 0 | M111: 0 | DT111: 103 | DU111: 103 | DV111: 107 | DX111: 1 | EB111: 110 | ED111: 103 | EE111: (103) | EF111: (-)
A112: 104 ((-)) | B112: Annika K. Milsten | C112: Tingsryd | D112: 0 | F112: 0 | G112: 0 | H112: x | I112: 0 | J112: 0 | K112: 0 | L112: 0 | M112: 0 | DT112: 104 | DU112: 104 | DV112: 108 | DX112: 1 | EB112: 103 | ED112: 104 | EE112: (104) | EF112: (-)
A113: 105 ((-)) | B113: Christer Eriksson | C113: Korpen Nybro | D113: 0 | F113: 0 | G113: 0 | H113: x | I113: 0 | J113: 0 | K113: 0 | L113: 0 | M113: 0 | DT113: 105 | DU113: 105 | DV113: 109 | DX113: 1 | EB113: 104 | ED113: 105 | EE113: (105) | EF113: (-)
A114: 106 ((-)) | B114: Kerstin Petersen | C114: Växjö Hsk | D114: 0 | F114: 0 | G114: 0 | H114: x | I114: 0 | J114: 0 | K114: 0 | L114: 0 | M114: 0 | DT114: 106 | DU114: 106 | DV114: 110 | DX114: 1 | EB114: 105 | ED114: 106 | EE114: (106) | EF114: (-)
A115: 107 ((-)) | B115: Laila Johansson | C115: Tingsryd | D115: 0 | F115: 0 | G115: 0 | H115: x | I115: 0 | J115: 0 | K115: 0 | L115: 0 | M115: 0 | DT115: 107 | DU115: 107 | DV115: 111 | DX115: 1 | EB115: 106 | ED115: 107 | EE115: (107) | EF115: (-)
A116: 108 ((-)) | B116: Julius Gneupel | C116: Sibbamåla | D116: 0 | F116: 0 | G116: 0 | H116: x | I116: 0 | J116: 0 | K116: 0 | L116: 0 | M116: 0 | DT116: 108 | DU116: 108 | DV116: 112 | DX116: 1 | EB116: 107 | ED116: 108 | EE116: (108) | EF116: (-)
A117: 109 ((-)) | B117: Peter Edlund | C117: Dynapac | D117: 0 | F117: 0 | G117: 0 | H117: x | I117: 0 | J117: 0 | K117: 0 | L117: 0 | M117: 0 | DT117: 109 | DU117: 109 | DV117: 113 | DX117: 1 | EB117: 108 | ED117: 109 | EE117: (109) | EF117: (-)
A118: 110 ((-)) | B118: Bertil Westergren | C118: Växjö Hsk | D118: 0 | F118: 0 | G118: 0 | H118: x | I118: 0 | J118: 0 | K118: 0 | L118: 0 | M118: 0 | DT118: 110 | DU118: 110 | DV118: 114 | DX118: 1 | EB118: 109 | ED118: 110 | EE118: (110) | EF118: (-)
A119: 111 ((-)) | B119: Alf Svensson | C119: Korpen Åseda | D119: 0 | F119: 0 | G119: 0 | H119: x | I119: 0 | J119: 0 | K119: 0 | L119: 0 | M119: 0 | DT119: 111 | DU119: 111 | DV119: 115 | DX119: 1 | EB119: 112 | ED119: 111 | EE119: (111) | EF119: (-)
A120: 112 ((-)) | B120: Eva Åkesson | C120: Lanternan | D120: 0 | F120: 0 | G120: 0 | H120: x | I120: 0 | J120: 0 | K120: 0 | L120: 0 | M120: 0 | DT120: 112 | DU120: 112 | DV120: 116 | DX120: 1 | EB120: 110 | ED120: 112 | EE120: (112) | EF120: (-)
A121: 113 ((-)) | B121: Victor Bengtsson | C121: Vaxholm Hsk | D121: 0 | F121: 0 | G121: 0 | H121: x | I121: 0 | J121: 0 | K121: 0 | L121: 0 | M121: 0 | DT121: 113 | DU121: =IF(AND(D121=D120,D121=D119,D121=D118,D121=D117),ROW(113:113),IF(AND(D121=D120,D121=D119,D121=D118),ROW(114:114),IF(AND(D121=D120,D121=D119),ROW(115:115),IF(D121=D120,ROW(116:116),IF(D121>1,ROW(117:117),"-"))))) -> 113 | DV121: =IF(DX121=1,ROW(117:117),"-") -> 117 | DX121: 1 | EB121: 111 | ED121: =IF(DX121=1,DU121,IF(DX121="",DU121,"")) -> 113 | EE121: =IF(DX121=1,"("&DT121&")","("&DV121&")") -> (113) | EF121: (-)
A122: 114 ((-)) | B122: Tommy Svensson | C122: Värends Hsk | D122: 0 | F122: 0 | G122: 0 | H122: x | I122: 0 | J122: 0 | K122: 0 | L122: 0 | M122: 0 | DT122: 114 | DU122: =IF(AND(D122=D121,D122=D120,D122=D119,D122=D118),ROW(114:114),IF(AND(D122=D121,D122=D120,D122=D119),ROW(115:115),IF(AND(D122=D121,D122=D120),ROW(116:116),IF(D122=D121,ROW(117:117),IF(D122>1,ROW(118:118),"-"))))) -> 114 | DV122: =IF(DX122=1,ROW(118:118),"-") -> 118 | DX122: 1 | EB122: 113 | ED122: =IF(DX122=1,DU122,IF(DX122="",DU122,"")) -> 114 | EE122: =IF(DX122=1,"("&DT122&")","("&DV122&")") -> (114) | EF122: (-)
A123: 115 ((-)) | B123: Christer Brincner | C123: Värends Hsk | D123: 0 | F123: 0 | G123: 0 | H123: x | I123: 0 | J123: 0 | K123: 0 | L123: 0 | M123: 0 | DT123: 115 | DU123: =IF(AND(D123=D122,D123=D121,D123=D120,D123=D119),ROW(115:115),IF(AND(D123=D122,D123=D121,D123=D120),ROW(116:116),IF(AND(D123=D122,D123=D121),ROW(117:117),IF(D123=D122,ROW(118:118),IF(D123>1,ROW(119:119),"-"))))) -> 115 | DV123: =IF(DX123=1,ROW(119:119),"-") -> 119 | DX123: 1 | EB123: 113 | ED123: =IF(DX123=1,DU123,IF(DX123="",DU123,"")) -> 115 | EE123: =IF(DX123=1,"("&DT123&")","("&DV123&")") -> (115) | EF123: (-)
